Workbook

Sheet Read me
C3: Informations générales:
C4: -Ce document excel est l'outil de calcul que le think tank The Shift Project utilise pour estimer l'empreinte carbone du secteur de la santé. Il contient les explications détaillées de nos calculs qui nous ont permis d'en déduire l'empreinte carbone du secteur de la santé. Il contient également les explication détaillées du chiffrage des mesures
C5: -Nous le partageons afin que vous puissiez prendre connaissance de notre méthode mais aussi pour que vous nous fassiez des retours. Aussi, si vous le souhaitez, vous pouvez nous renvoyer ce document avec vos commentaires écrits en rouge à l'adresse sante@theshiftproject.org
C6: -Dans le fichier que nous vous partageons, nous avons uniquement conservé les dernieres versions de calculs (celles présentées dans le rapport technique annexe au rapport "décarbonons la santé pour soigner durablement"). Il s'agit de celles qui nous semblaient les plus justes. Notez que chacune de ces versions est le résultat de plusieurs améliorations de versions antérieures. C'est pour cette raison que certaines d'entre elles sont numérotées "V1.2".
C7: - A certains endroits, nous avons remplacé le contenu d'une "case" par le mot "Anonyme" car nous ne souhaitions pas rendre publique l'information.
C8: - Nous vous invitons à prendre connaissance du rapport technique annexe au rapport "décarbonons la santé pour soigner durablement". Ce rapport vous facilitera la compréhension de cet outil de calcul. Ils sont complémentaires.
C9: - Nous vous invitons à parcourir les différents onglets de ce document afin de prendre connaissance du détail de nos calculs. Vous constaterez que pour estimer l'empreinte carbone de certains postes d'émission, nous avons été obligés de faire des hypothèses et de réaliser des étapes de calculs supplémentaires. Dans la majorité des cas, ces hypothèses et ces étapes sont faites car nous ne disposions pas de la donnée nécessaire. Si vous disposez de données ou d'une méthode nous permettant d'affiner notre estimation, contactez nous à l'adresse sante@theshiftproject.org
C10: lim= Limites (nous expliquons à cet endroit les limites de notre calcul) Hyp= Hypothèse (Nous détaillons à cet endroit les hypothèses faites) BC= Bilan carbone
C11: EHPA= Etablissement d'Hébergement pour Personnes Agées ES"Handicap"= établissments d'acceuil et services pour adultes et enfants handicapés
C12: -Les premiers onglets présentent les détails des calculs pour estimer les émissions de chaque poste. Les derniers correspondent aux estimations des réductions des émissions de gaz à effet de serre de chaque poste considéré.
C14: Organisation des onglets : | D14: Bilan global | E14: Cet onglet contient la synthèse de nos estimations par poste d'émission.
D16: Fiche d'identité | E16: Cet onglet explique comment comprendre la fiche d'identité indiquée à chaque début de calcul. Pour chaque calcul nous avons une fiche de synthèse (résumé des hypothèses, des limites du calcul, des entités concidérées, etc.).
D18: Numéro | E18: Nous avons crée un onglet de calcul par poste d'émission estimé. Nous avons mis un code couleur pour chaque poste. Si le poste n'a pas à être divisé en sous-poste, l'onglet contient directement la fiche d'identité avec les calculs. Par exemple, les émissions du poste 1 : "Sources fixes de combustion" ont directement été estimées dans l'onglet rouge "1". Dans certains cas nous avons divisé le poste en sous poste (exemple: le poste jaune 10 : "immobilsation" a été divisé en "10.bâtiments", "10.SI" et "10.Mobilier+machines+véhicules" car nous avons fait 2 calculs, un pour estimer l'empreinte carbone de l'immobilisation des véhicules et un pour l'immobilisation des machines). Dans ce cas là, cet onglet contient la synthèse des calculs des sous postes (par exemple: synthèse dans l'onglet jaune "10")
D20: Numéro.détail | E20: Comme expliqué juste au dessus, ces onglets ont été créées lorsque nous avons divisé un poste d'émission en sous-poste. Dans ces cas là, ces onglets contiennent le détail des calculs avec la fiche d'identité de la version.
D23: Numéro.détail_mesure | E23: Correspond aux détails des estimations de la réduction des émissions pour chaque poste (avec les mesures associées)

Sheet Bilan global
B2: Bilan Carbone du secteur de la Santé
B4: Catégorie d'émissions | C4: Numéro du poste | D4: Nom du poste | E4: Emissions (MtCO2e/an) | F4: Version poste | G4: Pourcentage | H4: Satisfaction
B5: Energie | C5: 1 | D5: Sources fixes de combustion | E5: ='1'!C6 -> 4.294295546 | F5: ='1'!C7 -> v1.0.f | G5: =E5/$E$28 -> 0.08741482606 | H5: ='22'!C8 -> Bon ordre de grandeur
C6: 7 | D6: Consommation de vapeur, chaleur ou froid | E6: ='7'!C6 -> 0.1653373563 | F6: ='7'!C7 -> v1.0.g | G6: 0.003365612842 | H6: ='6'!C8 -> Bon ordre de grandeur
C7: 6 | D7: Consommation d’électricité | E7: ='6'!C6 -> 0.8145749261 | F7: ='6'!C7 -> v1.0.g | G7: 0.01658151488 | H7: ='6'!C8 -> Bon ordre de grandeur
C8: 8 | D8: Amont de l'énergie | E8: 0 | G8: 0
B9: Achats | C9: 9 | D9: Achat de produits et services | E9: ='9'!C6 -> 31.88441607 | F9: v1.9 | G9: 0.6490402569
B10: Déplacements | C10: 16 | D10: Transport des clients et visiteurs | E10: ='16'!C6 -> 4.288922091 | F10: ='16'!C7 -> v1.4 | G10: 0.08730544383 | H10: ='16'!C8 -> Bon ordre de grandeur
C11: 2 | D11: Sources mobiles de combustion | E11: ='2'!C6 -> 0.2803397334 | F11: ='2'!C7 -> v1.2 | G11: 0.005706605139 | H11: ='2'!C8 -> Bon ordre de grandeur
C12: 13 | D12: Déplacements professionnels | E12: ='13'!C6 -> 0.4231956596 | F12: ='13'!C7 -> v1.2 | G12: 0.008614585228
C13: 22 | D13: Trajets domicile-travail des employés | E13: ='22'!C6 -> 1.766880816 | F13: ='22'!C7 -> v1.3 | G13: 0.03596668593 | H13: ='22'!C8 -> Bon ordre de grandeur
B14: Immobilisations | C14: 10 | D14: Immobilisations | E14: ='10'!C6 -> 3.74337704 | F14: V 1.9 | G14: 0.07620031023 | H14: Incomplet
B15: Postes secondaires | C15: 4 | D15: Emissions fugitives | E15: ='4'!C6 -> 1.042020053 | F15: v1.a | G15: 0.02121139562 | H15: ='22'!C10 -> 0
C16: 12 | D16: Transport de marchandises amont | E16: 0 | G16: 0
C17: 17 | D17: Transport de marchandises aval | E17: 0 | G17: 0
C18: 11 | D18: Déchets | E18: ='11'!C6 -> 0.4221236481 | G18: 0.008592763326
B19: Postes non adaptés au secteur | C19: 3 | D19: Procédés hors énergie | E19: 0 | F19: X | G19: 0 | H19: X
C20: 5 | D20: Utilisation des terres, leurs changements et la forêt (UTCF) | E20: 0 | F20: X | G20: 0 | H20: X
C21: 14 | D21: Actifs en leasing amont | E21: 0 | F21: X | G21: 0 | H21: X
C22: 15 | D22: Investissement | E22: 0 | F22: X | G22: 0 | H22: X
C23: 18 | D23: Utilisation des produits vendus | E23: 0 | F23: X | G23: 0 | H23: X
C24: 19 | D24: Fin de vie des produits vendus | E24: 0 | F24: X | G24: 0 | H24: X
C25: 20 | D25: Franchises en aval | E25: 0 | F25: X | G25: 0 | H25: X
C26: 21 | D26: Actif loués en aval | E26: 0 | F26: X | G26: 0 | H26: X
C27: 23 | D27: Autres émissions non incluses dans les postes précédents | E27: 0 | F27: X | G27: 0 | H27: X
B28: TOTAL | E28: =SUM(E5:E27) -> 49.12548294

Sheet Fiche d'identité
B2: Sources fixes de combustion
F5: Indications du guide sectoriel
B6: Emissions totales du poste | D6: MtCO2e/an | F6: Sources potentielles | G6: Nous mettons ici les informations que l'ADEME donne dans son guide sectoriel : https://www.ademe.fr/sites/default/files/assets/documents/guide-sectoriel-etablissements-sanitaires-et-medico-sociaux-2020-010896.pdf
B7: Version | C7: =B10 -> v1.1 | F7: Données spécifiques
B10: v1.1
B13: Carte d'identité de la version
B14: Hypothèses | C14: Ex. : On suppose que tous les hôpitaux sont chauffés au gaz
B15: Données et sources | C15: Données qu'on utilise et leur provenance
B16: Méthodologie | C16: Comment on fait nos calculs à partir des données et des hypothèses
B17: Données manquantes | C17: Quelles données nous manquent-t-il et sont à chercher quoi qu'il en coûte pour pouvoir faire nos calculs
B18: Ajouts / évolutions depuis la dernière version | C18: Qu'est-ce qui change depuis la dernière version
B19: Limites, pistes d'amélioration | C19: Quelles sont les limites et que faudrait-il faire pour passer au niveau supérieur
B20: Entités du périmètre concernées | C20: Est-ce que toutes les entités du périmètres sont concernés par les calculs, ou seulement une partie, par ex. seulement les hôpitaux ?
B21: Commentaires généraux
B22: Personne à l'origine de cette version
B23: Date
C25: Calculs de la v1.1 ci-dessous

Sheet 1
B2: Sources fixes de combustion
B5: Tableau de bord du poste | F5: Indications du guide sectoriel
B6: Emissions totales du poste | C6: =C11 -> 4.294295546 | D6: MtCO2e/an | F6: Sources potentielles | H6: Chaudières, groupes électrogènes, fours, etc.
B7: Version | C7: =C10 -> v1.0.f | F7: Données spécifiques | H7: Il s’agit de récupérer par type de combustible, les données annuelles de consommation à partir du suivi interne réalisé ou des factures. (en kWh, litres ou m3)
B8: Satisfaction | C8: =C12 -> Bon ordre de grandeur
B10: Numéro de version | C10: v1.0.f
B11: Emissions totales | C11: =C224 -> 4.294295546 | D11: MtCO2e
B12: Satisfaction vis-à-vis de la version | C12: Bon ordre de grandeur
B14: Carte d'identité de la version
B15: Hypothèses | C15: Hyp 1 : Les données du CEREN sur la division 86 sont transposables aux autres établissements de santé Hyp 2 : On suppose que la catégorie "autres combustibles" est du bois énergie Hyp 3 : On suppose que la part de l'électricité dédiée à la cuisson est similaire pour les établissements de la division 86 et pour les établissements hors division 86 Hyp 4 : La consommation d'énergie par agent est similaire dans l'administration de la santé, dans l'administration publique et dans la complémentaire santé
B16: Données et sources | C16: (1) CONSOMMATION ENERGETIQUE PAR ACTIVITE DU SECTEUR TERTIAIRE en 2017, 2018 et 2019, fenêtre 3, https://www.statistiques.developpement-durable.gouv.fr/consommation-denergie-par-usage-du-tertiaire (2) Tableau-maître v8.51, Association Bilan Carbone (3) Répartition des énergies renouvelables en France, https://www.statistiques.developpement-durable.gouv.fr/edition-numerique/chiffres-cles-energies-renouvelables-2021/1-les-energies-renouvelables-en-france (4) Base carbone de l'ADEME, https://bilans-ges.ademe.fr/fr/basecarbone/donnees-consulter/ (5) Décarbonons l'administration publique, https://theshiftproject.org/article/decarboner-ladministration-publique-rapport-octobre-2021/
B17: Méthodologie | C17: Notre méthodologie se divise ici en 2 parties. Pour la première partie qui concerne les établissements de santé publics, privés à but lucratif et privé à but non lucratif ainsi que la médecine de ville, nous avons utilisé les données sur la consommation énergétique de de chacune de ce classes de bâtiments (données CEREN) que nous avons ensuite multipliée par le FE adapté Pour la deuxième partie, on utilise les données de surfaces calculées poste 10 pour estimer à l'aide des données du CEREN les consommations des autres établissements de santé.
B18: Données manquantes
B19: Limites, pistes d'amélioration | C19: Incertitude pour certains FE (facteurs d'émissions), notamment bois-énergie ; pour la seconde partie on ne prend en compte que chauffage et ECS (Eau Chaude Sanitaire)
B20: Entités du périmètre concernées | C20: Tout le périmètre
B21: Commentaires généraux | C21: Bon ordre de grandeur
B22: Date | C22: 2022-01-17
B26: Partie 0 : Synthèse des résultats
D27: Energie consommée en Gwh | G27: Emissions en Mtco2
C28: Empreinte carbone totale (hors électricité, hors cuisson, avec chaleur) (MtCO2) | D28: Gaz | E28: Fioul | F28: Autres combustibles | G28: Gaz | H28: Fioul | I28: Autres combustibles
B29: Etablissements d'officine | C29: =$C$201*$C110/$C$117 -> 0.06816283829 | D29: =$C$173*10^(-6)*$C110/$C$117 -> 163.0898256 | E29: =$C$172*10^(-6)*$C110/$C$117 -> 93.10407823 | F29: =$C$174*10^(-6)*$C110/$C$117 -> 32.79119461 | G29: =$C$191*10^(-9)*$C110/$C$117 -> 0.0370213904 | H29: =$C$190*10^(-9)*$C110/$C$117 -> 0.03016572135 | I29: =$C$198*10^(-9)*$C110/$C$117 -> 0.0009757265374
B30: Médecine libérale (hors établissements d'officine) | C30: =$K90*$C111/$C116 -> 0.6359534557 | D30: =SUM(F69:F73)*$C111/$C116 -> 1781.14629 | E30: =SUM(D79:D83)*$C111/$C116 -> 750.1408671 | F30: =(SUM(D74:D78)+SUM(D84:D88))*$C111/$C116 -> 80.18912752 | G30: =SUM(K69:K73)*$C111/$C116/10^9 -> 0.4043202078 | H30: =SUM(K79:K83)*$C111/$C116/10^9 -> 0.2430456409 | I30: =(SUM(K74:K78)+SUM(K84:K88))*$C111/$C116/10^9 -> 0.01358737517
B31: établissements hospitaliers | C31: =$K90*$C112/$C116 -> 1.723647807 | D31: =SUM(F69:F73)*$C112/$C116 -> 4827.505645 | E31: =SUM(D79:D83)*$C112/$C116 -> 2033.134106 | F31: =(SUM(D74:D78)+SUM(D84:D88))*$C112/$C116 -> 217.3395122 | G31: =SUM(K69:K73)*$C112/$C116/10^9 -> 1.095843781 | H31: =SUM(K79:K83)*$C112/$C116/10^9 -> 0.6587354505 | I31: =(SUM(K74:K78)+SUM(K84:K88))*$C112/$C116/10^9 -> 0.03682635766
B32: établissements d'accueil pour personnes âgées | C32: =$C$201*$C113/$C$117 -> 1.051069838 | D32: =$C$173*10^(-6)*$C113/$C$117 -> 2514.842411 | E32: =$C$172*10^(-6)*$C113/$C$117 -> 1435.663346 | F32: =$C$174*10^(-6)*$C113/$C$117 -> 505.6396782 | G32: =$C$191*10^(-9)*$C113/$C$117 -> 0.5708692274 | H32: =$C$190*10^(-9)*$C113/$C$117 -> 0.465154924 | I32: =$C$198*10^(-9)*$C113/$C$117 -> 0.01504568706
B33: établissements d'accueil pour enfants handicapés | C33: 0.1843612073 | D33: 441.1118712 | E33: 251.8202103 | F33: 88.69091106 | G33: 0.1001323948 | H33: 0.08158974813 | I33: 0.002639064437
B34: établissements d'accueil pour adultes handicapés | C34: 0.4913590158 | D34: 1175.650225 | E34: 671.150577 | F34: 236.3787881 | G34: 0.2668726011 | H34: 0.2174527869 | I34: 0.007033627752
B35: Administration publique et complémentaire santé | C35: =C220 -> 0.1397413831
B36: Total | C36: =SUM(C29:C35) -> 4.294295546 | D36: =SUM(D29:D34) -> 10903.34627 | E36: 5235.013185 | F36: 1161.029212 | G36: 2.475059603 | H36: 1.696144272 | I36: 0.07610783861
B59: Partie I: Estimation de l'empreinte carbone de l'énergie hors électricité dans les établissements de santé de la division 86 CEREN
B61: Les activités pour la santé humaine décrites dans cette division s'exercent sous des formes variées, publiques ou privées, en pratique libérale ou en établissement, sous la responsabilité de médecins ou de personnel para médical. On ne vise pas ici les caractéristiques réglementaires des professions de santé, salariées ou libérales, mais celles des unités de production. Cette division comprend les activités des établissements hospitaliers de court ou long séjour, publics ou privés, sous la responsabilité de médecins, qui offrent des services d'hébergement et qui assurent un diagnostic et un traitement médical aux patients. Elle couvre les activités de pratique médicale et de pratique dentaire de nature générale ou spécialisée, correspondant à des formules de consultation, de diagnostic, de soins et de prescriptions, au cabinet du praticien. Cette division comprend, en outre, les activités afférentes à la santé humaine qui ne sont pas dispensées dans des hôpitaux ou par des médecins, mais généralement exercées par des praticiens paramédicaux exécutant sous leur responsabilité des actes prescrits par un médecin.
B63: La division 86 couvre donc les établissements hospitaliers, ainsi que la médecine de ville. Elle ne comprend pas les pharmacies.
B65: Etape de calcul
B67: On ne prends pas ici en compte l'énergie destinée à la cuisson, cette énergie étant comptée dans le facteur d'émission de l'alimentation (poste 9.alimentaire)
B68: Énergie consommée | C68: Usages | D68: 2019 | E68: Unités | F68: 2019 | G68: Unités | H68: FE | I68: Unité | J68: Source | K68: Empreinte carbone | L68: Unité | M68: (1) | N68: Estimation du facteur d'émission Bois énergie
B69: Gaz naturel | C69: Chauffage | D69: 4514.28366 | E69: GWh PCS | F69: =D69/C94 -> 4063.26162 | G69: GWh PCI | H69: 0.227 | I69: kgCO2e/kWh PCI | J69: ADEME Gaz naturel - 2015 - mix moyen - consommation, France continentale, France | K69: =F69*10^6*H69 -> 922360387.8 | L69: kgCO2e | N69: Composantes | O69: Pourcentage | P69: Facteur d'émission | Q69: Unité | R69: Source
B70: Gaz naturel | C70: Eau chaude sanitaire | D70: 1935.37675 | E70: GWh PCS | F70: =D70/C94 -> 1742.013277 | G70: GWh PCI | H70: 0.227 | I70: kgCO2e/kWh PCI | J70: ADEME Gaz naturel - 2015 - mix moyen - consommation, France continentale, France | K70: 395437013.8 | L70: kgCO2e | N70: Plaquettes forestières | O70: 45 | P70: 0.0123 | Q70: kgCO2e/kWh PCI | R70: (4) Plaquettes forestières - Humides (45% humidité)
B71: Gaz naturel | C71: Cuisson | D71: 381.3940113 | E71: GWh PCS | F71: =D71/C94 -> 343.288939 | G71: GWh PCI | H71: 0.227 | I71: kgCO2e/kWh PCI | J71: ADEME Gaz naturel - 2015 - mix moyen - consommation, France continentale, France | K71: 77926589.16 | L71: kgCO2e | N71: Plaquettes bocagères | O71: 9.5 | P71: 0.0123 | Q71: kgCO2e/kWh PCI | R71: (4) Plaquettes forestières - Humides (45% humidité)
B72: Gaz naturel | C72: Refroidissement/climatisation | D72: 0 | E72: GWh PCS | F72: =D72/C94 -> 0 | G72: GWh PCI | H72: 0.227 | I72: kgCO2e/kWh PCI | J72: ADEME Gaz naturel - 2015 - mix moyen - consommation, France continentale, France | K72: 0 | L72: kgCO2e | N72: Connexes de l'industrie du bois | O72: 17 | P72: 0.0149 | Q72: kgCO2e/kWh PCI | R72: (4) Connexes transformation bois
B73: Gaz naturel | C73: Autres usages | D73: 511.1578783 | E73: GWh PCS | F73: =D73/C94 -> 460.0880993 | G73: GWh PCI | H73: 0.227 | I73: kgCO2e/kWh PCI | J73: ADEME Gaz naturel - 2015 - mix moyen - consommation, France continentale, France | K73: 104439998.5 | L73: kgCO2e | N73: Sous-produits agricoles et industriels | O73: 17
B74: GPL | C74: Chauffage | D74: 82.33781119 | E74: GWh PCI | H74: 0.272 | I74: kgCO2e/kWh PCI | J74: ADEME https://www.bilans-ges.ademe.fr/fr/basecarbone/donnees-consulter/liste-element?recherche=gpl | K74: =D74*10^6*H74 -> 22395884.64 | L74: kgCO2e | N74: Bois en fin de vie | O74: 7 | P74: 0.0109 | Q74: kgCO2e/kWh PCI | R74: (4) Déchets bois - "Propres"
B75: GPL | C75: Eau chaude sanitaire | D75: 35.64410311 | E75: GWh PCI | H75: 0.272 | I75: kgCO2e/kWh PCI | J75: ADEME https://www.bilans-ges.ademe.fr/fr/basecarbone/donnees-consulter/liste-element?recherche=gpl | K75: 9695196.045 | L75: kgCO2e | N75: bois déchet « adjuvanté » | O75: 4 | P75: 0.0174 | Q75: kgCO2e/kWh PCI | R75: (4) Déchets bois - "Adjuvantés"
B76: GPL | C76: Cuisson | D76: 45.56160025 | E76: GWh PCI | H76: 0.272 | I76: kgCO2e/kWh PCI | J76: ADEME https://www.bilans-ges.ademe.fr/fr/basecarbone/donnees-consulter/liste-element?recherche=gpl | K76: 12392755.27 | L76: kgCO2e | N76: Granulés et autres | O76: 0.5 | P76: 0.0113 | Q76: kgCO2e/kWh PCI | R76: (4) Granulés - Blancs français (issus de connexe de scierie)
B77: GPL | C77: Refroidissement/climatisation | D77: 0 | E77: GWh PCI | H77: 0.272 | I77: kgCO2e/kWh PCI | J77: ADEME https://www.bilans-ges.ademe.fr/fr/basecarbone/donnees-consulter/liste-element?recherche=gpl | K77: 0 | L77: kgCO2e | O77: Moyenne | P77: =(P70*O70 + P71*O71+P72*O72+P74*O74+P75*O75+P76*O76)/(SUM(O70:O76)-O73) -> 0.01295421687
B78: GPL | C78: Autres usages | D78: 14.9769476 | E78: GWh PCI | H78: 0.272 | I78: kgCO2e/kWh PCI | J78: ADEME https://www.bilans-ges.ademe.fr/fr/basecarbone/donnees-consulter/liste-element?recherche=gpl | K78: 4073729.748 | L78: kgCO2e
B79: Fioul | C79: Chauffage | D79: 1685.894319 | E79: GWh PCI | H79: 0.324 | I79: kgCO2e/kWh PCI | J79: ADEME Fioul domestique, France continentale | K79: 546229759.4 | L79: kgCO2e | N79: Estimation facteur d'emission "Energies renouvelables"
B80: Fioul | C80: Eau chaude sanitaire | D80: 348.605943 | E80: GWh PCI | H80: 0.324 | I80: kgCO2e/kWh PCI | J80: ADEME Fioul domestique, France continentale | K80: 112948325.5 | L80: kgCO2e | N80: Source d'énergie | O80: Part de la production d'énergie primaire française | P80: Source | Q80: Facteur d'émission | R80: Unité | S80: Source
B81: Fioul | C81: Cuisson | D81: 7.403916851 | E81: GWh PCI | H81: 0.324 | I81: kgCO2e/kWh PCI | J81: ADEME Fioul domestique, France continentale | K81: 2398869.06 | L81: kgCO2e | N81: Bois énergie | O81: 33 | P81: (3) | Q81: =P77 -> 0.01295421687 | R81: kgCO2e/kWh
B82: Fioul | C82: Refroidissement/climatisation | D82: 0 | E82: GWh PCI | H82: 0.324 | I82: kgCO2e/kWh PCI | J82: ADEME Fioul domestique, France continentale | K82: 0 | L82: kgCO2e | N82: Géothermie | O82: 1.7 | P82: (3) | Q82: 0.038 | R82: kgCO2e/kWh | S82: (4)
B83: Fioul | C83: Autres usages | D83: 741.3707945 | E83: GWh PCI | H83: 0.324 | I83: kgCO2e/kWh PCI | J83: ADEME Fioul domestique, France continentale | K83: 240204137.4 | L83: kgCO2e | N83: Solaire thermique | O83: 0.1 | P83: (3) | Q83: 0.013 | R83: kgCO2e/kWh | S83: (4)
B84: Énergies renouvelables | C84: Chauffage | D84: 97.25691741 | E84: GWh PCI | H84: =Q$86 -> 0.01559697122 | I84: kgCO2e/kWh PCI | J84: Estimation | K84: 1516913.342 | L84: kgCO2e | N84: Déchets renouvelables | O84: 4.4 | P84: (3) | Q84: 0.031 | R84: kgCO2e/kWh | S84: (4)
B85: Énergies renouvelables | C85: Eau chaude sanitaire | D85: 14.22453098 | E85: GWh PCI | H85: 0.01559697122 | I85: kgCO2e/kWh PCI | J85: Estimation | K85: 221859.6003 | L85: kgCO2e | N85: Biogaz | O85: 4 | P85: (3) | Q85: 0.011 | R85: kgCO2e/kWh | S85: (4)
B86: Énergies renouvelables | C86: Cuisson | D86: 2.522079135 | E86: GWh PCI | H86: 0.01559697122 | I86: kgCO2e/kWh PCI | J86: Estimation | K86: 39336.79567 | L86: kgCO2e | P86: Moyenne | Q86: =(Q81*O81+Q82*O82+Q83*O83+Q84*O84+Q85*O85)/SUM(O81:O85) -> 0.01559697122 | R86: kgCO2e/kWh
B87: Énergies renouvelables | C87: Refroidissement/climatisation | D87: 0 | E87: GWh PCI | H87: 0.01559697122 | I87: kgCO2e/kWh PCI | J87: Estimation | K87: 0 | L87: kgCO2e
B88: Énergies renouvelables | C88: Autres usages | D88: 5.004650031 | E88: GWh PCI | H88: 0.01559697122 | I88: kgCO2e/kWh PCI | J88: Estimation | K88: 78057.38248 | L88: kgCO2e
F89: Total (hors énergie destinée à la cuisson): | K89: =SUM(K69:K88)-(K71+K76+K81+K86) -> 2359601263 | L89: kgCO2e
K90: =K89/10^9 -> 2.359601263 | L90: Mtco2
B92: N.B. : on convertit les valeurs du tableau précédents fournies en GWh PCS en GWh PCI grâce au tableau suivant
B93: Combustible liquide ou gazeux | C93: Rapport PCS/PCI | D93: Source
B94: Gaz naturel | C94: 1.111 | D94: www.thermexcel.com160
B95: GPL | C95: 1.087 | D95: www.thermexcel.com
B96: Essence | C96: 1.08 | D96: Extrapolation
B97: Diesel, fioul domestique | C97: 1.075 | D97: www.thermexcel.com
B98: Fioul lourd | C98: 1.065 | D98: www.thermexcel.com
B99: Charbon | C99: 1.052 | D99: www.thermexcel.com
B103: Partie II: Estimation de l'empreinte carbone de l'énergie hors électricité dans les autres établissements couverts par notre périmètre
B105: Méthodo
B106: Dans cette partie, nous utilisons les données des surfaces des établissements d'officine, des établissements pour personnes agées et pour personnes handicapées calculées poste 10.bâtiments
B107: On utilise ensuite les données de CEREN pour estimer la consommation d'énergie de ces établissements.
B109: Type d'établissement | C109: Surface (en m2)
B110: Etablissements d'officine | C110: ='10.bâtiments'!D84 -> 2159100
B111: Médecine libérale (hors établissements d'officine) | C111: ='10.bâtiments'!C107 - '10.bâtiments'!D84 -> 17073700
B112: établissements hospitaliers | C112: ='10.bâtiments'!C108 -> 46275470.8
B113: établissements d'accueil pour personnes âgées | C113: ='10.bâtiments'!C172 -> 33293286.27
B114: établissements d'accueil pour enfants handicapés | C114: ='10.bâtiments'!C231 -> 5839755.103
B115: établissements d'accueil pour adultes handicapés | C115: ='10.bâtiments'!C232 -> 15564100.29
B116: Total division 86 CEREN | C116: =C111+C112 -> 63349170.8
B117: Total santé hors secteur 86 CEREN | C117: =C110+C113+C115+C114 -> 56856241.66
B119: Etape de calcul
B120: Méthodo
B121: On va estimer le type de chauffage par pourcentage de surface
B122: Hyp1 : Les données du CEREN sur la division 86 sont transposables aux autres établissements de santé
B125: Évolution des surfaces totales du secteur tertiaire selon l'énergie de chauffage (en millions de m^2)
B126: Énergie de chauffage | C126: 1990 | D126: 1995 | E126: 2000 | F126: 2005 | G126: 2010 | H126: 2015 | I126: 2019 | J126: Part des surfaces | K126: (1)
B127: Gaz | C127: 229.6356268 | D127: 289.3386548 | E127: 336.4497088 | F127: 380.8904404 | G127: 421.0641631 | H127: 445.6981636 | I127: 460.1096803 | J127: =I127/SUM(I127:I130) -> 0.4605855013
B128: Fioul | C128: 230.6133761 | D128: 208.2522007 | E128: 203.4338357 | F128: 190.0445744 | G128: 167.6069632 | H128: 149.109982 | I128: 147.5245178 | J128: =I128/SUM(I127:I130) -> 0.1476770798
B129: Autres combustibles | C129: 75.01269585 | D129: 80.43882495 | E129: 84.92552889 | F129: 87.94925027 | G129: 92.60041773 | H129: 96.55099292 | I129: 100.0912241 | J129: =I129/SUM(I127:I130) -> 0.1001947331
B130: Électricité | C130: 127.5486814 | D130: 154.8030625 | E130: 175.2820405 | F130: 201.2185465 | G130: 239.2245262 | H130: 272.3157829 | I130: 291.2414993 | J130: =I130/SUM(I127:I130) -> 0.2915426858
B131: Total général | C131: 662.8103801 | D131: 732.8327429 | E131: 800.0911139 | F131: 860.1028116 | G131: 920.4960703 | H131: 963.6749215 | I131: 998.9669215 | J131: =SUM(J127:J130) -> 1
B134: On en déduit donc la quantité de surfaces chauffées par type d'énergie pour les établissements hors division 86:
B136: Énergie de chauffage | C136: surface m2
B137: Gaz | C137: =C117*J127 -> 26187160.57
B138: Fioul | C138: =C117*J128 -> 8396363.737
B139: Autres combustibles | C139: =C117*J129 -> 5696695.96
B140: Électricité | C140: =C117*J130 -> 16576021.4
B142: Etape de calcul
B143: On peut maintenant utiliser la consommation d'énergie par surface pour obtenir la consommation totale:
E144: T2 : issu du tableau-maître, onglet Utilitaires (2)
B145: Tertiaire chauffé au gaz, moyenne | C145: kWh/m2.an
C146: Chauffage | D146: ECS | E146: Chauff + ECS | F146: Incertitude
B147: Autres activités de santé | C147: 126 | D147: 38 | E147: =C147+D147 -> 164 | F147: 0.3
D149: T3 : issu du tableau-maître, onglet Utilitaires (2)
B150: Tertiaire chauffé au fioul, moyenne | C150: kWh/m2.an | D150: Incertitude
B151: Santé | C151: 292 | D151: 0.3
B155: Etape de calcul
B156: Estimons maintenant l'intensité energétique en kWh/m2.an de "autres combustibles"
B157: Pour cela nous allons utiliser les tableaux de la source CEREN:
B159: Consommation en "Autres combustibles" du secteur tertiaire en 2019 : | C159: 15.1717469 | D159: TWh | E159: (1)
B162: On peut donc, avec les données précédentes des surfaces du tertiaires utilisant "autres énergie" comme chauffage, calculer la consommation par surface pour le tertiaire:
C164: TWh/millions de m2.an
B165: Autres combustibles | C165: =C159/I129 -> 0.1515791922
B168: Etape de calcul
B169: Il ne nous reste plus qu'à estimer l'energie utilisée par an dans ces établissements tous les ans.
C171: Consommation (kWh) | D171: commentaires
B172: Fioul | C172: =C151*C138 -> 2451738211 | D172: Pour chauffage uniquement
B173: Gaz | C173: =E147*C137 -> 4294694333 | D173: Pour eau chaude sanitaire et chauffage
B174: Autres combustibles | C174: =C165*C139*10^3 -> 863500572 | D174: Pour tous les usages
B177: Hyp2 : On suppose que la catégorie "autres combustibles" est du bois énergie
B179: Facteurs d'émissions:
B180: Source d'énergie | C180: Facteur d'émission | D180: Unité | E180: Source
B181: Gaz | C181: 0.227 | D181: kgCO2e/kWh PCI | E181: (4) Gaz naturel - 2015 - mix moyen - consommation, France continentale, France
B182: Fioul | C182: 0.324 | D182: kgCO2e/kWh PCI | E182: (4) Fioul domestique, France continentale
B183: Autres combustibles | C183: 0.0304 | D183: kgCO2e/kWh PCI | E183: (4) Granulés bois - 8% d'humidité, France continentale
B185: Etape de calcul
B187: Estimons l'empreinte carbone
C189: kgCO2e
B190: Fioul | C190: =C172*C182 -> 794363180.4
B191: Gaz | C191: =C173*C181 -> 974895613.6
B193: Pour les "autres combustibles", on retranche l'énergie utilisée pour la cuisson:
B194: Hyp 3 : On suppose que la part de l'électricité dédiée à la cuisson est similaire pour les établissements de la division 86 et pour les établissements hors division 86
B196: Part des énergies renouvelables dédiées à la cuisson (division 86): | C196: =D86/SUM(D84:D88) -> 0.02119248598
B197: Empreinte carbone autres combustibles (tous usages) (kgCO2e) | C197: =C174*C183 -> 26250417.39
B198: Empreinte carbone autres combustibles (Hors cuisson) (kgCO2) | C198: =C197*(1-C196) -> 25694105.79
B200: total: | C200: =C190+C191+C198 -> 1794952900 | D200: kgCO2e
C201: =C200/10^9 -> 1.7949529 | D201: MtCO2
B204: Partie III: Emissions de l'administration publique et de la complémentaire santé
B206: Etape de calcul
B207: Estimons les émissions par personnel dans l'administration publique, à l'aide des travaux du rapport "Administration publique" du Shift Project (5)
D209: Unité | E209: Source
B210: Emissions liées à la consommation de gaz, fioul et autres combustibles | C210: =7.39 - 1.17 - 0.62 -> 5.6 | D210: MtCO2e | E210: (5)
B211: Effectif pris en compte | C211: =5951793 -> 5951793 | E211: (5)
B213: Hyp 4 : La consommation d'énergie par agent est similaire dans l'administration de la santé, dans l'administration publique et dans la complémentaire santé
B214: Le tableau suivant provient de la feuille de calcul annexe intitulée "Effectif admin & comp santé"
C215: Effectifs
B216: Administration de la santé | C216: ='Annexe 2'!C5 -> 98433.71
B217: Complémentaire santé | C217: ='Annexe 2'!C6 -> 50086.25171
B220: Emissions de l'administration publique et de la complémentaire santé | C220: =C210*(C216+C217)/C211 -> 0.1397413831 | D220: MtCO2e
B222: Partie IV: Synthèse des calculs
B224: Total énergie (hors électricité, chaleur et cuisson) | C224: =C201+K90+C220 -> 4.294295546 | D224: MtCO2

Sheet 6
B2: Consommation d’électricité
B5: Tableau de bord du poste | F5: Indications du guide sectoriel
B6: Emissions totales du poste | C6: =C11 -> 0.8145749261 | D6: MtCO2e/an | F6: Sources potentielles | H6: Achat d’électricité
B7: Version | C7: =C10 -> v1.0.g | F7: Données spécifiques | H7: Il s’agit de récupérer les consommations d’électricité utilisées pour les besoins des locaux contrôlés par l’établissement, à partir du suivi interne réalisé ou des factures (en kWh)
B8: Satisfaction | C8: =C12 -> Bon ordre de grandeur
B10: Numéro de version | C10: v1.0.g
B11: Emissions totales | C11: =C167 -> 0.8145749261 | D11: MtCO2e
B12: Satisfaction vis-à-vis de la version | C12: Bon ordre de grandeur
B14: Carte d'identité de la version
B15: Hypothèses | C15: Hyp 1 : Les données du CEREN sur le tertiaire sont transposables aux établissements de santé hors division 86 Hyp 2 : On suppose que la part de l'électricité dédiée à la cuisson est similaire pour les établissements de la division 86 et pour les établissements hors division 86 Hyp 3 : La consommation d'énergie par agent est similaire dans l'administration de la santé, dans l'administration publique et dans la complémentaire santé
B16: Données et sources | C16: (1) Données énergie, 1990-2019 du secteur tertiaire, Ceren, 21/12/2020, https://www.ceren.fr/publications/les-publications-du-ceren/ (2) Tableau-maître v8.51, Association Bilan Carbone (3) ADEME Electricité - 2019 - mix moyen - consommation, France continentale, https://bilans-ges.ademe.fr/fr/basecarbone/donnees-consulter/liste-element?recherche=Electricit%C3%A9 (4) Décarbonons l'administration publique, https://theshiftproject.org/article/decarboner-ladministration-publique-rapport-octobre-2021/
B17: Méthodologie | C17: Même méthode que pour poste 1. Ici on ne prend pas en compte l'électricité dédiée à la cuisson car cette dernière est déjà prise en compte dans le facteur d'émissions de l'alimentation (poste 9.alimentaire)
B18: Données manquantes
B19: Limites, pistes d'amélioration
B20: Entités du périmètre concernées | C20: Tout le périmètre
B21: Commentaires généraux | C21: Bon odg
B22: Date | C22: 2023-01-16
B26: Partie 0 : Synthèse des résultats
C28: Empreinte carbone totale de l'électricité(hors cuisson) (MtCO2) | F28: Consommation (en GWh)
B29: Etablissements d'officine | C29: =$C144*($C88/$C$94) -> 0.01251523986 | F29: Chauffage | G29: Eau chaude sanitaire | H29: Cuisson | I29: Refroidissement/climatisation | J29: Spécifique | K29: Autres usages
B30: Médecine libérale (hors établissements d'officine) | C30: =$K$76*($C89/($C$94)) -> 0.1085356118 | E30: Médecine libérale (hors établissements d'officine) | F30: =$D$69*($C89/($C$94)) -> 203.481713 | G30: =$D$70*($C89/($C$95)) -> 157.7496077 | H30: =$D$71*($C89/($C$95)) -> 102.9433809 | I30: =$D$72*($C89/($C$95)) -> 488.1358366 | J30: =$D$73*($C89/($C$95)) -> 1039.525524 | K30: =$D$74*($C89/($C$95)) -> 80.13145142
B31: établissements hospitaliers | C31: =$K$76*($C90/$C$94) -> 0.2941680206 | E31: établissements hospitaliers | F31: =$D$69*($C90/($C$95)) -> 614.4851204 | G31: 427.5545057 | H31: 279.0111937 | I31: 1323.012332 | J31: 2817.463879 | K31: 217.1831906
B32: établissements d'accueil pour personnes âgées | C32: =$C$144*($C91/($C$95)) -> 0.2150234726 | E32: Total | F32: =SUM(F30:F31) -> 817.9668334 | G32: 585.3041134 | H32: 381.9545747 | I32: 1811.148169 | J32: 3856.989403 | K32: 297.314642
B33: établissements d'accueil pour enfants handicapés | C33: 0.0377158449
B34: établissements d'accueil pour adultes handicapés | C34: 0.1005201729
B35: Administration publique et complémentaire santé | C35: =C162 -> 0.04466733495
B36: Total | C36: =SUM(C29:C34) -> 0.7684783626
B59: Partie I: Estimation de l'empreinte carbone de l'énergie hors électricité dans les établissements de santé de la division 86 CEREN
B61: Les activités pour la santé humaine décrites dans cette division s'exercent sous des formes variées, publiques ou privées, en pratique libérale ou en établissement, sous la responsabilité de médecins ou de personnel para médical. On ne vise pas ici les caractéristiques réglementaires des professions de santé, salariées ou libérales, mais celles des unités de production. Cette division comprend les activités des établissements hospitaliers de court ou long séjour, publics ou privés, sous la responsabilité de médecins, qui offrent des services d'hébergement et qui assurent un diagnostic et un traitement médical aux patients. Elle couvre les activités de pratique médicale et de pratique dentaire de nature générale ou spécialisée, correspondant à des formules de consultation, de diagnostic, de soins et de prescriptions, au cabinet du praticien. Cette division comprend, en outre, les activités afférentes à la santé humaine qui ne sont pas dispensées dans des hôpitaux ou par des médecins, mais généralement exercées par des praticiens paramédicaux exécutant sous leur responsabilité des actes prescrits par un médecin.
B63: La division 86 couvre donc les établissements hospitaliers, ainsi que la médecine de ville. Cela ne comprend pas les pharmacies.
B65: Etape de calcul
B67: On ne prends pas ici en compte l'énergie destinée à la cuisson, cette énergie étant comptée dans le facteur d'émission de l'alimentation (poste 9.alimentaire)
B68: Énergie consommée | C68: Usages | D68: 2019 | E68: Unités | F68: 2019 | G68: Unités | H68: FE | I68: Unité | J68: Source | K68: Empreinte carbone | L68: Unité | M68: (1)
B69: Électricité | C69: Chauffage | D69: 754.9856089 | E69: GWh | H69: 0.0607 | I69: kgCO2e/kWh | J69: ADEME Electricité - 2019 - mix moyen - consommation, France continentale | K69: =D69*10^6*H69 -> 45827626.46 | L69: kgCO2e
B70: Électricité | C70: Eau chaude sanitaire | D70: 525.3137759 | E70: GWh | H70: 0.0607 | I70: kgCO2e/kWh | J70: ADEME Electricité - 2019 - mix moyen - consommation, France continentale | K70: 31886546.2 | L70: kgCO2e
B71: Électricité | C71: Cuisson | D71: 342.8064066 | E71: GWh | H71: 0.0607 | I71: kgCO2e/kWh | J71: ADEME Electricité - 2019 - mix moyen - consommation, France continentale | K71: 20808348.88 | L71: kgCO2e
B72: Électricité | C72: Refroidissement/climatisation | D72: 1625.515798 | E72: GWh | H72: 0.0607 | I72: kgCO2e/kWh | J72: ADEME Electricité - 2019 - mix moyen - consommation, France continentale | K72: 98668808.97 | L72: kgCO2e
B73: Électricité | C73: Spécifique | D73: 3461.669961 | E73: GWh | H73: 0.0607 | I73: kgCO2e/kWh | J73: ADEME Electricité - 2019 - mix moyen - consommation, France continentale | K73: 210123366.6 | L73: kgCO2e
B74: Électricité | C74: Autres usages | D74: 266.8415848 | E74: GWh | H74: 0.0607 | I74: kgCO2e/kWh | J74: ADEME Electricité - 2019 - mix moyen - consommation, France continentale | K74: 16197284.2 | L74: kgCO2e
G75: Total électricité (hors cuisson): | K75: =SUM(K69:K74)-K71 -> 402703632.4 | L75: kgCO2e
K76: =K75/10^9 -> 0.4027036324 | L76: Mtco2
B79: Partie II: Estimation de l'empreinte carbone de l'électricité dans les autres établissements couverts par notre périmètre
B81: Hyp 1 : Les données du CEREN sur le tertiaire sont transposables aux établissements de santé hors division 86
B83: Méthodo
B84: Dans cette partie, nous utilisons les données des surfaces des établissements d'officine, des établissements pour personnes agées et pour personnes handicapées calculées poste 10.bâtiments
B85: On utilise ensuite les données de CEREN pour estimer la consommation d'énergie de ces établissements.
B87: Type d'établissement | C87: Surface (en m2)
B88: Etablissements d'officine | C88: ='10.bâtiments'!D84 -> 2159100
B89: Médecine libérale (hors établissements d'officine) | C89: ='10.bâtiments'!C107 - '10.bâtiments'!D84 -> 17073700
B90: établissements hospitaliers | C90: ='10.bâtiments'!C108 -> 46275470.8
B91: établissements d'accueil pour personnes âgées | C91: ='10.bâtiments'!C172 -> 33293286.27
B92: établissements d'accueil pour enfants handicapés | C92: ='10.bâtiments'!C231 -> 5839755.103
B93: établissements d'accueil pour adultes handicapés | C93: ='10.bâtiments'!C232 -> 15564100.29
B94: Total division 86 CEREN | C94: =C89+C90 -> 63349170.8
B95: Total santé hors secteur 86 CEREN | C95: =C88+C91+C93+C92 -> 56856241.66
B97: Etape de calcul
B98: Méthodo
B99: On va estimer le type de chauffage par pourcentage de surface
B100: Hyp1 : Les données du CEREN sur le tertiaire sont transposables aux établissements de santé hors division 86
B102: Évolution des surfaces totales du secteur tertiaire selon l'énergie de chauffage (en millions de m2)
B103: Énergie de chauffage | C103: 1990 | D103: 1995 | E103: 2000 | F103: 2005 | G103: 2010 | H103: 2015 | I103: 2019 | J103: Part des surfaces | K103: (1)
B104: Gaz | C104: 229.6356268 | D104: 289.3386548 | E104: 336.4497088 | F104: 380.8904404 | G104: 421.0641631 | H104: 445.6981636 | I104: 460.1096803 | J104: =I104/SUM(I104:I107) -> 0.4605855013
B105: Fioul | C105: 230.6133761 | D105: 208.2522007 | E105: 203.4338357 | F105: 190.0445744 | G105: 167.6069632 | H105: 149.109982 | I105: 147.5245178 | J105: =I105/SUM(I104:I107) -> 0.1476770798
B106: Autres combustibles | C106: 75.01269585 | D106: 80.43882495 | E106: 84.92552889 | F106: 87.94925027 | G106: 92.60041773 | H106: 96.55099292 | I106: 100.0912241 | J106: =I106/SUM(I104:I107) -> 0.1001947331
B107: Électricité | C107: 127.5486814 | D107: 154.8030625 | E107: 175.2820405 | F107: 201.2185465 | G107: 239.2245262 | H107: 272.3157829 | I107: 291.2414993 | J107: =I107/SUM(I104:I107) -> 0.2915426858
B108: Total général | C108: 662.8103801 | D108: 732.8327429 | E108: 800.0911139 | F108: 860.1028116 | G108: 920.4960703 | H108: 963.6749215 | I108: 998.9669215 | J108: =SUM(J104:J107) -> 1
B110: On en déduit donc la quantité de surfaces chauffées par type d'énergie pour les établissements hors division 86:
B112: Énergie de chauffage | C112: surface m2
B113: Gaz | C113: =C95*J104 -> 26187160.57
B114: Fioul | C114: =C95*J105 -> 8396363.737
B115: Autres combustibles | C115: =C95*J106 -> 5696695.96
B116: Électricité | C116: =C95*J107 -> 16576021.4
B118: Etape de calcul
B119: On peut maintenant utiliser la consommation d'électricité par surface pour obtenir la consommation totale:
E120: T4 : issu du tableau-maître, onglet Utilitaires (2)
B121: Tertaire, électrictié, consos moyenne | C121: Spécifique | D121: Tous usages
C122: kWh/m².an | D122: kWh/m².an | E122: Incertitude
B123: Bureaux, France | C123: 121 | D123: 283 | E123: 0.3
B124: Santé, France | C124: 67 | D124: 221 | E124: 0.3
B125: Moyenne toutes branches, France | C125: 83 | D125: 222 | E125: 0.3
B127: On compte la consommation d'électricité tous usages pour les surfaces chauffées à l'électricité, et spécifique pour les autres surfaces
B129: Consommation d'électricité: | C129: =D124*C116+SUM(C113:C115)*C124 -> 6362075486 | D129: kWh
B132: Facteur d'émission de l'électricité | C132: Unité | D132: Source
B133: 0.0607 | C133: kgCO2e/kWh | D133: (3) ADEME Electricité - 2019 - mix moyen - consommation, France continentale
B135: Etape de calcul
B137: Estimons l'empreinte carbone
B139: Empreinte carbone de l'électricité | C139: =C129*B133/10^9 -> 0.386177982 | D139: MtCO2
B141: Hyp 2 : On suppose que la part de l'électricité dédiée à la cuisson est similaire pour les établissements de la division 86 et pour les établissements hors division 86
B143: Part de l'électricité dédiée à la cuisson (division 86): | C143: =D71/SUM(D69:D74) -> 0.04913284581
B144: Empreinte carbone de l'électricité (hors cuisson): | C144: =C139*(1-C143) -> 0.3672039588
B146: Partie III: Emissions de l'administration publique et de la complémentaire santé
B148: Etape de calcul
B149: Estimons les émissions par personnel dans l'administration publique, à l'aide des travaux du rapport "Administration publique" du Shift Project (5)
D151: Unité | E151: Source
B152: Emissions liées à la consommation d'électricité | C152: =1.17 + 0.62 -> 1.79 | D152: MtCO2e | E152: (4)
B153: Effectif pris en compte | C153: =5951793 -> 5951793 | E153: (4)
B155: Hyp 3 : La consommation d'énergie par agent est similaire dans l'administration de la santé, dans l'administration publique et dans la complémentaire santé
B156: Le tableau suivant provient de la feuille de calcul annexe intitulée "Effectif admin & comp santé"
C157: Effectifs
B158: Administration de la santé | C158: ='Annexe 2'!C5 -> 98433.71
B159: Complémentaire santé | C159: ='Annexe 2'!C6 -> 50086.25171
B162: Emissions de l'administration publique et de la complémentaire santé | C162: =C152*(C158+C159)/C153 -> 0.04466733495 | D162: MtCO2e
B165: Partie IV: Synthèse des calculs
B167: Total électricité (hors cuisson) | C167: =C144+K76+C162 -> 0.8145749261 | D167: MtCO2

Sheet 7
B2: Consommation de vapeur, chaleur ou froid
B5: Tableau de bord du poste | F5: Indications du guide sectoriel
B6: Emissions totales du poste | C6: =C11 -> 0.1653373563 | D6: MtCO2e/an | F6: Sources potentielles | H6: Achat de vapeur, de chaleur ou du froid via un réseau collectif
B7: Version | C7: =C10 -> v1.0.g | F7: Données spécifiques | H7: Il s’agit de récupérer les consommations provenant des réseaux de chaleurs (ou de froid) utilisées pour les besoins des locaux contrôlés par l’établissement, à partir du suivi interne réalisé ou des factures (en kWh, litres ou m3)
B8: Satisfaction | C8: =C552 -> 0
B10: Numéro de version | C10: v1.0.g
B11: Emissions totales | C11: =C121 -> 0.1653373563 | D11: MtCO2e
B12: Satisfaction vis-à-vis de la version | C12: Bon ordre de grandeur
B14: Carte d'identité de la version
B15: Hypothèses | C15: Hyp 1: On suppose que les consommations des réseaux de vapeur sont inclus dans les données de réseaux de chaleur Hyp 2 : Les données du CEREN sur la division 86 sont transposables aux autres établissements de santé Hyp 3 : On suppose que la consommation de froid surfacique dans le secteur de la santé est la même que celle du secteur tertaire
B16: Données et sources | C16: (1) Données énergie, 1990-2019 du secteur tertiaire, Ceren, 21/12/2020, https://www.ceren.fr/publications/les-publications-du-ceren/ (2) Tableau-maître v8.51, Association Bilan Carbone (3) Répartition des énergies renouvelables en France, https://www.statistiques.developpement-durable.gouv.fr/edition-numerique/chiffres-cles-energies-renouvelables-2021/1-les-energies-renouvelables-en-france (4) Les réseaux de chaleur et de froid, SNCU, https://www.fedene.fr/wp-content/uploads/sites/2/2021/11/2021-Enquete-reseaux-de-chaleur-et-de-froid-Rapport-Global-2021-version-finale.pdf (5) Estimation des surfaces chauffées, p.84, https://pastel.archives-ouvertes.fr/tel-03228301/document (6) Estimation de la part des surfaces chauffées sur les surfaces totales, https://archive-ouverte.unige.ch/unige:98199/ATTACHMENT01
B17: Méthodologie | C17: Chaleur: même méthode que pour poste 1 Froid: on récupère la consommation de froid dans le secteur du tertiaire, puis on rapporte cette consommation à la surface considérée
B18: Données manquantes
B19: Limites, pistes d'amélioration
B20: Entités du périmètre concernées | C20: Tout, sauf bâtiments administratifs
B21: Commentaires généraux | C21: Bon odg
B22: Personne à l'origine de cette version | C22: Baptiste
B23: Date | C23: 2022-12-12
B26: Partie 0 : Synthèse des résultats
D27: Consommation des réseaux de chaleur (en GWh)
C28: Empreinte carbone totale des réseaux de chaleur et de froid (MtCO2) | D28: Chauffage | E28: Eau chaude sanitaire | F28: Empreinte carbone des réseaux de chaleur (MtCO2) | G28: Empreinte carbone des réseaux de froid (MtCO2)
B29: Etablissements d'officine | C29: =$C$121*($C86/($C$92+$C$93)) -> 0.002969748854 | D29: =$D$68*($C86/($C$92+$C$93)) -> 10.83946263 | E29: =$D$69*($C86/($C$92+$C$93)) -> 3.027276458 | F29: =$C$119*($C86/($C$92+$C$93)) -> 0.002945493649 | G29: =$J$115*($C86/($C$92+$C$93)) -> 2.425520514e-05
B30: Médecine libérale (hors établissements d'officine) | C30: 0.02348413738 | D30: 85.71614708 | E30: 23.93905334 | F30: 0.02329233241 | G30: 0.0001918049631
B31: établissements hospitaliers | C31: 0.06364991264 | D31: 232.3195945 | E31: 64.88288794 | F31: 0.06313005666 | G31: 0.0005198559756
B32: établissements d'accueil pour personnes âgées | C32: 0.04579347818 | D32: 167.1443344 | E32: 46.68055289 | F32: 0.04541946332 | G32: 0.0003740148618
B33: établissements d'accueil pour enfants handicapés | C33: 0.008032331075 | D33: 29.31768201 | E33: 8.187926981 | F33: 0.007966727603 | G33: 6.560347273e-05
B34: établissements d'accueil pour adultes handicapés | C34: 0.02140774813 | D34: 78.13741072 | E34: 21.82244194 | F34: 0.02123290192 | G34: 0.0001748462068
B35: Total | C35: =SUM(C29:C34) -> 0.1653373563 | D35: =SUM(D29:D34) -> 603.4746314 | E35: =SUM(E29:E34) -> 168.5401395 | F35: =SUM(F29:F34) -> 0.1639869756 | G35: =SUM(G29:G34) -> 0.001350380685
B58: Partie I: Estimation de l'empreinte carbone de l'énergie hors électricité dans les établissements de santé de la division 86 CEREN
B60: Les activités pour la santé humaine décrites dans cette division s'exercent sous des formes variées, publiques ou privées, en pratique libérale ou en établissement, sous la responsabilité de médecins ou de personnel para médical. On ne vise pas ici les caractéristiques réglementaires des professions de santé, salariées ou libérales, mais celles des unités de production. Cette division comprend les activités des établissements hospitaliers de court ou long séjour, publics ou privés, sous la responsabilité de médecins, qui offrent des services d'hébergement et qui assurent un diagnostic et un traitement médical aux patients. Elle couvre les activités de pratique médicale et de pratique dentaire de nature générale ou spécialisée, correspondant à des formules de consultation, de diagnostic, de soins et de prescriptions, au cabinet du praticien. Cette division comprend, en outre, les activités afférentes à la santé humaine qui ne sont pas dispensées dans des hôpitaux ou par des médecins, mais généralement exercées par des praticiens paramédicaux exécutant sous leur responsabilité des actes prescrits par un médecin.
B62: La division 86 couvre donc les établissements hospitaliers, ainsi que la médecine de ville. Cela ne comprend pas les pharmacies.
B64: Etape de calcul
B66: On ne prends pas ici en compte l'énergie destinée à la cuisson, cette énergie étant comptée dans le facteur d'émission de l'alimentation (poste 9.alimentaire)
B67: Énergie consommée | C67: Usages | D67: 2019 | E67: Unités | F67: 2019 | G67: Unités | H67: FE | I67: Unité | J67: Source | K67: Empreinte carbone | L67: Unité | M67: (1)
B68: Chaleur | C68: Chauffage | D68: 603.4746314 | E68: GWh PCI | H68: 0.111943958 | I68: kgCO2 / kWh | J68: https://www.bilans-ges.ademe.fr/fr/accueil/documentation-gene/index/page/Reseau_de_chaleur. FE moyen (après avoir retirer les valeurs nulles et les F) | K68: =D68*10^6*H68 -> 67555338.78 | L68: kgCO2e
B69: Chaleur | C69: Eau chaude sanitaire | D69: 168.5401395 | E69: GWh PCI | H69: 0.111943958 | I69: kgCO2 / kWh | J69: https://www.bilans-ges.ademe.fr/fr/accueil/documentation-gene/index/page/Reseau_de_chaleur. FE moyen (après avoir retir les valeurs nulles et les F) | K69: 18867050.3 | L69: kgCO2e
B70: Chaleur | C70: Cuisson | D70: 0 | E70: GWh PCI | H70: 0.111943958 | I70: kgCO2 / kWh | J70: https://www.bilans-ges.ademe.fr/fr/accueil/documentation-gene/index/page/Reseau_de_chaleur. FE moyen (après avoir retir les valeurs nulles et les F) | K70: 0 | L70: kgCO2e
B71: Chaleur | C71: Refroidissement/climatisation | D71: 0 | E71: GWh PCI | H71: 0.111943958 | I71: kgCO2 / kWh | J71: https://www.bilans-ges.ademe.fr/fr/accueil/documentation-gene/index/page/Reseau_de_chaleur. FE moyen (après avoir retir les valeurs nulles et les F) | K71: 0 | L71: kgCO2e
B72: Chaleur | C72: Autres usages | D72: 0 | E72: GWh PCI | H72: 0.111943958 | I72: kgCO2 / kWh | J72: https://www.bilans-ges.ademe.fr/fr/accueil/documentation-gene/index/page/Reseau_de_chaleur. FE moyen (après avoir retir les valeurs nulles et les F) | K72: 0 | L72: kgCO2e
I73: Total chaleur (sans cuisson): | K73: =K68+K69 -> 86422389.07 | L73: kgCO2e
K74: =K73/10^9 -> 0.08642238907 | L74: Mtco2
B77: Partie II: Estimation de l'empreinte carbone des réseaux de chaleur dans les autres établissements couverts par notre périmètre
B79: Hyp 2 : Les données du CEREN sur la division 86 sont transposables aux autres établissements de santé
B81: Méthodo
B82: Dans cette partie, nous utilisons les données des surfaces des établissements d'officine, des établissements pour personnes agées et pour personnes handicapées calculées poste 10.bâtiments
B83: On utilise ensuite les données de CEREN pour estimer la consommation d'énergie de ces établissements.
B85: Type d'établissement | C85: Surface (en m2)
B86: Etablissements d'officine | C86: ='10.bâtiments'!D84 -> 2159100
B87: Médecine libérale (hors établissements d'officine) | C87: ='10.bâtiments'!C107 - '10.bâtiments'!D84 -> 17073700
B88: établissements hospitaliers | C88: ='10.bâtiments'!C108 -> 46275470.8
B89: établissements d'accueil pour personnes âgées | C89: ='10.bâtiments'!C172 -> 33293286.27
B90: établissements d'accueil pour enfants handicapés | C90: ='10.bâtiments'!C231 -> 5839755.103
B91: établissements d'accueil pour adultes handicapés | C91: ='10.bâtiments'!C232 -> 15564100.29
B92: Total division 86 CEREN | C92: =C87+C88 -> 63349170.8
B93: Total santé hors secteur 86 CEREN | C93: =C86+C89+C91+C90 -> 56856241.66
B96: Nous pouvons en déduire la consommation d'énergie des établissements de santé hors division 86:
B97: Énergie consommée | C97: Usages | D97: 2019 | E97: Unités | F97: 2019 | G97: Unités | H97: FE | I97: Unité | J97: Source | K97: Empreinte carbone | L97: Unité
B98: Chaleur | C98: Chauffage | D98: =D68*$C$93/$C$92 -> 541.6219194 | E98: GWh PCI | H98: 0.111943958 | I98: kgCO2 / kWh | J98: https://www.bilans-ges.ademe.fr/fr/accueil/documentation-gene/index/page/Reseau_de_chaleur. FE moyen (après avoir retir les valeurs nulles et les F) | K98: =D98*10^6*H98 -> 60631301.38 | L98: kgCO2e
B99: Chaleur | C99: Eau chaude sanitaire | D99: 151.2657353 | E99: GWh PCI | H99: 0.111943958 | I99: kgCO2 / kWh | J99: https://www.bilans-ges.ademe.fr/fr/accueil/documentation-gene/index/page/Reseau_de_chaleur. FE moyen (après avoir retir les valeurs nulles et les F) | K99: 16933285.12 | L99: kgCO2e
B100: Chaleur | C100: Cuisson | D100: 0 | E100: GWh PCI | H100: 0.111943958 | I100: kgCO2 / kWh | J100: https://www.bilans-ges.ademe.fr/fr/accueil/documentation-gene/index/page/Reseau_de_chaleur. FE moyen (après avoir retir les valeurs nulles et les F) | K100: 0 | L100: kgCO2e
B101: Chaleur | C101: Refroidissement/climatisation | D101: 0 | E101: GWh PCI | H101: 0.111943958 | I101: kgCO2 / kWh | J101: https://www.bilans-ges.ademe.fr/fr/accueil/documentation-gene/index/page/Reseau_de_chaleur. FE moyen (après avoir retir les valeurs nulles et les F) | K101: 0 | L101: kgCO2e
B102: Chaleur | C102: Autres usages | D102: 0 | E102: GWh PCI | H102: 0.111943958 | I102: kgCO2 / kWh | J102: https://www.bilans-ges.ademe.fr/fr/accueil/documentation-gene/index/page/Reseau_de_chaleur. FE moyen (après avoir retir les valeurs nulles et les F) | K102: 0 | L102: kgCO2e
H104: Total chaleur (hors cuisson): | K104: =K98+K99 -> 77564586.49 | L104: kgCO2e
K105: =K104/10^9 -> 0.07756458649 | L105: Mtco2
B106: Partie III: les réseaux de froid
B108: Hyp 3 : On suppose que la consommation de froid surfacique dans le secteur de la santé est la même que celle du secteur tertaire
B111: Surface totale de tertiaire (m2) | C111: Source | D111: Surface totale de la santé (m2) | E111: Source | F111: Part de le surface chauffée sur la surface totale | G111: Source | H111: Surface totale chauffée de la santé (m2)
B112: 973000000 | C112: (5) | D112: ='10.bâtiments'!C252 -> 120205412.5 | E112: Poste 10.bâtiments | F112: 0.7 | G112: (6) | H112: =D112*F112 -> 84143788.72
C114: Energie consommée par le tertiaire pour les réseaux de froid | D114: Unité | E114: Facteur d'émission | F114: Unité | G114: Source | H114: Emission de CO2 du tertiaire | I114: Unité | J114: Emission de CO2 de la santé | K114: Unité
B115: Energie consommée: | C115: =0.81*0.918 -> 0.74358 | D115: TWh | E115: 21 | F115: gCO2/kWh | G115: (4) | H115: =C115*E115*10^-3 -> 0.01561518 | I115: MtCO2e | J115: =H115*H112/B112 -> 0.001350380685 | K115: MtCO2e
B117: Partie IV: Synthèse des calculs
B119: Total chaleur (hors cuisson) | C119: =K105+K74 -> 0.1639869756 | D119: MtCO2
B121: Total chaleur + froid | C121: =C119+J115 -> 0.1653373563 | D121: MtCO2

Sheet 9
B2: Achat de produits et services
B5: Tableau de bord du poste | F5: Indications du guide sectoriel
B6: Emissions totales du poste | C6: =C15 -> 31.88441607 | D6: MtCO2e/an | F6: Sources potentielles | H6: -Achat de médicaments -Achat de produits alimentaires -Achat de dispositifs médicaux -Services fortement matériels (hors transport) -Services faiblement matériels -Linge -Fournitures administratives -produits spécifiques
B7: Version | C7: =B15 -> v1.12 | F7: Données spécifiques | H7: - Il s'agit d'estimer l'intensité carbone associée à la vente de médicaments par les grands laboratoires pharmaceutiques puis de trouver le flux monétaire associé à cette vente en france. AInsi, en aillant la quantité de médicaments vendue en france et le FE en kgCO2/€ de médicament on peut en déduire l'empreinte carbone associée à ce sous poste - Il s’agit de récupérer le nombre de repas servis dans les entités du secteur de la santé (en partant d'une courbe nombre de repas serivs/lits+places), puis à partir de l'empreinte carbone associée à un repas moyen (source: base carbone de l'ademe), de retrouver l'empreinte générale. -Pour les dispositifs médicaux, nous procéderont de la même manière que pour les médicaments ou nous utiliserons les approximations et hypothèses faites dans les BC récuépés -Pas encore estimé -Pas encore estimé -Comme les repas: on part des rapports d'activité des centres hospitaliers, on trace la tonne de linges traitée en fonction du nombre de lit+places, on extrapole au niveau nationale. Il faudra sûrement rajouter les vêtements utilisés dans les cabients -Pas encore estimé -Pas encore estimé
B8: Satisfaction | C8: =D15 -> Bon ordre de grandeur
E13: Faire les liens avec les fiches d'identité des versions directement (pas avec le tableau de bord, car celui-ci est mis à jour à chaque nouvelle version).
B14: Version du poste | C14: Emissions (MtCO2e) | D14: Satisf. | E14: Version sous-poste médicament | F14: Emissions (MtCO2e) | G14: Satisf. | H14: Version sous-poste produits alimentaires | I14: Emissions (MtCO2e) | J14: Satisf. | K14: Version sous-poste dispositifs médicaux | L14: Emissions (MtCO2e) | M14: Satisf. | N14: Version sous-poste Linge | O14: Emissions (MtCO2e) | P14: Satisf. | Q14: Version sous-poste optique | R14: Emissions (MtCO2e) | S14: Satisf. | T14: Version sous-poste fournitures administratives | U14: Emissions (MtCO2e) | V14: Satisf. | W14: Version sous-poste services | X14: Emissions (MtCO2e) | Y14: Satisf.
B15: v1.12 | C15: =SUM(I15,L15,F15,O15,U15,X15) -> 31.88441607 | D15: Bon ordre de grandeur | E15: v1.0.b | F15: ='9.médicaments'!C12 -> 14.45 | H15: v1.0.g | I15: ='9.alimentaire'!C18 -> 5.271295659 | K15: v1.0.c | L15: ='9.dispositifs_médicaux'!C12 -> 10.19290117 | N15: V1.1 | O15: ='9. Linge '!C6 -> 0.8296500516 | Q15: Inclus DM | T15: v1.0.b | U15: ='9.fournitures_administratives'!C6 -> 0.04770248864 | W15: v1.0.a | X15: ='9.services'!C6 -> 1.0928667

Sheet 9.alimentaire
B2: Achat de produits et services / Sous-poste Alimentaire
B5: Tableau de bord du poste | F5: Indications du guide sectoriel
B6: Emissions totales du poste | C6: =C18 -> 5.271295659 | D6: MtCO2e/an | F6: Sources potentielles | H6: -Achats d'aliments
B7: Version | C7: =C17 -> v1.0.g | F7: Données spécifiques | H7: Il s’agit de récupérer le nombre de repas servi, le menu de ces repas…
B8: Satisfaction | C8: Bon ordre de grandeur
B17: Numéro de version | C17: v1.0.g
B18: Emissions totales | C18: =C246 -> 5.271295659 | D18: MtCO2e
B19: Satisfaction vis-à-vis de la version | C19: Bon ordre de grandeur
B21: Carte d'identité de la version
B22: Hypothèses | C22: Hyp1: le nombre de repas servis en France est proportionnel au nombre de lits et de places dans les établissements. Hyp 2 : On suppose que les petits déjeuners, goûters, collations, et boissons servis représentent un repas chaque deux repas comptabilisés Hyp3 : Chaque professionnel libéral consomme un repas par jour dans le cadre de ses fonctions Hyp4 : Aucun repas n'est servi aux patients dans le cadre des consultations dans les cabinets libéraux Hyp5 : Pour les infirmiers, les masseurs kiné, les ergothérapeutes et les psychomotriciens, on considère que les libéraux ou mixtes mangent tous à l'extérieur de l'hôpital (alors que normalement il faudrait uniquement prendre en compte les libéraux exclusifs) Hyp6 : Les professionnels libéraux travaillent 5 jours par semaine, prennent 25 jours de congés et il y a 11 jours fériés par an. Ils travaillent donc 225 jours. Hyp7 : Pour les établissements pour personnes âgées ou en situation de handicap, on utilise la même relation nombre de places,lits/nombre de repas servis
B23: Données et sources | C23: (1) LES CHIFFRES CLÉS DE L’OFFRE DE SOINS, 2017, Page 5 https://solidarites-sante.gouv.fr/IMG/pdf/dgos_cc_2018_02_16_a_web_pages_hd.pdf (2) LES CHIFFRES CLÉS DE L’OFFRE DE SOINS, 2017, Page 15 https://solidarites-sante.gouv.fr/IMG/pdf/dgos_cc_2018_02_16_a_web_pages_hd.pdf (3) Base carbone de l'ADEME, repas moyen, https://www.bilans-ges.ademe.fr/fr/accueil/documentation-gene/index/page/Repas (4)Répartition du nombre de lits des établissements médico-sociaux par type, https://www.insee.fr/fr/statistiques/4277754?sommaire=4318291 (5)Nombre de résidents par catégorie d'établissement https://drees.solidarites-sante.gouv.fr/sites/default/files/er1015.pdf (6) APPROCHE DU COUT COMPLET DES PERTES ET GASPILLAGE ALIMENTAIRE EN RESTAURATION COLLECTIVE ,Page 45, https://presse.ademe.fr/wp-content/uploads/2016/09/cout-complet-pertes-gaspillage-restauration-collective-rapport.pdf (7) APPROCHE DU COUT COMPLET DES PERTES ET GASPILLAGE ALIMENTAIRE EN RESTAURATION COLLECTIVE ,Page 5, https://presse.ademe.fr/wp-content/uploads/2016/09/cout-complet-pertes-gaspillage-restauration-collective-rapport.pdf (8) Données sur les établissements pour individus handicapés, "télecharger les données", https://drees.solidarites-sante.gouv.fr/publications/etudes-et-resultats/loffre-daccueil-des-personnes-handicapees-dans-les-0 (9) Périmètre secteur santé v1.10, sur Nextcloud au chemin Projet/PTEF/25 BC services/Livrables/périmètres/santé (10) données sur les professionels travaillant dans les cabinets médicaux, https://www.ompl.fr/images/Publications/EtudesBranches/sante/Cabinetsmedicaux/2014-_etude_cab._medicaux-portrait_statistique.pdf (11) Rapport sur la restauration collective, https://presse.ademe.fr/wp-content/uploads/2016/09/cout-complet-pertes-gaspillage-restauration-collective-rapport.pdf
B24: Méthodologie | C24: Pour estimer l'empreinte carbone associée à l'alimentation dans le secteur de la santé, il faut commencer par estimer le nombre de repas servis chaque année. Pour cela nous avons eu 2 approches "bottom up" différentes en fonction des entités conernées. Pour les établissements de santé privés et publics, les EHPA et les établissements et servces pour enfants et adultes handicapés nous avons estimé le nombre de repas servis en utilisant le nombre de lits et de places dans ces établissements. Pour pouvoir faire cela nous avons préalablement défini une relation entre le nombre de lits et places et le nombre de repas servis par an Pour les autres entités qui composent notre périmètre (notamment les professionnels libéraux), nous ne pouvons pas partir du nombre de lits et de places car cela n'a pas de sens. Aussi, pour ces entités, nous n'avons pas à prendre en compte les repas des patients car ces entités n'ont pas pour vocation à les acceuillir. Nous avons donc uniquement pris en compte les repas consommés par les professionnels de santé et le personnel non médical.
B25: Données manquantes | C25: Données sur les collations/goûter/petits déjeuner
B26: Limites, pistes d'amélioration | C26: Etudier les caractéristiques des repas servis dans les établissements de santé et les EHPA. Appeler un CH pour demander si dans les repas servis il y a le petit dej.
B27: Entités du périmètre concernées | C27: Tout le périmètre
B28: Commentaires généraux
B29: Date | C29: 2022-12-08
B31: Partie 0: Synthèse des résultats
C34: EN millions de repas
C35: Nombre de repas(millions) | D35: Emissions (Mtco2)
B36: Etablissements de santé | C36: =1.5*762.1*C98/10^6 -> 549.8940171 | D36: =C36*$C$233/10^3 -> 1.457219145
B37: EHPA | C37: =1.5*762.1*(C156+C157+C158+C159)/10^6 -> 744.2741 | D37: 1.972326365
B38: ES "Handicap" | C38: =1.5*762.1*C123/10^6 -> 583.715253 | D38: 1.54684542
B39: Professions libérales | C39: =C215/10^6 -> 111.14415 | D39: =C39*$C$234/10^3 -> 0.226734066
B40: Administration et complémentaire santé | C40: =C226/10^6 -> 33.41699139 | D40: 0.06817066243
B41: Total | C41: =SUM(C36:C40) -> 2022.444511 | D41: =SUM(D36:D40) -> 5.271295659
C43: Nombre de repas
B44: Établissements de santé | C44: 366.5960114
B45: EHPA | C45: 496.1827333
B46: ES "Handicap" | C46: 389.143502
B47: Total | C47: =SUM(C44:C46) -> 1251.922247
H48: Part des émissions associées aux achats d'aliments
C49: Nombre de lits et places
B50: Etablissements de santé | C50: =C98 -> 481034
B51: EHPA | C51: =SUM(C156:C159) -> 651073
B52: ES "Handicap" | C52: =C123 -> 510620
B53: Total | C53: =SUM(C50:C52) -> 1642727
B54: Partie I: Estimation du nombre de repas servis dans les établissements de santé, les EHPA et les ES "Handicap"
B55: Méthodo
B56: On cherche une relation entre le nombre de repas servis et le nombre de lits et places dans de telles entités
B57: Hyp1: le nombre de repas servis en France est proportionnel au nombre de lits et de places dans les établissements.
B58: Lim1 : L'étude qui va être présentée se repose sur une étude sur un échantillon de centres hospitaliers et d'hôpitaux. Il aurait fallu inclure des établissements et services pour enfants et adultes handicapés pour mener une étude sur un échantillon vraiment représentatif. Ou distinguer plusieurs catégories.
B61: Etape de calcul
O64: Nom | P64: Repas par an | Q64: lits et places | R64: source
O65: CH Nord deux sevre | P65: 704080 | Q65: =665+207 -> 872 | R65: https://www.chnds.fr/Ressources/FCK/files/Institutionnel/Chiffres%20cl%C3%A9s%202019%20_%20Version%20modifi%C3%A9e.pdf
O66: CH le mans | P66: 1340086 | Q66: 1693 | R66: http://www.ch-lemans.fr/media/chiffres_cles_chm_2015__mars_2016__058529800_1419_18032016.pdf et https://www.ch-lemans.fr/media/chiffres_cles_chm_2019.pdf
O67: Ch de perpignan | P67: 796543 | Q67: 1147 | R67: http://www.ch-perpignan.fr/fileadmin/user_upload/2019_RA_DG.pdf et http://www.ch-perpignan.fr/nous-connaitre/l-hopital/chiffres-cles-279.html
O68: CH de valence | P68: 605160 | Q68: 828 | R68: http://centrehospitalierdevalence.businesscatalyst.com/pdf/Chiffres%20clefs/plaquette%20chiffres%20cl%C3%A9s%202018.pdf
O69: CENTRE HOSPITALIER ALPES LEMAN | P69: 513767 | Q69: 703 | R69: https://ch-alpes-leman.fr/wp-content/uploads/2020/12/Chiffres-cle%cc%81s-2019.pdf
O70: CENTRE HOSPITALIER DE ROANNE | P70: 616916 | Q70: 996 | R70: file:///Users/mathisegnell/Downloads/0092703622_205_chiffre-cles-2018_07062019_definitif_comm.pdf
O71: CH de Niort | P71: 829846 | Q71: 1303 | R71: https://www.ch-niort.fr/sites/default/files/media/chiffres_cles_2019_0.pdf
O72: CENTRE HOSPITALIER DE LAVAUR | P72: 340000 | Q72: 605 | R72: https://ch-lavaur.fr/votre-centre-hospitalier/hopital-de-lavaur-en-chiffres
O73: CENTRE HOSPITALIER GUINGAMP | P73: 491730 | Q73: 584 | R73: http://www.ch-guingamp.fr/images/Ressources/PDF/chiffrescl%C3%A9s2017BDEF.pdf
O74: CH de bourges | P74: 595144 | Q74: =770+146 -> 916 | R74: https://www.ch-bourges.fr/wp-content/uploads/2020/10/chiffres-cles-2020.pdf
O75: Centre Hospitalierde Périgueux | P75: 881042 | Q75: 1272 | R75: http://www.ch-perigueux.fr/documents/user_upload/Chiffres_Cles_2019.pdf
O76: CENTRE HOSPITALIER DE SAUMUR | P76: 484270 | Q76: 455 | R76: https://ch-brive.fr/wp-content/uploads/2018/04/chiffres-cles-2017.pdf
O77: CH annecy genevois | P77: 1061376 | Q77: 1437 | R77: https://www.ch-annecygenevois.fr/sites/default/files/chiffres_cles_2019_-_v8.pdf
O78: CH de chinonais | P78: 460194 | Q78: 661 | R78: https://www.ch-chinon.fr/chiffres-cles.html
O79: CH de laval | P79: 797152 | Q79: =1029+127 -> 1156 | R79: file:///Users/mathisegnell/Downloads/survolez-ce-nouveau-document-pour-l-editer.pdf
O80: CH Reims | P80: 1991229 | R80: https://www.chu-reims.fr/le-chu/gouvernance/chiffres-cles
O81: CH de rambouillet | P81: 252327 | Q81: 464 | R81: http://www.ch-rambouillet.fr/Ressources/FCK/chiffres_HD_nocrop.pdf
O82: CH chateaubriant-Nozay-Pouance | P82: 614004 | Q82: 778 | R82: https://www.ch-cnp.fr/wp-content/uploads/2020/09/Plaquette-CH-CNP-activite-2019-v2.pdf
O83: CHU de toulouse | P83: 2505131 | Q83: 2951 | R83: https://www.chu-toulouse.fr/IMG/pdf/chu_toulouse_chiffres_cles_2019.pdf
B86: Résultat
B87: Nous trouvons une relation quasi-linéaire entre le nombre de repas servis et le nombre de lits et places dans les CH. Le coefficient de correlation est proche de 1.
B88: Nous prenons donc comme hypothèse que le nombre de repas est donnée par la fonction : | E88: f(x)=762,1x | G88: où x représente le nombre de lits et de places
B91: Etape de calcul
B92: On répertorie le nombre de lits et places dans nos entités considérées
B93: Lim2 : Les données trouvées ne correspondent pas toutes à la même année
B95: Nombre de lits et places dans les établissements de santé privés et publics | C95: Total | D95: Année | E95: Numéro de la source
B96: Nombre de lits | C96: 408245 | D96: 2017 | E96: (1)
B97: Nombre de places | C97: 72789 | D97: 2017 | E97: (2)
B98: Total | C98: =SUM(C96:C97) -> 481034 | D98: 2017 | E98: (2)
B101: Nombre de lits et places dans les établissements pour enfants et adultes handicapés | C101: Nombre de places | D101: Année | E101: Numéro de la source
B102: Établissements pour enfants | C102: 108900 | D102: 2018 | E102: (8)
B103: Dont : | D103: 2018 | E103: (8)
B104: Instituts médico-éducatif (IME) | C104: 70730 | D104: 2018 | E104: (8)
B105: Instituts thérapeutiques, éducatifs et pédagogiques (Itep)1 | C105: 15980 | D105: 2018 | E105: (8)
B106: Établissements pour enfants polyhandicapés | C106: 5680 | D106: 2018 | E106: (8)
B107: Instituts d'éducation motrice | C107: 7180 | D107: 2018 | E107: (8)
B108: Établissements pour jeunes déficients sensoriels2 | C108: 6740 | D108: 2018 | E108: (8)
B109: Établissements d'accueil temporaire | C109: 310 | D109: 2018 | E109: (8)
B110: Jardins d'enfants | C110: 170 | D110: 2018 | E110: (8)
B111: Établissements expérimentaux | C111: 1930 | D111: 2018 | E111: (8)
B112: Foyers d'hébergement pour enfants et adolescents handicapés7 | C112: 200 | D112: 2018 | E112: (8)
B113: Services pour enfants1, 3 | C113: 55790 | D113: 2018 | E113: (8)
B114: Établissements pour adultes | C114: 290240 | D114: 2018 | E114: (8)
B115: Dont : | D115: 2018 | E115: (8)
B116: Établissements et services d'aide pour le travail (Esat) | C116: 119830 | D116: 2018 | E116: (8)
B117: Centres de formation et d'orientation professionnelle4 | C117: 11230 | D117: 2018 | E117: (8)
B118: Foyers5 | C118: 154710 | D118: 2018 | E118: (8)
B119: Établissements d'accueil temporaire | C119: 820 | D119: 2018 | E119: (8)
B120: Établissement expérimental | C120: 3650 | D120: 2018 | E120: (8)
B121: Services pour adultes6 | C121: 55640 | D121: 2018 | E121: (8)
B122: Lieux de vie et d’accueil7 | C122: 40 | D122: 2018 | E122: (8)
B123: Total | C123: 510620 | D123: 2018 | E123: (8)
B126: Capacités des établissements d’hébergement pour personnes âgées et nombre de places en SSIAD
C128: Nombre de lits en 2018
B129: USLD | C129: =31302.06 -> 31302.06 | D129: (4)
B130: EHPA | C130: 27020
B131: EHPAD | C131: 594684
B132: SSIAD | C132: 127117
B136: Etape de calcul
B137: Pour ne pas faire de double compte, il faut retirer dans le nombre de lits des EHPA le nombre de ces lits qui ont déjà été inclus dans les établissements publics de santé. En effet, certians des EHPAH publics font parti des CH
B139: Catégorie d’établissement et statut juridique | C139: Nombre de résidents au 31 décembre 2015 | D139: (5)
B140: Établissements d’hébergement pour personnes âgées dépendantes (EHPAD) | C140: 585560
B141: EHPAD privés à but lucratif | C141: 125640
B142: EHPAD privés à but non lucratif | C142: 169030
B143: EHPAD publics | C143: 290890
B144: - dont EHPAD publics hospitaliers | C144: 127070
B145: - dont EHPAD publics non hospitaliers | C145: 163820
B147: Ce tableau nous permet d'estimer le pourcentage d'EHPAD qui sont des EHPAD publics hospitaliers
B148: Pourcentage des EHPAD publics hospitaliers parmis les EHPAD | C148: =100*C144/C140 -> 21.7005943 | D148: %
B150: Il faut donc retirer 21,7% des lits en EHPAD.
B151: Ainsi, pour ne pas faire doublon, il faut prendre le nombre de lits en EHPAD suivant | E151: =TRUNC(C131*(1-C148/100)) -> 465634
B153: Le tableau des lits pour les EHPA est donc le suivant
C155: Nombre de lits en 2018
B156: USLD | C156: 31302
B157: EHPA | C157: 27020
B158: EHPAD | C158: 465634
B159: SSIAD | C159: 127117
B161: Etape de calcul
B162: On peut maintenant estimer le nombre de lits et places considérés dans notre calcul
B164: Nombre de lits et places total | C164: =C156+C157+C158+C159+C123+C98 -> 1642727 | D164: lits et places
B165: nombre total de repas comptabilisés dans les établissements se santé et les établissements médico-sociaux | C165: =762.1*C164 -> 1251922247 | D165: repas
B167: Etape de calcul
B168: Les établissements de santé ne comptabilisent que les repas servis le midi, mais pas les petits déjeuners, collations, goûters et boissons
B170: Hyp 2 : On suppose que les petits déjeuners, goûters, collations, et boissons servis représentent un repas chaque deux repas comptabilisés
B171: On multiplie donc la quantité de repas servis par un facteur multiplicatif 1,5
B172: nombre total de "repas équivalents" servis dans les établissements se santé et les établissements médico-sociaux | C172: =C165*1.5 -> 1877883370 | D172: ce nombre peut être comparé aux 1 577 millions de repas estimé par l'ADEME (6).
B176: Partie II: Estimation du nombre de repas consommés par les professionnels de santé libéraux
B178: Méthodo
B179: L'idée ici est d'évaluer le nombre de professionnel travaillant dans des cabinets libéraux. A partir de ce nombre, on pourra estimer le nombre de repas consommés chaque année.
B180: Hyp3 : Chaque professionnel libéral consomme un repas par jour dans le cadre de ses fonctions
B181: Hyp4 : Aucun repas n'est servi aux patients dans le cadre des consultations dans les cabinets libéreaux
B182: Hyp5: Pour les infirmiers, les masseurs kiné, les ergothérapeutes et les psychomotriciens,on considère que les libéraux ou mixtes mangent tous à l'extérieur de l'hôpital (alors que normalement il faudrait uniquement prendre en compte les libéaux exclusifs)
B183: Hyp6 : Les professionnels libéraux travaillent 5 jours par semaine, prennent 25 jours de congés et il y a 11 jours fériés par an. Ils travaillent donc 225 jours.
B186: Etape de calcul
C187: Nombre de professionnels libéreaux | D187: (9)
B188: médecins | C188: =58450+42130 -> 100580
B189: Chirurgiens dentistes | C189: 33831
B190: Pharmaciens | C190: 29644
B191: Sages femmes | C191: 4446
B192: Infirmiers | C192: 117451
B193: Masseurs-kiné | C193: 68160
B194: ERGOTHÉRAPEUTES | C194: 1403
B195: Psychomotriciens | C195: 2767
B196: Orthophonistes | C196: 20084
B197: Orthptistes | C197: 2916
B198: audiprothésistes | C198: 1177
B199: Pédicure podologie | C199: 13575
B200: Opticien lunetier | C200: 9530
B201: Manipulateur ERM | C201: 0
B202: Diététicien | C202: 4534
B203: Technicien de laboratoire | C203: 12
B204: Professions d'appareillage | C204: =168+257+819+32+52 -> 1328
B205: Psychologue | C205: 21431
B206: Personnel non médical dans les cabinets médicaux | D206: (10)
B207: Cadres | C207: =0.05*88560 -> 4428
B208: Agents administratifs | C208: =TRUNC(0.09*88560) -> 7970
B209: Agents de service | C209: =TRUNC(0.06*88560) -> 5313
B210: Secrétaires médicaux | C210: =TRUNC(0.49*88560) -> 43394
B211: Total | C211: =SUM(C188:C210) -> 493974
B213: Etape de calcul
B215: Nombre de repas consommés par les professionnels travaillant dans les cabinets libéraux | C215: =C211*225 -> 111144150 | D215: repas
B217: Partie III: Estimation du nombre de repas consommés par les professionnels de l'administration publique et de la complémentaire santé
B219: Le tableau suivant provient de la feuille de calcul annexe intitulée "Effectif admin & comp santé"
C220: Effectifs
B221: Administration de la santé | C221: ='Annexe 2'!C5 -> 98433.71
B222: Complémentaire santé | C222: ='Annexe 2'!C6 -> 50086.25171
B224: Etape de calcul
B226: Nombre de repas consommés par les professionnels travaillant dans l'admnistration publique et la complémentaire santé | C226: =(C221+C222)*225 -> 33416991.39 | D226: repas
B231: Etape de calcul
B232: On considère que les repas servis dans les établissements d'hébergements correspondent à de la restauration collective ; pour les repas consommés par les professionnels on choisis le facteur d'émission moyen d'un repas
B233: Empreinte carbone d'un repas moyen en France en restauration collective | C233: 2.65 | D233: kgCO2/repas | E233: (11)
B234: Base carbone - repas moyen | C234: 2.04 | D234: kgCO2/repas | E234: (12)
B238: Etape de calcul
B239: Calcul de l'empreinte carbone
B241: Empreinte carbone des repas servis dans les établissements hospitaliers et médico-sociaux | C241: =C172*C233 -> 4976390931 | D241: kgCO2
B242: Empreinte carbone des repas consommés par les professionnels travaillant dans les cabinets libéraux, l'admnistration publique ou la complémentaire santé | C242: =(C215+C226)*C234 -> 294904728.4 | D242: kgCO2
B245: Empreinte carbone totale | C245: =C241+C242 -> 5271295659 | D245: kgCO2
C246: =C245/10^9 -> 5.271295659 | D246: MtCO2
B248: Selon l'ADEME le % des quantités perdues/quantités préparées dans le secteur de la santé est de 22%. Ainsi, 22% de l'empreinte carbone estimée plus haut provient de gaspillage | J248: (3)
B249: empreinte carbone qui pourrait être évitée en absence de gaspillage | D249: =0.2*C246 -> 1.054259132 | E249: MtCO2
B251: Empreinte carbone d'un repas végétarien en France | C251: 0.51 | D251: kgCO2/repas | E251: (3)
B253: Empreinte carbone totale si tous les repas étaient vege | C253: =C241*C251 -> 2537959375 | D253: kgCO2
C254: =C253/10^9 -> 2.537959375 | D254: MtCO2

Sheet 9.médicaments
D1: MtCO2e
B2: Achat de produits et services / Sous-poste Médicaments
B5: Tableau de bord du poste | F5: Indications du guide sectoriel
B6: Emissions totales du poste | C6: =C12 -> 14.45 | D6: MtCO2e/an | F6: Sources potentielles | H6: Achats des médicaments
B7: Version | C7: v1.0.b | F7: Données spécifiques | H7: Il s’agit de récupérer le volume de médicaments vendus et le facteur d'émission
B8: Satisfaction | C8: Bon ordre de grandeur
B11: Numéro de version | C11: v1.0.b
B12: Emissions totales | C12: =C36 -> 14.45 | D12: MtCO2e
B13: Satisfaction vis-à-vis de la version | C13: Bon ordre de grandeur
B15: Carte d'identité de la version
B16: Hypothèses
B17: Données et sources | C17: (1) Base empreinte, ADEME (2) DRESS, "Les dépenses de santé en 2018", 2018, page 48, https://drees.solidarites-sante.gouv.fr/sites/default/files/2020-07/cns2019.pdf
B18: Méthodologie | C18: L'idée est d'utiliser le FE proposé par l'ADEME pour les médicaments puis de trouver le flux monétaire associé à cette vente en france. En ayant la quantité de médicaments vendue en france et le FE en kgCO2/€ de médicament on peut en déduire l'empreinte carbone associée à ce sous poste
B19: Données manquantes | C19: L'intensité carbone exacte
B20: Limites, pistes d'amélioration | C20: Ce modèle ne différencie pas les médicaments entre eux. Pour estimer l'empreinte globale cela ne pose pas trop de problème mais si on veut descendre d'un étage au niveau de la granularité, il faudrait évaluser l'intensité carbone par type de pathologie. Donc d'avoir des FE en kgCO2/€ pour les médicaments pour traiter le diabète, les insuffisances rénales... Cela nous serait surtout utile pour parler de surmédication et de prévention dans le cas de certaines pathologies
B21: Entités du périmètre concernées | C21: Toutes
B22: Commentaires généraux
B23: Date | C23: 2023-01-22
B25: Estimation pour les médicaments: | C25: 500 | D25: TCO2 par million d'euros | E25: (1)
C26: =C25/1000 -> 0.5 | D26: kg/€ | L26: (1)
B27: Marché pharmaceutitque pour officine | C27: 21.3 | D27: Md€ | E27: (2)
B28: Marché pharmaceutitque pour hôpital | C28: 7.6 | D28: Md€ | E28: (2)
B31: Empreinte carbone des achats de médicaments pour les officines | C31: =C25*1000*C27 -> 10650000 | D31: TCO2
B32: Empreinte carbone des achats de médicaments pour leshôpitaux | C32: =C25*1000*C28 -> 3800000 | D32: TCO2
B33: Total | C33: =C31+C32 -> 14450000
B34: Empreinte carbone pour les Officines | C34: =C31/10^6 -> 10.65
B35: Empreinte carbone pour les autres Établissements | C35: 3.8
B36: Total | C36: 14.45
D37: TCO2
D38: MTCO2

Sheet 9.dispositifs_médicaux
B2: Achat de produits et services / Sous-poste Médicaments
B5: Tableau de bord du poste | F5: Indications du guide sectoriel
B6: Emissions totales du poste | C6: =C12 -> 10.19290117 | D6: MtCO2e/an | F6: Sources potentielles | H6: Achats de dispositifs médicaux
B7: Version | C7: =C11 -> v1.0.c | F7: Données spécifiques | H7: Il s’agit des quantités de consommables médicaux, implants, équipements, réactifs et automates de biologie médicale achetés annuellement à partir du suivi des achats (en unités)
B8: Satisfaction | C8: Bon ordre de grandeur
B11: Numéro de version | C11: v1.0.c
B12: Emissions totales | C12: =C59 -> 10.19290117 | D12: MtCO2e
B13: Satisfaction vis-à-vis de la version | C13: Bon ordre de grandeur
B15: Carte d'identité de la version
B16: Hypothèses | C16: Hyp 1: Le facteur d'émission "dispositifs médicaux" est adapté à tous les FE Hyp. 2 : Le ratio centre les DM couverts par les 7 codes produits de la source (3) et l'ensemble des DM est similaire pour les importations et les exportations
B17: Données et sources | C17: (1) Facteur d'émission, Guide sectoriel de l'ADEME,Page 56, https://www.ademe.fr/sites/default/files/assets/documents/guide-sectoriel-etablissements-sanitaires-et-medico-sociaux-2020-010896.pdf (2) SNITEM, Panorama et analyse qualitative de la filière industielle des DM en france, 2019, https://www.snitem.fr/wp-content/uploads/2020/01/Snitem-Panorama-chiffre-des-DM-2019.pdf (3) https://www.qualitiso.com/commerce-dispositifs-medicaux-monde/?fbclid=IwAR3Rk8vwYBbOeOnFeZ52ciqpmc-SVrarHbfJDlIyMnFNaggVOR0xlO2KHY0
B18: Méthodologie | C18: L'idée est d'utiliser le FE proposé par l'ADEME pour les dispositfs médicaux puis de trouver le flux monétaire associé à cette vente en france. En ayant le chiffre d'affaire associé à la vente de DM en france et le FE en kgCO2/€ de DMt on peut en déduire l'empreinte carbone associée à ce sous poste
B19: Données manquantes | C19: Le FE d'émission exact. Des données plus désagrégées pour pouvoir faire correspondre à chaque groupe de DM son FE associé. Afin d'être plus précis. Le pb ici est qu'on réfléchit en "gros", avec des moyennes.
B20: Limites, pistes d'amélioration | C20: Ce modèle ne différencie pas les DM entre eux. Pour estimer l'empreinte globale cela ne pose pas trop de problème mais si on veut descendre d'un étage au niveau de la granularité, il faudrait évaluser l'intensité carbone par type de DM. Les sources (2) et (3) n'ont pas le même périmètre de DM
B21: Entités du périmètre concernées | C21: Toutes
B22: Commentaires généraux
B23: Date | C23: 2021-08-19
B26: Partie I: Estimation de l'empreinte carbone associée à la production puis l'achat de DM
B28: Méthodo
B29: On multiplie le flux monètaire des dispositifs médicaux considérés par le FE d'émission proposé par l'ADEME
B30: Hyp 1: Le facteur d'émission "dispositifs médicaux" est adapté à tous les FE
B33: Chiffre d'affaire des entreprises de DM françaises en 2019 | C33: 30 | D33: Md€ | E33: (2)
B34: CA correspondant à des exportations | C34: 9 | D34: Md€ | E34: (2)
B36: Etape de calcul
B38: La source (3) nous fournit les données des exportations et des importations des dispositifs en prenant en comte 7 codes produits.
B39: Toutefois, ces 7 codes produits ne couvrent pas tous le périmètre des disposotifs médicaux pris en compte (par exemple, les logiciels, ou les compléments alimentaires médicaux)
B41: On fait donc l'hypothèse que le ratio entre les DM couverts par les 7 codes produits et les DM couverts par notre périmètre est similaire pour les importations et les exportations
B42: Hyp. 2 : Le ratio centre les DM couverts par les 7 codes produits de la source (3) et l'ensemble des DM est similaire pour les importations et les exportations
B44: CA des exports (uniquement DM couverts par 7 codes produits) | C44: 8.4466 | D44: Md$ | E44: (3)
B45: CA des imports (uniquement DM couverts par 7 codes produits) | C45: 10.66 | D45: Md$ | E45: (3)
B46: Ratio CA exports 7 produits/CA export total | C46: =C44/C34 -> 0.9385111111 | D46: Md$/Md€
B47: CA des imports | C47: =C45/C46 -> 11.3584164 | D47: Md€
B48: CA des DM consommés en France | C48: =C33-C34+C47 -> 32.3584164 | D48: Md€ | L48: (1)
B52: Etape de calcul
B54: Facteur d'émission des dispositifs médicaux | C54: 315 | D54: TCO2 par million d'euros | E54: (1)
C55: =C54/1000 -> 0.315 | D55: kg/€
B56: Marché des dispositifs médicaux | C56: =C48 -> 32.3584164 | D56: Md€ | E56: (2)
B58: Empreinte carbone des achats de DM en France | C58: =C54*1000*C56 -> 10192901.17 | D58: TCO2
C59: =C58/10^6 -> 10.19290117 | D59: MTCO2

Sheet 9.fournitures_administratives
B2: Achat de produits et services / Sous-poste Fournitures administratives
B5: Tableau de bord du poste | F5: Indications du guide sectoriel
B6: Emissions totales du poste | C6: =D38 -> 0.04770248864 | D6: MtCO2e/an | F6: Sources potentielles | H6: Fournitures administratives
B7: Version | C7: v1.0.b | F7: Données spécifiques | H7: Il s’agit des quantités de fournitures administratives achetées annuellement à partir du suivi des achats (en montant monétaire)
B8: Satisfaction | C8: Bon ordre de grandeur
B10: Numéro de version | C10: v1.0.b
B11: Emissions totales | C11: =D38 -> 0.04770248864 | D11: MtCO2e
B12: Satisfaction vis-à-vis de la version | C12: Bon ordre de grandeur | E12: incomplet
B14: Carte d'identité de la version
B15: Hypothèses | C15: Hyp 1: La quantité de papier utilisé par personnel est similaire dans le secteur "activité pour la santé humaine" et dans le reste du périmètre considéré
B16: Données et sources | C16: (1) Tableau des entrées-sorties, niveau 139, INSEE (2) Base carbone de l'ADEME "papier et carton", https://bilans-ges.ademe.fr/fr/basecarbone/donnees-consulter/liste-element?recherche=papier+et+carton
B17: Méthodologie | C17: On regarde les dépenses de la santé en papier/carton et on utilise un FE en kgCO2/€
B18: Données manquantes | C18: Le montant exact des dépenses pour les fournitures administratives autres que papier/carton
B19: Limites, pistes d'amélioration | C19: Ne prend en compte que le papier et le carton
B20: Entités du périmètre concernées | C20: Tout, uniquement papier/carton
B21: Commentaires généraux | C21: Ordre de grandeur correct
B22: Date | C22: 2023-01-16
B26: PRODUITS | C26: Achats en million d'euros du secteur "activité pour la santé humaine marchande" | D26: Achats en million d'euros du secteur "activité pour la santé humaine non marchande" | E26: Source | F26: Ratio monétaire | G26: Unité | H26: Source | I26: émission | J26: unité
B27: Fabrication de pâte à papier, de papier et de carton | C27: 10 | E27: (1) | F27: 900 | G27: kgCO2e / k€ HT | H27: (2) ADEME - Papier et cartons | I27: =(C27+D27)*10^3*F27*10^-9 -> 0.009 | J27: MtCO2
B28: Fabrication d articles en papier ou en carton | C28: 17 | D28: 8 | E28: (1) | F28: 900 | G28: kgCO2e / k€ HT | H28: (2) ADEME - Papier et cartons | I28: 0.0225 | J28: MtCO2
H29: Total | I29: =SUM(I27:I28) -> 0.0315 | J29: MtCO2
B31: On fait maintenant l'hypothèse que la quantité de papier utilisé dépend linéairement des effectifs pris en compte
B32: Hyp 1 : La quantité de papier utilisé par personnel est similaire dans le secteur "activité pour la santé humaine" et dans le reste du périmètre considéré
B33: Le secteur "activité pour la santé humaine" inclus les établissements hospitaliers et la médecine libérale (sans les officines). On y ajoute donc les établissements médico-sociaux et les pharmacies.
C35: Effectif | D35: Emissions
B36: Secteur "activité pour la santé humaine" | C36: ='22'!C117 + '22'!C121 - '9.alimentaire'!C190 -> 1647648 | D36: =I29 -> 0.0315
B37: Secteur de la santé hors secteur "activité pour la santé humaine" | C37: ='22'!C118+'22'!C119 +'22'!C120 +'9.alimentaire'!C190 -> 847492 | D37: =D36*C37/C36 -> 0.01620248864
B38: Total | C38: =SUM(C36:C37) -> 2495140 | D38: =SUM(D36:D37) -> 0.04770248864

Sheet 9.services
B2: Achat de produits et services / Sous-poste Services fortement matériels
B5: Tableau de bord du poste | F5: Indications du guide sectoriel
B6: Emissions totales du poste | C6: =C13 -> 1.0928667 | D6: MtCO2e/an | F6: Sources potentielles | H6: Service
B7: Version | C7: v1.0.a | F7: Données spécifiques | H7: Il s’agit des factures pour les prestations de services telles que la maintenance technique ; l’entretien/nettoyage ; la téléphonie ; la publicité/communication ; la reprographie ; l’hébergement de serveur ou de site internet ; les espaces verts, à partir du suivi des achats (en montant monétaire) ; mais aussi "Réparation et installation de machines et d'équipements", "Programmation, conseil et autres activités informatiques;Services d'information", "Services de publicité et d'études de marché"
B8: Satisfaction | C8: Bon ordre de grandeur
B12: Numéro de version | C12: v1.0.a
B13: Emissions totales | C13: =C51 -> 1.0928667 | D13: MtCO2e
B14: Satisfaction vis-à-vis de la version | C14: Bon ordre de grandeur | E14: incomplet
B16: Carte d'identité de la version
B17: Hypothèses
B18: Données et sources | C18: (1) Tableau des entrées-sorties, niveau 139, INSEE (2) Base carbone de l'ADEME, https://bilans-ges.ademe.fr/fr/basecarbone/donnees-consulter/liste-element?recherche=papier+et+carton
B19: Méthodologie | C19: L'idée ici est d'adopter une approche top down et d'utiliser les tableaux Entrées-Sorties d'Eurostat pour avoir accès au montant des différents services et ensuite d'utiliser les ratios monétaires appropriés pour en déduire les émissions associées
B20: Données manquantes | C20: Les tableaux E-S pour le médico social pris en compte dans le périmètre. Eurostat présente ces données poru tout le médico-social ce qui est un périmètre trop large pour nous car nous ne prenons pas en compte le social.
B21: Limites, pistes d'amélioration | C21: Les données des achats sont de 2014 ; les données ne comprennent que le champ "activités pour la santé humaine" et donc les émissions sont sous-estimées.
B22: Entités du périmètre concernées | C22: Médecine de ville et établissements de santé
B23: Commentaires généraux
B24: Date | C24: 2023-01-24
B27: PRODUITS | C27: Achats en million d'euros du secteur "activité pour la santé humaine marchande" | D27: Achats en million d'euros du secteur "activité pour la santé humaine non marchande" | E27: Source | F27: Ratio monétaire | G27: Unité | H27: Source | I27: émission | J27: unité
B28: Imprimerie et reproduction d enregistrements | C28: 90 | D28: 109 | E28: (1) | F28: 170 | G28: kgCO2e / k€ HT | H28: (2) ADEME - Services (imprimerie, publicité, architecture et ingénierie, maintenance multi-technique des bâtiments, gardiennage, nettoyage, sécurité, agence de voyage, autres services aux entreprises) | I28: =(C28+D28)*10^3*F28*10^-9 -> 0.03383 | J28: MtCO2
B29: Activités de poste et de courrier | C29: 93 | D29: 38 | E29: (1) | F29: 130 | G29: kgCO2e / k€ HT | H29: (2) ADEME - Courrier | I29: 0.01703 | J29: MtCO2
B30: Télécommunication | C30: 268 | D30: 49 | E30: (1) | F30: 170 | G30: kgCO2e / k€ HT | H30: (2) ADEME - Télécommunications | I30: 0.05389 | J30: MtCO2
B31: Édition | C31: 0.35 | D31: 210 | E31: (1) | F31: 280 | G31: kgCO2e / k€ HT | H31: (2) ADEME - Édition (livres, journaux, revues, etc.) | I31: 0.058898 | J31: MtCO2
B32: Prod films cinémat vidéo et prog TV- enrg sonore et éd musicale | C32: 153.1 | D32: 13 | E32: (1) | F32: 170 | G32: kgCO2e / k€ HT | H32: (2) ADEME - Services (imprimerie, publicité, architecture et ingénierie, maintenance multi-technique des bâtiments, gardiennage, nettoyage, sécurité, agence de voyage, autres services aux entreprises) | I32: 0.028237 | J32: MtCO2
B33: Programmation et diffusion | C33: 29.43 | D33: 0 | E33: (1) | F33: 170 | G33: kgCO2e / k€ HT | H33: (2) ADEME - Services (imprimerie, publicité, architecture et ingénierie, maintenance multi-technique des bâtiments, gardiennage, nettoyage, sécurité, agence de voyage, autres services aux entreprises) | I33: 0.0050031 | J33: MtCO2
B34: Programmation, conseil et autres activités informatiques | C34: 129.16 | D34: 86 | E34: (1) | F34: 170 | G34: kgCO2e / k€ HT | H34: (2) ADEME - Services (imprimerie, publicité, architecture et ingénierie, maintenance multi-technique des bâtiments, gardiennage, nettoyage, sécurité, agence de voyage, autres services aux entreprises) | I34: 0.0365772 | J34: MtCO2
B35: Services d information | C35: 62.61 | D35: 107 | E35: (1) | F35: 170 | G35: kgCO2e / k€ HT | H35: (2) ADEME - Services (imprimerie, publicité, architecture et ingénierie, maintenance multi-technique des bâtiments, gardiennage, nettoyage, sécurité, agence de voyage, autres services aux entreprises) | I35: 0.0288337 | J35: MtCO2
B36: Activ svices financiers, hors assur et cais retr (hors SIFIM) | C36: 322.7 | D36: 0 | E36: (1) | F36: 110 | G36: kgCO2e / k€ HT | H36: (2) ADEME - Assurance, services bancaires, conseil et honoraires | I36: 0.035497 | J36: MtCO2
B37: Activ svices financiers, hors assur et cais retr (SIFIM) | C37: 328 | D37: 1011 | E37: (1) | F37: 110 | G37: kgCO2e / k€ HT | H37: (2) ADEME - Assurance, services bancaires, conseil et honoraires | I37: 0.14729 | J37: MtCO2
B38: Assurance | C38: 130.25 | D38: 71 | E38: (1) | F38: 110 | G38: kgCO2e / k€ HT | H38: (2) ADEME - Assurance, services bancaires, conseil et honoraires | I38: 0.0221375 | J38: MtCO2
B39: Activités auxiliaires de services financiers et d assurance | C39: 85.53 | D39: 0 | E39: (1) | F39: 110 | G39: kgCO2e / k€ HT | H39: (2) ADEME - Assurance, services bancaires, conseil et honoraires | I39: 0.0094083 | J39: MtCO2
B40: Activités juridiques et comptables | C40: 415.42 | D40: 114 | E40: (1) | F40: 110 | G40: kgCO2e / k€ HT | H40: (2) ADEME - Assurance, services bancaires, conseil et honoraires | I40: 0.0582362 | J40: MtCO2
B41: Activités des sièges sociaux - conseil de gestion | C41: 2595.8 | D41: 0 | E41: (1) | F41: 110 | G41: kgCO2e / k€ HT | H41: (2) ADEME - Assurance, services bancaires, conseil et honoraires | I41: 0.285538 | J41: MtCO2
B42: Activ architecture et ingénierie- contrôle et analyses techniques | C42: 79 | D42: 3 | E42: (1) | F42: 170 | G42: kgCO2e / k€ HT | H42: (2) ADEME - Services (imprimerie, publicité, architecture et ingénierie, maintenance multi-technique des bâtiments, gardiennage, nettoyage, sécurité, agence de voyage, autres services aux entreprises) | I42: 0.01394 | J42: MtCO2
B43: Publicité et études de marché | C43: 392.49 | D43: 109 | E43: (1) | F43: 170 | G43: kgCO2e / k€ HT | H43: (2) ADEME - Services (imprimerie, publicité, architecture et ingénierie, maintenance multi-technique des bâtiments, gardiennage, nettoyage, sécurité, agence de voyage, autres services aux entreprises) | I43: 0.0852533 | J43: MtCO2
B44: Enquêtes et sécurité | C44: 109.05 | D44: 212 | E44: (1) | F44: 170 | G44: kgCO2e / k€ HT | H44: (2) ADEME - Services (imprimerie, publicité, architecture et ingénierie, maintenance multi-technique des bâtiments, gardiennage, nettoyage, sécurité, agence de voyage, autres services aux entreprises) | I44: 0.0545785 | J44: MtCO2
B45: Services relatifs aux bâtiments et aménagement paysager | C45: 404.17 | D45: 294 | E45: (1) | F45: 170 | G45: kgCO2e / k€ HT | H45: (2) ADEME - Services (imprimerie, publicité, architecture et ingénierie, maintenance multi-technique des bâtiments, gardiennage, nettoyage, sécurité, agence de voyage, autres services aux entreprises) | I45: 0.1186889 | J45: MtCO2
H46: TOTAL | I46: =SUM(I28:I45) -> 1.0928667 | J46: MtCO2
B51: empreinte carbone des services | C51: =I46 -> 1.0928667 | D51: MtCO2

Sheet 9. Linge
B2: Achat et traitement du linge
B5: Tableau de bord du poste | F5: Indications du guide sectoriel
B6: Emissions totales du poste | C6: =C12 -> 0.8296500516 | D6: MtCO2e/an | F6: Sources potentielles | H6: Émissions liées à l'achat et au traitement/Blanchissement du linge externalisé par les établissements de santé
B7: Version | C7: v1.1 | F7: Données spécifiques
B8: Satisfaction | C8: Bon ordre de grandeur
B11: Numéro de version | C11: v1.1
B12: Emissions totales | C12: =C220+C250 -> 0.8296500516 | D12: MtCO2e
B13: Satisfaction vis-à-vis de la version | C13: Bon ordre de grandeur
B15: Carte d'identité de la version
B16: Hypothèses | C16: Hyp 1 : D'après les données de l'URBH de 2010, 80% des hôpitaux publics internalisent au moins une partie du blanchissement de leur linge. De plus, d'après la source (6) de 2019 les blanchisseries hospitalières traitent en moyenne 1,5 tonne de linge par jour. Nous faisons donc l'hypothèse que 43 % du linge (en masse) est traité/blanchi en interne. Hyp 2 : D'après la source (5), il faut traiter 1,8 kg de linge par jour et par lit dans les EHPAD. Nous faisons l'hypothèse que cette valeur s'applique également pour les établissements d'acceuil et de services pour adultes et enfants handicapés. Hyp 3 : Nous faisons l'hypothèse que dans les établissements pour personnes âgées, toutes les places sont occupées et donc que toutes les places nécessitent un changement de linge. Hyp 4 : Nous faisons l'hypothèse que l'ensemble du textile acheté sur une année est consommé sur cette même année. Le textile est donc vu comme un achat et pas une immobilisation. Hyp 5 : Dans les TES de l'INSEE, plusieurs catégories correspondent au textile. Nous faisons l'hypothèse que la catégorie " fabrication de textile" est déjà intégralement prise en compte dans le poste "Dispositifs médicaux". Nous prenons donc en compte " Industrie de l'habillement" et "industrie du cuir et de la chaussure".
B17: Données et sources | C17: (1) Base Angers, 2019, https://www.chu-angers.fr/le-chu-angers/partenariats-et-cooperations/base-des-donnees-de-cout-par-activite-base-d-angers/base-de-donnees-des-couts-par-activite-base-d-angers-55791.kjsp (2) LES CHIFFRES CLÉS DE L’OFFRE DE SOINS, 2017, Page 5 https://solidarites-sante.gouv.fr/IMG/pdf/dgos_cc_2018_02_16_a_web_pages_hd.pdf (3) DREES Les établissements et services pour personnes handicapées, 2018, https://drees.solidarites-sante.gouv.fr/sites/default/files/2021-01/Fiche%2023%20-%20Les%20%C3%A9tablissements%20et%20services%20pour%20personnes%20handicap%C3%A9es.pdf (4) Guide de la fonction linge, URBH, 2010, http://www.urbh.net/index.php/documentations-menu/les-publications-urbh/les-guides-urbh/le-guide-de-la-fonction-linge (5) En quoi la fonction linge impacte-t-elle la qualité de l’accompagnementpersonnalisé des usagers ?, 2015, https://documentation.ehesp.fr/memoires/2015/ehpad/pallard.pdf (6) BLANCHISSERIES HOSPITALIÈRES DES COÛTS À NE PAS SOUS-ESTIMER, https://asteres.fr/site/wp-content/uploads/2019/11/Aster%C3%A8s-GEIST-Etude-blanchisseries-hospitali%C3%A8res-13112019.pdf (7) Bilan carbone, Anonyme (8) Tableaux entrée-sortie de l'INSEE, 2018, Comptes nationaux - Base 2014, Insee (9) Textile et habillement, Base carbone de l'ADEME, https://bilans-ges.ademe.fr/fr/accueil/documentation-gene/index/page/Autres-services-informatiques
B18: Méthodologie | C18: Notre estimation des émissions associées au linge se divise en deux étapes : une première étape qui vise à estimer les émissions associées à l'externalisation du traitement du linge par les établissements et une seconde étape qui vise à estimer les émissions associées à l'achat de textile par ces mêmes établissements. Étape 1 : Pour la première étape, l'objectif est d'estimer l'empreinte carbone associée au traitement/blanchissement du linge utilisé par les établissements de santé et les établissements médico-sociaux qui font partie de notre périmètre. Il faut être vigileant au double compte : l'empreinte carbone associée au traitement/blanchissement du linge en interne a déjà été prise en compte dans les postes énergie, transport, etc. Ici, il faut uniquement ajouter l'empreinte carbone associée au traitement/blanchissement du linge externalisé par les établissements. Pour faire cela, nous commençons par estimer la quantité totale de linge traitée par les établissements concernés. Puis, à partir de données de l'Union des Responsables de Blanchisserie Hospitalière (URBH), de la base Angers, et de la source (6), nous en déduisons la quantité de linge traité en dehors des établissements. Enfin, à l'aide des données carbones sur la blanchisserie d'un CH qui permettent d'obtenir un ratio en tonnes de CO2 par tonnes de linges traités, nous en déduisons l'empreinte carbone associée. Pour estimer la quantité de linge traité dans les établissements concernés nous utilisons : - Les données de la base Angers pour les CHU, les CH et les CH Psy, - Une extrapolation de la quantité de linge traité par nombre de lits et places pour le reste des établissements de santé. - Un ratio de linge traité par jour et par lit pour les établissements médico-social. Étape 2 : Pour cette deuxièe étape, l'objectif est d'estimer l'empreinte carbone associée à l'achat de textile par les établissements de notre périmètre. Pour cela, nous utilisons les données de tableaux entrée-sortie (TES) de l'INSEE de 2018 qui donnent les achats par grande catégorie de La division 86 qui couvre les établissements hospitaliers et la médecine ville. Ces TES donnent des flux monétaires. Nous utilisons ensuite le facteur d'émission monétaire de l'ADEME poru en déduire les émissions associées.
B19: Données manquantes | C19: Les quantités de linge traitées par la médecine de ville. Les quantités de textile achetées par le médico-social et les pharmacies.
B20: Limites, pistes d'amélioration | C20: La première partie du modèle repose sur un facteur d'émission qui n'est pas issu de la base carbone de l'ADEME (mais d'un ratio d'un bilan carbone effectué par un CH).
B21: Entités du périmètre concernées | C21: Pour la partie sur le traitement du linge, la médecine de ville n'est pas prise en compte. Pour la partie sur les achats de textile, le médico-social et les pharmacies ne sont pas prises en compte.
B22: Commentaires généraux | C22: Le facteur d'émission utilisé pour le traitement du linge provient d'un bilan carbone de CH. Ce FE ne prend pas en compte le Fret associé à l'externalisation du traitement du linge.
B23: Date | C23: 2023-01-24
B27: Partie 0: Synthèse des résultats
C29: Émission (MtC02)
B30: Emissions dues au traitement du linge | C30: =C220 -> 0.4876500516
B31: Emissions dues à l'achat de texile | C31: =C250 -> 0.342
B34: Partie I: Estimation de l'empreinte carbone associée au traitement du linge externalisé par les établissements de santé et les établissements médico-sociaux.
B35: Méthodo
B36: L'objectif de cette partie est d'estimer l'empreinte carbone associée au traitement/blanchissement du linge utilisé par les établissements de santé et les établissements médico-sociaux qui font partie de notre périmètre. Il faut être vigileant au double compte : l'empreinte carbone associée au traitement/blanchissement du linge en interne a déjà été prise en compte dans les postes énergie, transport, etc. Ici, il faut uniquement ajouter l'empreinte carbone associée au traitement/blanchissement du linge externalisé par les établissements. Pour faire cela, nous commençons par estimer la quantité totale de linge traitée par les établissements concernés. Puis, à partir de données de l'Union des Responsables de Blanchisserie Hospitalière (URBH), de la base Angers, et de la source (6), nous en déduisons la quantité de linge traité en dehors des établissements. Enfin, à l'aide des données carbones sur la blanchisserie d'un CH qui permettent d'obtenir un ratio en tonnes de CO2 par tonnes de linges traités, nous en déduisons l'empreinte carbone associée. Pour estimer la quantité de linge traité dans les établissements concernés nous utilisons : - Les données de la base Angers pour les CHU, les CH et les CH Psy, - Une extrapolation de la quantité de linge traité par nombre de lits et places pour le reste des établissements de santé. - Un ratio de linge traité par jour et par lit pour les établissements médico-social.
B37: Hyp 1 : D'après les données de l'URBH de 2010, 80% des hôpitaux publics internalisent au moins une partie du blanchissement de leur linge. De plus, d'après la source (6) de 2019 les blanchisseries hospitalières traitent en moyenne 1,5 tonne de linge par jour. Nous faisons donc l'hypothèse que 43 % du linge (en masse) est traité/blanchi en interne.
B38: Hyp 2 : D'après la source (5), il faut traiter 1,8 kg de linge par jour et par lit dans les EHPAD. Nous faisons l'hypothèse que cette valeur s'applique également pour les établissements d'acceuil et de services pour adultes et enfants handicapés.
B39: Hyp 3: Nous faisons l'hypothèse que dans les établissements pour personnes âgées, toutes les places sont occupées et donc que toutes les places nécessitent un changement de linge.
B41: Etape de calcul
B42: Nous commencons par estimer la quantité de linge traité dans les CHU, les CH et les CH spécialisés en psy.
B43: Pour ces établissements, nous utilisons les données de la base Angers qui donnent le nombre de kg de linge traité par an par établissement intérrogé. Les résultats sont présentés par grande catégorie d'établissements.
B46: Catégorie | C46: Nombre d'établissements | D46: Moyenne de kg de linge lavé par an | E46: (1)
B47: CH | C47: 54 | D47: 1151389.769
B48: dont CH 1 (1) | C48: 7 | D48: 1623502.497
B49: dont CH 2 (1) | C49: 8 | D49: 405441.7712
B50: dont CH 3 (1) | C50: 18 | D50: 792051.1944
B51: dont CH 4 (1) | C51: 21 | D51: 1586194.017
B52: CHS | C52: 13 | D52: 479873.19
B53: dont CHS 1 (2) | C53: 4 | D53: 382903
B54: dont CHS 2 (2) | C54: 9 | D54: 522971.0522
B55: CHU | C55: 10 | D55: 2876011.131
B56: dont CHU 1 (3) | C56: 5 | D56: 2577665.43
B57: dont CHU 2 (3) | C57: 5 | D57: 3174356.832
B58: TOTAL | C58: 77 | D58: 1261993.64
B61: Etape de calcul
B62: Ces données nous donnent des ratios exploitables pour 3 types d'établissements : les CHU, les CH et les CH spécialisés en psy. Nous dressons la liste de ces établissements. Notez que nous utilisons le chiffre de 32 CHU qui correspondent à 178 entités juridiques.
B64: Type d'établissement | C64: Nombre de structures | D64: (2)
B65: CHU | C65: 32
B66: CH | C66: 962
B67: CH spécialisés en psy | C67: 96
B68: Total | C68: =SUM(C65:C67) -> 1090
B70: Etape de calcul
B71: Nous en déduisons la quantité de lingé traité dans les 3 types d'établissements.
B73: Type d'établissement | C73: Quantité de linge traité par an (kg)
B74: CHU | C74: =D55*C65 -> 92032356.19
B75: CH | C75: =D47*C66 -> 1107636957
B76: CH spécialisés en psy | C76: =D52*C67 -> 46067826.24
B77: Total | C77: =SUM(C74:C76) -> 1245737140
B79: Etape de calcul
B80: Pour les établissements de santé qui ne sont pas des CHU, des CH ou des CH psy : Nous cherchons maintenant une relation entre la quantité de linge traité par les établissements et leur nombre de lits et places pour pouvoir en déduire la quantité de linge traité dans les établissements qui n'ont pas encore été pris en compte.
B83: Nom | C83: lits et places | D83: Tonnes de linge hospitalier traité
B84: Anonyme | C84: 1693 | D84: 2689
B85: Anonyme | C85: 1147 | D85: 1467
B86: Anonyme | C86: 828 | D86: 1606
B87: Anonyme | C87: 703 | D87: 773
B88: Anonyme | C88: 996 | D88: 1342
B89: Anonyme | C89: 1303 | D89: 1768
B90: Anonyme | C90: 605 | D90: 349
B91: Anonyme | C91: 584 | D91: 573
B92: Anonyme | C92: 945 | D92: 2215
B93: Anonyme | C93: 1272 | D93: 1320
B94: Anonyme | C94: 455 | D94: 724
B95: Anonyme | C95: =1974+602 -> 2576 | D95: =365*14 -> 5110
B96: Anonyme | C96: 801 | D96: 786
B97: Anonyme | C97: =598+180 -> 778 | D97: 1719
B98: Anonyme | C98: =665+207 -> 872 | D98: 523
B99: Anonyme | C99: =770+146 -> 916 | D99: 1697
B100: Anonyme | C100: 464 | D100: 415
B101: Anonyme | C101: 1437 | D101: 3018
B102: Anonyme | C102: 661 | D102: 550.14
B123: Résultat
B124: Nous trouvons une relation quasi-linéaire entre la quantité de linge traité et le nombre de lits et places dans les établissements de santé. Le coefficient de correlation est de 0,92.
B125: Nous prenons donc comme hypothèse que la quantité de lingne traité chaque année est donnée par : | D125: f(x) = | E125: 1.6232 | F125: x | G125: où x représente le nombre de lits et de places. Le résultat est en tonnes de linge lavé.
B128: Etape de calcul
B129: Nous répertorions le nombre de lits et places à prendre en compte (en excluant les CHU, les CH et les CH spécialisés en psy) pour les établissements de santé
B132: Type d'établissement | C132: Nombre de lits et places | D132: (2)
B133: Autres établissements publics | C133: =9660+517 -> 10177
B134: Privé d'interêt collectif | C134: =57384+13489 -> 70873
B135: Privé à but lucratif | C135: =97497+17939 -> 115436
B136: Total | C136: =SUM(C133:C135) -> 196486
B137: Etape de calcul
B138: Nous en déduisons la quantité de linge traité par an dans tous les établissements de santé.
B140: Type d'établissement | C140: Quantité de linge traité par an (kg)
B141: Publics | C141: =C77+C133*E125*1000 -> 1262256446
B142: Privé d'interêt collectif | C142: =C134*E125*1000 -> 115041053.6
B143: Privé à but lucratif | C143: =C135*E125*1000 -> 187375715.2
B144: Total | C144: =SUM(C141:C143) -> 1564673215
B147: Etape de calcul
B148: Il nous faut maintenant prendre en compte le médico social. Pour ces établissements, nous utilisons la source (5) et l'hypothèse 2 : 1,8 kg de linge lavé par jour et par lit.
B149: Nous répertorions dans un premier temps le nombre de lits et places à prendre en compte dans le médico social dédié aux personnes âgées. Pour cela, nous faisons attention à ne pas prendre en compte les EPHAD déjà pris en compte dans les établissements de santé. Pour comprendre comment ces résultats sont obtenus, se référerer à la méthodologie du poste 9.alimentaire.
C151: Nombre de lits en 2018
B152: USLD | C152: 31302
B153: EHPA | C153: 27020
B154: EHPAD | C154: 465634
B155: SSIAD | C155: 127117
B157: Etape de calcul
B158: Enfin, nous répertorions le nombre de lits et places à prendre en compte dans le médico social dédié aux adultes et enfants handicapés. Pour cela nous utilisons les données de la DREES pour ne considérer que les places en internat.
C160: Nombre de places en internat en 2018 | D160: (3)
B161: Structures pour adultes et enfants handicapés | C161: 510620
B163: Etape de calcul
B164: Nous en déduisons la quantité de linge traité par an dans tous les établissements considérés dans notre périmètre.
B166: Type d'établissement | C166: Quantité de linge traité par an (kg)
B167: Publics | C167: =C77+1.6232*C133*1000 -> 1262256446
B168: Privé d'interêt collectif | C168: =1.6232*C134*1000 -> 115041053.6
B169: Privé à but lucratif | C169: 187375715.2
B170: USLD | C170: =1.8*365*C152 -> 20565414
B171: EHPA | C171: 17752140
B172: EHPAD | C172: 305921538
B173: SSIAD | C173: 83515869
B174: Structures pour adultes et enfants handicapés | C174: =1.8*365*C161 -> 335477340
B175: Total | C175: =SUM(C167:C174) -> 2327905516
B177: Etape de calcul
B178: Les étapes précedentes nous donnent tout le linge traité dans les établissements considérés. Comme expliqué plus haut, il faut maintenant retirer le ligne qui est traité en interne pour éviter les doubles comptes. Pour cela, nous estimons la quantité du traitement de linge qui est externalisé par les établissements de santé.
B180: Une certaine partie du linge est traitée en interne dans les établissements de santé. En 2010, l'URBH (4) estimait que 20 % des établissements publics avaient externalisé totalement leur traitement du linge. Cela signifie que 80 % internalise tout ou partie du traitement du linge. Pour avoir une estimation de la quantité de linge externalisée, nous utilisons (6) qui indique que "les blanchisseries hospitalières traitent en moyenne 1,5 tonne de linge par jour" et nous comparons ce chiffre avec les données de la base Angers. .
B182: En comparant cela avec les données moyennes de la base Angers, nous en déduisons que les blanchisseries internes peuvent traiter | E182: =1.5/(D58/(1000*365))*100 -> 43.38373686 | F182: % du linge
B184: Nous obtenons donc les résultats suivant :
B186: Type d'établissement | C186: Quantité de linge dont le traitement est externalisé chaque année (kg)
B187: Publics | C187: =(1-$E$182/100)*C167 -> 714642431
B188: Privé d'interêt collectif | C188: 65131945.62
B189: Privé à but lucratif | C189: 106085128
B190: USLD | C190: 11643368.91
B191: EHPA | C191: 10050598.29
B192: EHPAD | C192: 173201342.9
B193: SSIAD | C193: 47283564.15
B194: Structures pour adultes et enfants handicapés | C194: 189934733.6
B195: Total | C195: =SUM(C187:C194) -> 1317973112
B198: Etape de calcul
B199: Estimation des émissions associées à l'externalisation du ligne par les établissements de santé et le médico-social.
B201: Nous utilisons ici les données d'un CH qui dans leur bilan carbone de 2016 estime les émissions de GES associés à leur blanchisserie ainsi que la quantité de linge traité chaque année.
B202: Cela permet alors d'obtenir un ratio en TCO2e/Tonne de linge traité. Il est à noter que ce ratio sous-estime surement les émissions étant donné qu'il ne prend pas en compte la partie Fret lié au traitement du linge. ("Hôpitaux et EHPAD peuvent sous-traiter tout ou partie du blanchissage à des établissements de santé situés dans un périmètre pouvant atteindre 80 kilomètres" (6))
B204: Ratio Teq CO2/Tonnes de linge traité | C204: Année
B205: 0.37 | C205: 2016
B206: N.B. Le facteur d'émission choisi provient du Bilan Carbone d'un CH, qui a déjà réduit de moitié ses émissions entre 2009 et 2016.
B207: Le chiffre est donc probablement sous-estimé
B209: Etape de calcul
B211: Type d'établissement | C211: Émissions de gaz à effet de serre (MtCO2e)
B212: Publics | C212: =$B$205*C187/10^9 -> 0.2644176995
B213: Privé d'interêt collectif | C213: 0.02409881988
B214: Privé à but lucratif | C214: 0.03925149735
B215: USLD | C215: 0.004308046495
B216: EHPA | C216: 0.003718721369
B217: EHPAD | C217: 0.06408449689
B218: SSIAD | C218: 0.01749491874
B219: Structures pour adultes et enfants handicapés | C219: 0.07027585142
B220: Total | C220: =SUM(C212:C219) -> 0.4876500516
B223: Partie II: Estimation de l'empreinte carbone associée à l'achat de textile/linge par les établissements
B224: Méthodo
B225: L'objectif de cette partie est d'estimer l'empreinte carbone associée à l'achat de textile par les établissements de notre périmètre. Pour cela, nous utilisons les données de tableaux entrée-sortie (TES) de l'INSEE de 2018 qui donnent les achats par grande catégorie de La division 86 qui couvre les établissements hospitaliers et la médecine ville. Ces TES donnent des flux monétaires. Nous utilisons ensuite le facteur d'émission monétaire de l'ADEME poru en déduire les émissions associées.
B226: Hyp 1 : Nous faisons l'hypothèse que l'ensemble du textile acheté sur une année est consommé sur cette même année. Le textile est donc vu comme un achat et pas une immobilisation.
B227: Hyp 2 : Dans les TES de l'INSEE, plusieurs catégories correspondent au textile. Nous faisons l'hypothèse que la catégorie " fabrication de textile" est déjà intégralement prise en compte dans le poste "Dispositifs médicaux". Nous prenons donc en compte " Industrie de l'habillement" et "industrie du cuir et de la chaussure".
B228: Pour rappel :
B229: "Les activités pour la santé humaine décrites dans cette division s'exercent sous des formes variées, publiques ou privées, en pratique libérale ou en établissement, sous la responsabilité de médecins ou de personnel para médical. On ne vise pas ici les caractéristiques réglementaires des professions de santé, salariées ou libérales, mais celles des unités de production. Cette division comprend les activités des établissements hospitaliers de court ou long séjour, publics ou privés, sous la responsabilité de médecins, qui offrent des services d'hébergement et qui assurent un diagnostic et un traitement médical aux patients. Elle couvre les activités de pratique médicale et de pratique dentaire de nature générale ou spécialisée, correspondant à des formules de consultation, de diagnostic, de soins et de prescriptions, au cabinet du praticien. Cette division comprend, en outre, les activités afférentes à la santé humaine qui ne sont pas dispensées dans des hôpitaux ou par des médecins, mais généralement exercées par des praticiens paramédicaux exécutant sous leur responsabilité des actes prescrits par un médecin."
B231: Etape de calcul
B232: Nous dressons les montants des achats à prendre en compte
B234: Catégorie | C234: Montant (M€) | D234: (8)
B235: Industrie de l'habillement | C235: 549
B236: Industrie du cuir et de la chaussure | C236: 21
B238: Etape de calcul
B239: Nous prenons le facteur d'émission de l'ADEME qui correspond
B241: Facteur d'émission (kgCO2e/k€) | C241: Source
B242: 600 | C242: (9)
B244: Etape de calcul
B245: Nous en déduisons les émissions associées
B247: Catégorie | C247: Émissions (MtCO2e)
B248: Industrie de l'habillement | C248: =C235*B242/10^6 -> 0.3294
B249: Industrie du cuir et de la chaussure | C249: =C236*B242/10^6 -> 0.0126
B250: Total | C250: =SUM(C248:C249) -> 0.342

Sheet 10
B2: Immobilisations
B5: Tableau de bord du poste | F5: Indications du guide sectoriel
B6: Emissions totales du poste | C6: =C15 -> 3.74337704 | D6: MtCO2e/an | F6: Sources potentielles | H6: -Bâtiments -Matériel informatique -Mobilier, machines et véhicules
B7: Version | C7: =B15 -> v1.10 | F7: Données spécifiques | H7: - Il s’agit de récupérer les surfaces SHON28 en cours d’amortissement comptable par type de bâtiment et parking ainsi que la durée d’amortissement à partir du suivi des bâtiments et des durées d’amortissement (en m²) -Il s’agit de récupérer par type de matériel informatique, les quantités détenues et les durées de renouvellement du matériel à partir du suivi des unités informatiques (en nombre d’unité) -Il s’agit de récupérer par type de machine, le type de matériau, le poids et la durée d’amortissement ou de renouvellement des machines à partir du suivi annuel des quantités de fluide rechargées (en tonnes)
B8: Satisfaction | C8: =D15 -> Calcul brouillon, odg | E8: car incomplet
E13: Faire les liens avec les fiches d'identité des versions directement (pas avec le tableau de bord, car celui-ci est mis à jour à chaque nouvelle version).
B14: Version du poste | C14: Emissions (MtCO2e) | D14: Satisf. | E14: Version sous-poste bâtiments | F14: Emissions (MtCO2e) | G14: Satisf. | H14: Version sous-poste matériel informatique (SI) | I14: Emissions (MtCO2e) | J14: Satisf. | K14: Version sous-poste Mobilier+machines+véhicules | L14: Emissions (MtCO2e) | M14: Satisf.
B15: v1.10 | C15: =F15+I15+L15 -> 3.74337704 | D15: Calcul brouillon, odg | E15: v1.0.i | F15: ='10.bâtiments'!C11 -> 1.635582362 | H15: V1.g | I15: ='10. SI'!C11 -> 1.781873731 | K15: v1.0.f | L15: ='10. Mobilier+machines+véhicules'!C11 -> 0.3259209466

Sheet 10.bâtiments
B2: Immobilisations / Sous-poste Bâtiments
B5: Tableau de bord du poste | F5: Indications du guide sectoriel
B6: Emissions totales du poste | C6: =C11 -> 1.635582362 | D6: MtCO2e/an | F6: Sources potentielles | H6: Immobilisation des bâtiments
B7: Version | C7: =C10 -> v1.i | F7: Données spécifiques | H7: Il s’agit de récupérer les surfaces SHON28 en cours d’amortissement comptable par type de bâtiment ainsi que la durée d’amortissement à partir du suivi des bâtiments et des durées d’amortissement (en m²)
B8: Satisfaction | C8: Bon ordre de grandeur
B10: Numéro de version | C10: v1.i
B11: Emissions totales | C11: =C378 -> 1.635582362 | D11: MtCO2e
B12: Satisfaction vis-à-vis de la version | C12: Bon ordre de grandeur
B14: Carte d'identité de la version
B15: Hypothèses | C15: Hyp 1 : On suppose que le ratio moyens des m2/lit et place des CHU/CH/CHS/EPSM est adapté aux autres structures des établissements de santé Hyp 2 : On suppose que la surface moyenne d'un cabinet libéral (médical, kiné, infirmier, sage-femme, dentistes...) est de 70 m2 (estimation prise à la louche mais toujours inférieure aux surfaces des établissements dont on a récupéré le BC. cf ce docuement : https://www.drhackney.net/quelle-surface-pour-un-cabinet-medical/) Hyp 3 : On suppose que la surface moyenne d'un labo, d'une pharmacie... est de 100m2. Cette estimation sous-estime sûrement la véritable surface moyenne Hyp 4 : Au vu des données sur le nombre de professionnels (médecine, sage-femme, kiné...) et le nombre de cabinets, pour les professions dont nous ne disposons pas du nombre de cabinets, nous supposons qu'il y a un cabinet par professionnels "libéraux ou mixte" Hyp 5 : On suppose que la densité des EHPA est la même que la densité des établissements d'accueil pour adultes et enfants handicapés Hyp 6 : Le facteur d'émission associé à la construction des établissements de santé est de 1 147kgCO2/m2 Hyp 7 : Le facteur d'émission associé à la construction des établissements du médico-socail est de 1 043kgCO2/m2 (Bâtiment à usage d'habitation - Etablissement sanitaire avec hébergement) Hyp 8 : Le facteur d'émission associé à la construction de la médecine de ville est de 697kgCO2/m2 (Maison individuelle ou accolée) Hyp 9 : La durée d'amortissement des établissements est de 30 ans. (pour les cabinets et les établissements de santé) Hyp 10 : On part du principe que les surfaces construites entre 1990 et 2019 sont égales à la différence de surfaces entre 2019 et 1990. Cela part du principe qu'aucune surface n'a été détruite ou délaissée. Hyp 11: On suppose que la médecine de ville et le médico-social (hors EHPAD) ont le même taux d'évolution des surfaces que pour les établissements de santé. Hyp 12: On suppose que le taux d'évolution des surfaces totales est le même que celui des surfaces chauffées
B16: Données et sources | C16: (1)Fiche pédagogique -Retraitement comptable 2016 Précisions de calcul sur les m² SDO, https://www.atih.sante.fr/sites/default/files/public/content/3078/2016-03_definition_des_m2_sdo_-1.pdf (2) LES CHIFFRES CLÉS DE L’OFFRE DE SOINS, 2017 https://solidarites-sante.gouv.fr/IMG/pdf/dgos_cc_2018_02_16_a_web_pages_hd.pdf (3) Nombre de dentistes libéraux, Chirurgiens-dentistes : les chiffres clés de la profession en France | Nextdentiste (4) Nombre de pédicure-podologue libéraux, Démographie professionnelle (onpp.fr) (5) Ratio de la surface chauffée sur la surface totale dans les établissements de santé, https://archive-ouverte.unige.ch/unige:98199/ATTACHMENT01 (6) Données sur les établissements de type EHPA, Data DREES http://www.data.drees.sante.gouv.fr/ReportFolders/reportFolders.aspx (7) Facteurs d'émissions du tableau maitre "Bilan_carbone_V8" onglet (8) Estimation des surfaces chauffées, p.84, https://pastel.archives-ouvertes.fr/tel-03228301/document (9) Précisions sur les données du tertiaire, Ceren, 12/2019, https://www.ceren.fr/publications/les-publications-du-ceren/ (10) L'enquête auprès des établissements d'hébergement pour personnes âgées (EHPA), EHPA 2015 Caractéristiques du bâti-2, https://data.drees.solidarites-sante.gouv.fr/explore/dataset/587_l-enquete-aupres-des-etablissements-d-hebergement-pour-personnes-agees-ehpa/information/ (11) Premières trajectoires dans les secteurs résidentiel et tertiaire pour l’horizon d’étude 2050, RTE, https://www.concerte.fr/system/files/u12200/2020.09.18%20-%20GT%20Consommation%20-%20%20Premi%C3%A8res%20trajectoires_doc%20cadrage-min.pdf (12) LE POIDS CARBONE RÉEL D’UN BATIMENT DE BUREAUX TOUT AU LONG DE SON CYCLE DE VIE https://resources.taloen.fr/resources/documents/7765_191210_poids_carbone_ACV_vdef.pdf (13) Observatoire Bâtiment Energie-Carbone, consulté le 1e septembre 2021, http://observatoire.batiment-energiecarbone.fr/statistiques/experimentation-en-chiffres/
B17: Méthodologie | C17: Pour les constructions : Pour ce poste nous allons estimer les surfaces moyennes des établissements sanitaires et médico-sociaux pour ensuite en déduire la surface immobilisée. Pour cela nous allons partir de surfaces moyennes/lits et places des établissements de santé que nous allons multiplier par le nombre de lits et de places. Ces surfaces moyennes sont obtenues à partir d'estimations de ces ratios pour un échantillon d'établissements. Pour la médecine de ville, nous allons faire des hypothèses de surfaces par cabinets et nous allons utiliser le nombre total de cabinets. Pour les EHPA et les ES "handicap" nous allons utiliser les données de la DREES (surface moyenne par lits ou places.) Une fois ces surfaces globales estimées, nous allons utiliser les données du CEREN pour en déduire un taux d'évolution des surfaces annuel. Ce taux d'évolution nous permettra alors d'en déduire les surfaces construites les 30 dernières années. Enfin, nous utiliserons des facteurs d'émissions issus de REX pour en déduire les émissions associées à la construction Pour la rénovation : Pour ce poste, nous allons utiliser les taux de rénovation des bâtiments du tertiaire pour l'année 2019 publié par RTE afin de modéliser une évolution exponentielle du taux de rénovation. A partir de ce taux, nous allons en déduire la quantité de surface rénovée depuis 30 ans. Enfin, nous allons utiliser un facteur d'émission pour la rénovation pour ensuite en déduire les émissions associées à la rénovation depuis 30 ans. Il ne nous restera plus qu'à diviser ces émissions par la durée d'amortissement (30ans) pour avoir les émissions annuelles | R17: c
B18: Données manquantes | C18: Le facteur d'émission pour la rénovation + Le taux de rénovation spécifique aux bâtiements du secteur de la santé
B19: Limites, pistes d'amélioration | C19: Ce modèle intègre les rénovations. Mais il utilise des données propres au tertiaire et pas spécifique au secteur de la santé. De plus, le FE utilisé pour la rénovation est celui du résidentiel. Il y a donc plusieurs approximations. Mais l'objectif était d'avoir un ordre de grandeur.
B20: Entités du périmètre concernées | C20: tout (sauf administrations)
B21: Commentaires généraux | C21: La plus grande source d'incertitude vient des facteurs d'émission
B22: Date | C22: 2022-12-05
B25: Partie I.1: Estimation de la surface des établissements de santé
B26: Etape de calcul
B27: Commençons par présenter les ratios que nous allons retenir pour estimer la surface totale des établissements de santé.
B29: Structures | C29: ratios | D29: Unités | E29: source | F29: Type d'établissement | G29: Nombre de structures | H29: Source
B30: CHU | C30: 139 | D30: m2/lit et place | E30: Véronique Molière | F30: CHU | G30: 32 | H30: (2)
B31: CH | C31: 93 | D31: m2/lit et place | E31: Véronique Molière | F31: CH | G31: 962 | H31: (2)
B32: CHS/EPSM | C32: 114 | D32: m2/lit et place | E32: Véronique Molière | F32: CH spécialisés en psy | G32: 96 | H32: (2)
B33: Moyenne pondérée | C33: =(C30*G30+C31*G31+C32*G32)/SUM(G30:G32) -> 96.2 | D33: m2/lit et place
B35: Etape de calcul
B36: On répertorie le nombre de lits et places dans nos entités considérées
B37: Hyp 1 : On suppose que le ratio moyens des m2/lit et place des CHU/CH/CHS/EPSM est adapté aux autres structures des établissements de santé
B39: Nombre de lits et places dans les établissements de santé privés et publics | C39: Total | D39: Année | E39: Numéro de la source
B40: Nombre de lits | C40: 408245 | D40: 2017 | E40: (2)
B41: Nombre de places | C41: 72789 | D41: 2017 | E41: (2)
B42: Total | C42: =SUM(C40:C41) -> 481034 | D42: 2017 | E42: (2)
B44: Surface totale des établissements de santé publics et privés | C44: =C42*C33 -> 46275470.8 | D44: m2
B46: Partie I.2: Estimation de la surface totale des cabinets de la médecine de ville
B48: Méthodo
B49: on utilise les données disponibles sur le nombre de cabinets, officines,etc et sur les surfaces minimales légales de ces établissements
B50: Hyp 2 : On suppose que la surface moyenne d'un cabinet libéral (médical, kiné, infirmier, sage femme, dentistes...) est de 70 m2 (estimation prise à la louche mais toujours inférieure aux surfaces des établissements dont on a récupéré le BC. cf ce docuement : https://www.drhackney.net/quelle-surface-pour-un-cabinet-medical/)
B51: Hyp 3 : On suppose que la surface moyenne d'un labo, d'une pharmacie... est de 100m2. Cette estimation sous-estime sûrement la véritable surface moyenne
B52: Hyp 4 : Au vu des données sur le nombre de professionnels (médecine, sage femme, kiné...) et le nombre de cabinets, pour les professions dont nous ne disposons pas du nombre de cabinets, nous supposons qu'il y a un cabine par professionnels "libéraux ou mixte"
B54: Etape de calcul
C55: Nombre | D55: source | E55: Année
B56: Officines | C56: 21591 | D56: (2) | E56: 2017
B57: Laboratoires de biologie | C57: 1000 | D57: (2) | E57: 2017
B58: Maison de santé | C58: 910 | D58: (2) | E58: 2017
B59: Centres de santé | C59: 1933 | D59: (2) | E59: 2017
B60: Cabinets d'infirmiers | C60: 48700 | D60: (2) | E60: 2017
B61: Cabinets de masseurs-kinés | C61: 37000 | D61: (2) | E61: 2017
B62: Cabinets de médecins | C62: 36500 | D62: (2) | E62: 2017
B63: Cabinets de chirurgiens dentites | C63: 36100 | D63: (2) | E63: 2017
B64: Cabinets de pédicure-podologues | C64: 12467 | D64: (2) | E64: 2017
B65: Cabinet de sage femme | C65: 3811 | D65: (2) | E65: 2017
B67: Etape de calcul
B68: On fait l'hypothèse que la surface moyenne des cabinets est de 70m2
B70: Cela nous permet donc d'en déduire la surface minimale de l'ensemble des cabinets considérés.
C72: Nombre | D72: surface minimale (m2)
B73: Cabinets d'infirmiers | C73: 48700 | D73: =70*C73 -> 3409000
B74: Cabinets de masseurs-kinés | C74: 37000 | D74: 2590000
B75: Cabinets de médecins | C75: 36500 | D75: 2555000
B76: Cabinets de chirurgiens dentistes | C76: 36100 | D76: 2527000
B77: Cabinets de pédicure-podologues | C77: 12467 | D77: 872690
B78: Cabinet de sage femme | C78: 3811 | D78: 266770
B79: Total | C79: =SUM(C73:C78) -> 174578 | D79: 12220460
B81: Pour le moment on fait l'hopothèses que la surface moyenne d'une offine, d'un labo, d'une maison de santé ou d'un centre de santé est de 100 m2 (sûrement encore sous-estimé)
C83: Nombre | D83: Surface (m2)
B84: Officine | C84: 21591 | D84: =100*C84 -> 2159100
B85: Laboratoire de biologique | C85: 1000 | D85: 100000
B86: Maison de santé | C86: 910 | D86: 91000
B87: Centre de santé | C87: 1933 | D87: 193300
B88: total | C88: =SUM(C84:C87) -> 25434 | D88: 2543400
B90: Etape de calcul
B91: On estime la surface des cabinets manquant en estimant le nombre de ces cabinets à partir du nombre de professionnels libéraux ou mixte
B92: On suppose que chaque professionel libéral possède un cabinet. | G92: Vérification hypothèse 1 libéral = 1 cabinet
B93: Profession | C93: Nombre de professionnels "Libéraux ou mixtes" | D93: Nombre de cabinets | E93: Surface (m2) | G93: Pour les spécilités dont nous disposons du nombre de structure, nous pouvons comparer ce nombre au nombre de libéraux exerçant cette spécialité.
B94: Orthophoniste | C94: 20084 | D94: =C94 -> 20084 | E94: =70*D94 -> 1405880 | G94: On regarde ici les professions "spécialisées", à savoir chirurgien-dentiste et pédicure-podologue
B95: Orthoptiste | C95: 2916 | D95: 2916 | E95: 204120 | G95: Spécialité | H95: Nombre de structure | I95: Nombre de libéraux | J95: Nombre de professionnels par cabinet | K95: Source
B96: Psychomotricien | C96: 2767 | D96: 2767 | E96: 193690 | G96: Chirurgiens-dentistes | H96: 36100 | I96: 37279 | J96: 1.03 | K96: (3)
B97: Ergothérapeute | C97: 1403 | D97: 1403 | E97: 98210 | G97: Pédicure podologue | H97: 12467 | I97: 13422 | J97: 1.08 | K97: (4)
B98: Audioprothésiste | C98: 1177 | D98: 1177 | E98: 82390 | G98: L'hypothèse d'un médecin libéral par cabinet paraît donc pertinente.
B99: Opticien-lunétier | C99: 9530 | D99: 9530 | E99: 667100
B100: Manipulateur ERM | C100: 0 | D100: 0 | E100: 0
B101: Diététicien | C101: 4534 | D101: 4534 | E101: 317380
B102: Psychologue | C102: 21431 | D102: 21431 | E102: 1500170
B103: Total | C103: =SUM(C94:C102) -> 63842 | D103: 63842 | E103: =SUM(E94:E102) -> 4468940
G105: Vérification cohérence avec poste 1:
G106: Méthode : On utilise ici l'étude (5) afin d'utiliser le ratio surfaces chuaffées/surfaces totales = 70%
B107: Total des surfaces de la médecine de ville | C107: =SUM(E103,D88,D79) -> 19232800 | D107: m2 | G107: Combustible | H107: Part du tertiaire utilisant ce combustible (poste 1) | I107: Surface calculée chauffée utilisant ce combustible | J107: Consommation (GWh PCI) de la division 86 par source pour le chauffage (poste 1) | K107: Consommation par surface chauffée déduite pour le chauffage (kWh PCI/m2) | L107: Consommation par surface (kWh/m2) du tertiaire (poste 1)
B108: Total surface des établissements de santé | C108: =C44 -> 46275470.8 | D108: m2 | G108: Gaz | H108: 0.46 | I108: =($C$107+$C$108)*H108*0.7 -> 21093663.2 | J108: 4063.26 | K108: =1000000*J108/I108 -> 192.6294149 | L108: 126
G109: Fioul | H109: 0.15 | I109: 6878368.434 | J109: 1685.8943 | K109: 245.1009009 | L109: 292
G110: Autres combustibles (GPL + énergies renouvelables + chaleur) | H110: 0.1 | I110: 4585578.956 | J110: =82.3378+97.2569+603.47463 -> 783.06933 | K110: 170.7678218 | L110: 152
G111: Electricité | H111: 0.29 | I111: 13298178.97 | J111: 754,986 pour le chauffage, 3423 tous les usages | K111: 49,78 pour le chauffage 225,69 tous les usages | L111: 221 (tous les usages)
G112: Bilan: On trouve des résultats très cohérents. On constate de plus un report du fioul sur le gaz dans le secteur de la santé plus important que dans le reste du tertiaire.
B113: Partie I.3: Estimation de la surface totale des établissements pour personnes agées
B115: Dans cette partie nous nous intéressons aux établissements d'hébergement des personnes âgées. Il ne manquera plus qu'à ajouter les établissements d'acceuil pour enfants et adultes handicapés pour couvrir notre périmètre
B116: Méthodo
B117: On utilise les données de la DRESS pour estimer la surface des EHPA en France. Puis les données de CEREN pour le type de chauffage par surface.
B119: Etape de calcul
B121: Surfaces moyennes des bâtiments des établissements d'hébergement pour personnes âgées, par catégorie d'établissements - Situation au 31/12/2015.
B122: Catégorie d'établissements | C122: Surface totale moyenne (en m2) | D122: Nombre de structures | E122: (6)
B123: EHPAD publics | C123: 4470.27 | D123: 3344
B124: EHPAD privés non lucratifs | C124: 4284.5 | D124: 2287
B125: EHPAD privés lucratifs | C125: 3562.93 | D125: 1769
B126: EHPA non EHPAD | C126: 1425.72 | D126: 338
B127: Logements-foyers | C127: 2797.01 | D127: 2267
B128: Unités de soins de longue durée | C128: 3274.46 | D128: 596
B129: ENSEMBLE | C129: 3782.74 | D129: 10601
B132: Etape de calcul
B133: Pour ne pas faire de double compte, il faut retirer dans le nombre de lits des EHPA le nombre de ces lits qui ont déjà été inclus dans les établissements publics de santé. En effet, certains des EHPAH publics font partie des CH
B135: Catégorie d’établissement et statut juridique | C135: Nombre de résidents au 31 décembre 2015 | D135: (6)
B136: Établissements d’hébergement pour personnes âgées dépendantes (EHPAD) | C136: 585560
B137: EHPAD privés à but lucratif | C137: 125640
B138: EHPAD privés à but non lucratif | C138: 169030
B139: EHPAD publics | C139: 290890
B140: - dont EHPAD publics hospitaliers | C140: 127070
B141: - dont EHPAD publics non hospitaliers | C141: 163820
B143: Ce tableau nous permet d'estimer le pourcentage d'EHPAD qui sont des EHPAD publics hospitaliers
B145: Pourcentage des EHPAD publics hospitaliers parmis les EHPAD publics | C145: =100*C140/C139 -> 43.68317921 | D145: %
B147: Il faut maintenant retirer ces ehpad public de notre compte pour ne pas les compter une deuxième fois
B150: Etape de calcul
B151: Les EHPAD que l'on considère sont donc
B153: Catégorie d'établissements | C153: Nombre de structures
B154: EHPAD publics | C154: =TRUNC(D123*(1-C145/100)) -> 1883
B155: EHPAD privés à but non lucratif | C155: 2287
B156: EHPAD privés à but lucratif | C156: 1769
B157: EHPA non EHPAD | C157: 338
B158: Logements-foyers | C158: 2267
B159: Unités de soins de longue durée | C159: 596
B160: ENSEMBLE | C160: =SUM(C154:C159) -> 9140
B162: Etape de calcul
B163: Les surfaces totales sont
B165: Catégorie d'établissements | C165: Surface m2
B166: EHPAD publics | C166: =C154*C123 -> 8417518.41
B167: EHPAD privés à but non lucratif | C167: 9798651.5
B168: EHPAD privés à but lucratif | C168: 6302823.17
B169: EHPA non EHPAD | C169: 481893.36
B170: Logements-foyers | C170: 6340821.67
B171: Unités de soins de longue durée | C171: 1951578.16
B172: ENSEMBLE | C172: =SUM(C166:C171) -> 33293286.27
B175: Partie I.4: Estimation de la surface totale des établissements pour personnes handicapées
B177: Méthodo
B178: Dans cette partie nous nous intéressons aux établissements de services et d'accueil pour adultes et enfants handicapés. Nous n'avons pas trouvé de la documentation concernant les surfaces de ces établissements. Nous allons donc partir de la surface moyenne par patients dans les EHPAD pour en déduire la surface total recherchée en passant par le nombre de personnes accueillies dans les structures
B179: Hyp 5 : On suppose que la densité des EHPA est la même que la densité des établissements d'acceuil pour adultes et enfants handicapés
B182: Etape de calcul
B184: Surfaces moyennes des bâtiments des établissements d'hébergement pour personnes âgées, par catégorie d'établissements - Situation au 31/12/2015.
B186: Catégorie d'établissements | C186: Surface totale moyenne | D186: Surface totale moyenne par place | E186: Surface des espaces collectifs moyenne par place | F186: Surface des espaces privatifs moyenne par place | G186: (6)
B187: EHPAD publics | C187: 4470.27 | D187: 51.34559969 | E187: 21.11383266 | F187: 20.14601797
B188: EHPAD privés non lucratifs | C188: 4284.5 | D188: 57.40259402 | E188: 27.90737693 | F188: 22.79834062
B189: EHPAD privés lucratifs | C189: 3562.93 | D189: 47.90450564 | E189: 20.45949817 | F189: 21.67602046
B190: EHPA non EHPAD | C190: 1425.72 | D190: 56.7016788 | E190: 22.35066787 | F190: 26.98176038
B191: Logements-foyers | C191: 2797.01 | D191: 58.50852424 | E191: 16.85432628 | F191: 34.79172912
B192: Unités de soins de longue durée | C192: 3274.46 | D192: 58.18195217 | E192: 20.60851413 | F192: 19.96474845
B193: ENSEMBLE | C193: 3782.74 | D193: 53.62493208 | E193: 21.97795303 | F193: 23.335243
B195: Tableau 1 - Nombre de structures, de places et de personnel en équivalent temps plein (ETP) par type de structure
B197: Type de structure | C197: 2018 | H197: Évolution entre 2014 et 2018 | K197: (6)
C198: Nombre de structures | D198: Nombre de places | E198: Nombre de places moyen par structure | F198: Personnel en équivalent temps plein (ETP) | G198: ETP par place | H198: Nombre de structures | I198: Nombre de places | J198: Personnel en équivalent temps plein (ETP)
B199: Ensemble des structures | C199: 12430 | D199: 510620 | E199: 41.09290142 | F199: 257600 | G199: 0.5042943908 | H199: 0.07444876775 | I199: 0.04372257016 | J199: 0.04606666188
B200: Établissements pour enfants | C200: 2370 | D200: 108900 | E200: 45.86791406 | F200: 78100 | G200: 0.7169944851 | H200: 0.04640211018 | I200: 0.01475553485 | J200: 0.004730387583
B201: Dont :
B202: Instituts médico-éducatif (IME) | C202: 1300 | D202: 70730 | E202: 54.54460134 | F202: 46000 | G202: 0.6509601911 | H202: 0.02993479587 | I202: 0.02162826809 | J202: 0.02288503926
B203: Instituts thérapeutiques, éducatifs et pédagogiques (Itep)1 | C203: 460 | D203: 15980 | E203: 34.4840695 | F203: 12600 | G203: 0.791581854 | H203: 0.07491041299 | I203: 0.02673521851 | J203: -0.0115112246
B204: Établissements pour enfants polyhandicapés | C204: 200 | D204: 5680 | E204: 28.4 | F204: 6400 | G204: 1.133793239 | H204: -0.004975124378 | I204: 0.005309734513 | J204: -0.009660841635
B205: Instituts d'éducation motrice | C205: 140 | D205: 7180 | E205: 49.85534968 | F205: 6400 | G205: 0.8905379214 | H205: -0.01385941781 | I205: -0.02868741543 | J205: -0.01671389176
B206: Établissements pour jeunes déficients sensoriels2 | C206: 120 | D206: 6740 | E206: 57.12977966 | F206: 5000 | G206: 0.7417193295 | H206: -0.04838709677 | I206: -0.110644591 | J206: -0.08102133799
B207: Établissements d'accueil temporaire | C207: 20 | D207: 310 | E207: 12.75 | F207: 200 | G207: 0.7676617647 | H207: 0.4117647059 | I207: 0.3846153846 | J207: 0.01693966507
B208: Jardins d'enfants | C208: 10 | D208: 170 | E208: 20.625 | F208: 100 | G208: 0.508 | H208: 0 | I208: -0.006024096386 | J208: -0.1100386935
B209: Établissements expérimentaux | C209: 120 | D209: 1930 | E209: 16.75047039 | F209: 1200 | G209: 0.6019570636 | H209: 0.3895851446 | I209: 0.2684996717 | J209: 0.01886224732
B210: Foyers d'hébergement pour enfants et adolescents handicapés7 | C210: 10 | D210: 200 | E210: 39.6 | F210: 100 | G210: 0.4152525253 | H210: - | I210: - | J210: -
B211: Services pour enfants1, 3 | C211: 1800 | D211: 55790 | E211: 31.05294501 | F211: 15900 | G211: 0.2856597328 | H211: 0.1049899213 | I211: 0.1123056021 | J211: 0.1405631126
B212: Établissements pour adultes | C212: 6790 | D212: 290240 | E212: 42.76529842 | F212: 154900 | G212: 0.5337138788 | H212: 0.05943152326 | I212: 0.03047379222 | J212: 0.05256613235
B213: Dont :
B214: Établissements et services d'aide pour le travail (Esat) | C214: 1500 | D214: 119830 | E214: 80.04834001 | F214: 25600 | G214: 0.2134308432 | H214: 0.004024144869 | I214: 0.003957481568 | J214: 0.002645943442
B215: Centres de formation et d'orientation professionnelle4 | C215: 160 | D215: 11230 | E215: 70.1741125 | F215: 3700 | G215: 0.3284323956 | H215: 0.05960264901 | I215: 0.02350574294 | J215: -0.0371821671
B216: Foyers5 | C216: 4920 | D216: 154710 | E216: 31.43236311 | F216: 124200 | G216: 0.8026592451 | H216: 0.07959947774 | I216: 0.05522651934 | J216: 0.06543810553
B217: Établissements d'accueil temporaire | C217: 60 | D217: 820 | E217: 12.96825397 | F217: 400 | G217: 0.5340767442 | H217: 0.03278688525 | I217: -0.1061269147 | J217: -0.02075351094
B218: Établissement expérimental | C218: 140 | D218: 3650 | E218: 25.2171184 | F218: 1000 | G218: 0.2868436704 | H218: 0.0057244375 | I218: -0.03868070545 | J218: 0.2579841533
B219: Services pour adultes6 | C219: 1460 | D219: 55640 | E219: 38.02654436 | F219: 8600 | G219: 0.1550305826 | H219: 0.1576595419 | I219: 0.1106496008 | J219: 0.169054235
B220: Lieux de vie et d’accueil7 | C220: 10 | D220: 40 | E220: 8.8 | F220: < 100 | G220: 0.6363636364 | H220: - | I220: - | J220: -
B221: 1. Depuis 2018, la mise en place du dispositif Ditep a pu avoir un effet sur les nombres de places en Sessad et en Itep comptabilisés ici (encadré 1).
B222: 2. Instituts pour déficients visuels, établissements pour déficients auditifs, instituts d'éducation sensorielle pour enfants sourds/aveugles.
B223: 3. Services d'éducation spéciale et de soins à domicile (Sessad).
B224: 4. Centres de pré-orientation pour adultes handicapés (CPO), centres de rééducation professionnelle (CRP), unités d’évaluation, de réentraînement et d’orientation sociale et professionnelle (UEROS).
B225: 5. Foyers occupationnels et foyers de vie, foyers d'hébergement, foyers d'accueil polyvalent, maisons d'accueil spécialisées (MAS), foyers d'accueil médicalisés (FAM), établissements d’accueil médicalisés en tout ou partie pour personnes handicapées (EAM), établissements d’accueil non médicalisés pour personnes handicapées (EANM).
B226: 6. Services d'accompagnement à la vie sociale (SAVS), services d'accompagnement médico-social pour adultes handicapés (Samsah).
B227: 7. Nouvelle catégorie de structure, n’était pas pas présente dans l’enquête en 2014.
B229: Etape de calcul
B231: Nombre de m2 pour les établissements d'acceuil et de services aux enfants handicapés: | C231: =D200*D193 -> 5839755.103
B232: Nombre de m2 pour les établissements d'acceuil et de services aux adultes handicapés: | C232: =D212*D193 -> 15564100.29
B233: Total pour les établissements d'acceuil et de services pour personnes handicapés: | C233: =C231+C232 -> 21403855.39
B237: Total des surfaces | C237: =C233+C172+C107+C108 -> 120205412.5 | D237: m2
B239: Partie II: 1ère synthèse des résultats
B241: Méthodo
B242: On utilise les données de l'ADEME et du tableau maitre de ABC pour en déduire les émissions associées à la cosntruction des surfaces estimées
B246: Hyp 9 : La durée d'amortissement est de 30 ans
C247: surface totale | D247: émissions (kgCO2) | E247: émissions (MtCO2) | G247: Vérification cohérence:
B248: Etablissements de santé | C248: =C108 -> 46275470.8 | D248: =C248*1147/30 -> 1769265500 | E248: =D248/10^9 -> 1.7692655 | G248: Dans (8), on trouve que le secteur de la santé occupe 115 million de m2 de surfaces chauffées (sachant que cette étude inclus certains établissements sociaux non-pris en compte ici, et exclut les pharmacies.
B249: Médecine de ville | C249: =C107 -> 19232800 | D249: =C249*697/30 -> 446842053.3 | E249: 0.4468420533 | G249: Si on considère que 70% des surfaces sont chauffées (comme indiqué par l'étude (5)), on trouve ici (en excluant également les officines):
B250: EHPA | C250: =C172 -> 33293286.27 | D250: =C250*1043/30 -> 1157496586 | E250: 1.157496586 | G250: Nombre de surfaces chauffées (sans les officines, en millions de m2): | I250: =ROUND((C252-D84)*0.7/10^6,0) -> 83
B251: ES "Handicap" | C251: =C233 -> 21403855.39 | D251: 744140705.7 | E251: 0.7441407057 | F251: (7)
B252: total | C252: =SUM(C248:C251) -> 120205412.5 | D252: =SUM(D248:D251) -> 4117744845 | E252: =SUM(E248:E251) -> 4.117744845 | G252: Notre chiffre est donc en cohérence avec l'étude (8)
B255: Partie III: Obtention des surfaces construites il y a moins de 30 ans
B256: Etape de calcul
... 78 more rows

Sheet 10. SI
B2: Immobilisations / Sous-poste Matériel informatique SIH
B5: Tableau de bord du poste | F5: Indications du guide sectoriel
B6: Emissions totales du poste | C6: =C11 -> 1.781873731 | D6: MtCO2e/an | F6: Sources potentielles | H6: Immobilisation du matériel informatique SIH
B7: Version | C7: =C10 -> v1.0.g | F7: Données spécifiques | H7: Il s’agit de récupérer par type de matériel informatique, les quantités détenues et les durées de renouvellement du matériel à partir du suivi des unités informatiques (en nombre d’unité)
B8: Satisfaction | C8: Calcul brouillon, odg
B10: Numéro de version | C10: v1.0.g
B11: Emissions totales | C11: =C69 -> 1.781873731 | D11: MtCO2e
B12: Satisfaction vis-à-vis de la version | C12: Calcul brouillon, odg
B14: Carte d'identité de la version
B15: Hypothèses | C15: Hyp1 : Il est possible de déduire l'empreinte carbone des immobilisations en passant par les proportions de chaque sous-poste dans les BC récupérés . Nous allons utiliser les mêmes proportion pour la médecine de ville que pour les établissements de santé. Il s'agit là d'une grosse hypothèse. Hyp 2: Pour les établissements de santé, l'immobilisation des bâtiments représente 31% et celle de l'immobilisation de l'informatique 63% Hyp3: Pour la médecine de ville et le médico-social, l'immobilisation des bâtiments représente 55% et celle de l'informatique 25% Hyp 4 : Les dépenses informatiques par agent est similaire dans l'administration de la santé, dans l'administration publique et dans la complémentaire santé
B16: Données et sources | C16: (1)Bc récupérés, dont les rapports ont été déposés sur Nextcloud (2) Rapport d'informations du Sénat, http://www.senat.fr/rap/r16-076/r16-0761.pdf (3) Décarbonons l'administration publique, https://theshiftproject.org/article/decarboner-ladministration-publique-rapport-octobre-2021/ (4) Base carbone - produits informatiques, électroniques et optiques
B17: Méthodologie | C17: Dans cette première version de calcul, nous allons uniquement nous intérésser aux établissements de santé et à la médecine de ville. L'idée est de se dire que ce poste est très compliqué à estimer (étant donné qu'il faut commencer par dresser un inventaire de tous les biens immobilisés, qu'il faut ensuite utiliser les bon FE pour chaque bien pour en déduite l'empreinte carbone totale du poste. Cela prendrait donc bcp de temps (et les données ne sont pas disponibles). Or, quand on regarde les BC des différents CH, on constate que ce poste est négligeable devant les immobilisations des bâtiments par exemple. Pour ces postes, nous allons réfléchir en ordre de grandeur. Nous sommes assez confiant concernant l'estimation de l'empreinte carbone des immobilisations. L'idée va donc être de faire des hypothèses concernant la part de l'immobilisation du système informatique dans l'empreinte totale des immobilisations. Avec un produit en croix par rapport aux émissions de l'immobilisation des bâtiments, on pourra en déduire les émissions pour ces sous-postes. Pour l'administration publique et la complémentaire santé, on utilise les dépenses des différents ministères en matériel informatique
B18: Données manquantes | C18: Les vrais pourcentages de cette partie des immobilisaition pour le médico-sociale et les établissements de santé.
B19: Limites, pistes d'amélioration | C19: Cette méthode n'est pas très précise (car elle part de proportion au doigt mouillé et d'un calcul avec une certaine incertitude (celui de l'immob des bâtiments)). Aussi, elle n'est pas suffisament désagrégé pour comprendre d'où provient la majorité des immob du système informatique.
B20: Entités du périmètre concernées | C20: Toutes
B21: Commentaires généraux | C21: Ce résultat prend compte des rénovations des bâtiments
B22: Date | C22: 2022-12-05
B25: Partie I: Estimation de l'empreinte associée à l'immobilisation de l'informatique pour les établissements de santé et la médecine de ville
B27: Emissions des bâtiments des établissements de santé (MTCO2) | C27: Part des bâtiments dans les émissions des immob | D27: Emissions du SI des établissements de santé (MTCO2e) | E27: Part du SI dans les émissions des immob | G27: Concernant les établissements de santé, les proportions viennent du tableau suivant qui nous a été communiqué
B28: ='10.bâtiments'!C374 -> 0.6488624214 | C28: 0.31 | D28: =E28*B28/C28 -> 1.318655889 | E28: 0.63
B31: Partie II: Estimation de l'empreinte associée à l'immobilisation de l'informatique pour la médecine de ville
B33: Emissions des bâtiments de la médecine de ville (MTCO2) | C33: Part des bâtiments dans les émissions des immob | D33: Emissions du SI de la médecine de ville (MTCO2e) | E33: Part du SI dans les émissions des immob
B34: ='10.bâtiments'!C375 -> 0.1732678096 | C34: 0.55 | D34: =E34*B34/C34 -> 0.07875809528 | E34: 0.25
B36: Partie III: Estimation de l'empreinte associée à l'immobilisation de l'informatique pour le médico social
B38: Emissions des bâtiments du médico social (MTCO2) | C38: Part des bâtiments dans les émissions des immob | D38: Emissions du SI du médico social (MTCO2e) | E38: Part du SI dans les émissions des immob
B39: ='10.bâtiments'!C376+'10.bâtiments'!C377 -> 0.8134521312 | C39: 0.55 | D39: =E39*B39/C39 -> 0.3697509687 | E39: 0.25
B41: Partie III: Emissions de l'administration publique et de la complémentaire santé
B43: Etape de calcul
B44: Estimons les dépenses informatiques par personnel dans l'administration publique
D46: Unité | E46: Source
B47: Dépenses en matériel informatique | C47: 1473600 | D47: k€ | E47: (2)
B48: Effectif | C48: =5951793 -> 5951793 | E48: (3)
B50: Hyp 4 : Les dépenses informatiques par agent est similaire dans l'administration de la santé, dans l'administration publique et dans la complémentaire santé
B51: Le tableau suivant provient de la feuille de calcul annexe intitulée "Effectif admin & comp santé"
C52: Effectifs
B53: Administration de la santé | C53: ='Annexe 2'!C5 -> 98433.71
B54: Complémentaire santé | C54: ='Annexe 2'!C6 -> 50086.25171
B57: Dépenses informatiques | C57: =C47*(C53+C54)/C48 -> 36771.9468 | D57: k€
B58: Ratio monétaire | C58: 400 | D58: kCO2e/k€ | E58: (4)
B59: Emissions de l'administration publique et de la complémentaire santé | C59: =C57*C58/10^9 -> 0.01470877872 | D59: MtCO2e
B62: Partie IV: Synthèse
B64: Structure | C64: Émissions dures à l'immobilisation du SI (MtCO2)
B65: Médico-social | C65: =D39 -> 0.3697509687
B66: Médecine de ville | C66: =D34 -> 0.07875809528
B67: Établissements de santé | C67: =D28 -> 1.318655889
B68: Administration publique et complémentaire santé | C68: =C59 -> 0.01470877872
B69: Total | C69: =SUM(C65:C68) -> 1.781873731

Sheet 10. Mobilier+machines+véhicules
B2: Immobilisations / Mobilier+machines+véhicules
B5: Tableau de bord du poste | F5: Indications du guide sectoriel
B6: Emissions totales du poste | C6: =C11 -> 0.3259209466 | D6: MtCO2e/an | F6: Sources potentielles | H6: Immobilisation des machines, du mobilier et des véhicules
B7: Version | C7: =#REF! ->  | F7: Données spécifiques | H7: Il s’agit de récupérer par type de machine, le type de matériau, le poids et la durée d’amortissement ou de renouvellement des machines à partir du suivi annuel des quantités de fluide rechargées (en tonnes
B8: Satisfaction | C8: Calcul brouillon, odg
B10: Numéro de version | C10: v1.0.f
B11: Emissions totales | C11: =C49 -> 0.3259209466 | D11: MtCO2e
B12: Satisfaction vis-à-vis de la version | C12: Calcul brouillon, odg
B14: Carte d'identité de la version
B15: Hypothèses | C15: Hyp1 : Il est possible de déduire l'empreinte carbone des immobilisations en passant par les proportions de chaque sous-poste dans les BC récupérés . Nous allons utiliser les mêmes proportion pour la médecine de ville que pour les établissements de santé. Il s'agit là d'une grosse hypothèse. Hyp 2: Pour la médecine de ville et le médico-social, l'immobilisation du mobilier+machines+véhicules représente 10% des émissions des immobilisations et celle des bâtiments 55% Hyp3: Pour les établissements de santé, l'immobilisation du mobilier+machines+véhicules représente 7% des émissions des immobilisations et celle des bâtiments 31%
B16: Données et sources | C16: (1)Bc récupérés
B17: Méthodologie | C17: Dans cette première version de calcul, nous allons uniquement nous intérésser aux établissements de santé et à la médecine de ville. L'idée est de se dire que ce poste est très compliqué à estimer (étant donné qu'il faut commencer par dresser un inventaire de tous les biens immobilisés, qu'il faut ensuite utiliser les bon FE pour chaque bien pour en déduite l'empreinte carbone totale du poste. Cela prendrait donc bcp de temps (et les données ne sont pas disponibles). Or, quand on regarde les BC des différents CH, on constate que ce poste est négligeable devant les immobilisations des bâtiments par exemple. Pour ces postes, nous allons réfléchir en ordre de grandeur. Nous sommes assez confiant concernant l'estimation de l'empreinte carbone des immobilisations. L'idée va donc être de faire des hypothèses concernant la part de l'immobilisation du mobilier, des machines et des véhicules dans l'empreinte totale des immobilisations. Avec un produit en croix par rapport aux émissions de l'immobilisation des bâtiments, on pourra en déduire les émissions pour ces sous-postes.
B18: Données manquantes | C18: Les vrais pourcentages de cette partie des immobilisaition pour le médico-sociale et les établissements de santé.
B19: Limites, pistes d'amélioration | C19: Cette méthode n'est pas très précise (car elle part de proportion au doigt mouillé et d'un calcul avec une certaine incertitude (celui de l'immob des bâtiments)). Aussi, elle n'est pas suffisament désagrégé pour comprendre d'où provient la majorité des immob des machines, des véhicules et du mobilier (est ce que ça vient des ambulances ? des IRM ?...)
B20: Entités du périmètre concernées | C20: Toutes
B21: Commentaires généraux | C21: Ce résultat prend en compte les rénovations
B22: Date | C22: 2022-12-05
B25: Partie I: Estimation de l'empreinte associée à l'immobilisation du mobilier+machines+véhicules pour les établissements de santé
B27: Emissions des bâtiments des établissements de santé (MtcO2) | C27: Part des bâtiments dans les émissions des immob | D27: Emissions des M+M+V des établissements de santé (MtCO2e) | E27: Part des M+M+V dans les émissions des immob | G27: Concernant les établissements de santé, les proportions viennent du tableau suivant qui nous a été communiqué
B28: ='10.bâtiments'!C374 -> 0.6488624214 | C28: 0.31 | D28: =E28*B28/C28 -> 0.146517321 | E28: 0.07
B31: Partie II: Estimation de l'empreinte associée à l'immobilisation du mobilier+machines+véhicules pour la médecine de ville
B33: Emissions des bâtiments de la médecine de ville (MtCO2) | C33: Part des bâtiments dans les émissions des immob | D33: Emissions des M+M+V de la médecine de ville (MtCO2e) | E33: Part des M+M+V dans les émissions des immob
B34: ='10.bâtiments'!C375 -> 0.1732678096 | C34: 0.55 | D34: =E34*B34/C34 -> 0.03150323811 | E34: 0.1
B37: Partie III: Estimation de l'empreinte associée à l'immobilisation du mobilier+machines+véhicules pour le médico social
B39: Emissions des bâtiments du médico-social (MTCO2) | C39: Part des bâtiments dans les émissions des immob | D39: Emissions des M+M+V du médico-social (MtCO2e) | E39: Part des M+M+V dans les émissions des immob
B40: ='10.bâtiments'!C376+'10.bâtiments'!C377 -> 0.8134521312 | C40: 0.55 | D40: =E40*B40/C40 -> 0.1479003875 | E40: 0.1
B43: Partie III: Synthèse
B45: Structure | C45: Émissions dures à l'immobilisation du SI (MtCO2)
B46: Médico-social | C46: =D40 -> 0.1479003875
B47: Médecine de ville | C47: =D34 -> 0.03150323811
B48: Établissements de santé | C48: =D28 -> 0.146517321
B49: Total | C49: =SUM(C46:C48) -> 0.3259209466

Sheet 2
B2: Sources mobiles de combustion
B5: Tableau de bord du poste | F5: Indications du guide sectoriel
B6: Emissions totales du poste | C6: =C11 -> 0.2803397334 | D6: MtCO2e/an | F6: Sources potentielles | H6: Véhicules motorisés contrôlés par l’établissement (hors véhicules personnels)
B7: Version | C7: =C10 -> v1.2 | F7: Données spécifiques | H7: Il s’agit de récupérer par type de carburant, les données annuelles de carburants consommés par les véhicules de l’établissement
B8: Satisfaction | C8: =C12 -> Bon ordre de grandeur
B10: Numéro de version | C10: v1.2
B11: Emissions totales | C11: =C174 -> 0.2803397334 | D11: MtCO2e
B12: Satisfaction vis-à-vis de la version | C12: Bon ordre de grandeur
B14: Carte d'identité de la version
B15: Hypothèses | C15: Hyp 1 : La distance entre les lieu d'intervention d'urgence et le service d'urgences le plus proche est de 10km, la distance entre le service d'urgence et la base du véhicule est de 5km (compensant le fait que certains véhicules sont basés au même endroit que les services d'urgences). Hyp 2 : On considère que les véhicules d'intervention d'urgences sont des PTAC de 3,5T Hyp 3 : on supose que la distance moyenne par trajet des SMUR est similaire à la distance pour les ambulances privées
B16: Données et sources | C16: (1) Interventions du SDIS, https://mobile.interieur.gouv.fr/content/download/124275/995739/file/StatsSDIS20BD(1).pdf (2) Interventions du SMUR, https://drees.solidarites-sante.gouv.fr/sites/default/files/er1136.pdf (3) Arrivées aux urgences en PACA, https://ies-sud.fr/wp-content/uploads/2019/03/ATLAS_2012_ORUPACA.pdf (4) Evaluation de l’application du référentiel d’organisation du secours à personne et de l’aide médicale urgente, https://www.igas.gouv.fr/IMG/pdf/organisation_secours_a_personne.pdf (5) Chronologie interventions, http://www.sdis85.com/media/chronologie_intervention__001634400_0707_03092010 (6) Bilan Carbone – Anonyme (7) Rapport sur les transports sanitaires, https://www.igas.gouv.fr/IMG/pdf/RD2016_transports_sanitaires.pdf (8) Mission d’information sur les transports sanitaires, https://www.assemblee-nationale.fr/dyn/15/rapports/cion-soc/l15b5044_rapport-information.pdf (9) Les hélicoptères de service public, https://www.igas.gouv.fr/IMG/pdf/RD2016_helicopteres.pdf (10) Les hélicoptères de la sécurité civile, https://www.ovalp.com/fr/comprendre/ec145-securite-civile#:~:text=Consommation%20moyenne%20280%20litres%20%C3%A0%20l%27heure. (11) Quel carburant consomme un hélicoptère, https://www.synonyme-du-mot.com/les-articles/quel-carburant-consomme-un-helicoptere (12) Kérosène, https://fr.wikipedia.org/wiki/K%C3%A9ros%C3%A8ne
B17: Méthodologie | C17: On obtient un nombre d'interventions par type de transport, puis on estime la distance moyenne de chaque intervention.
B18: Données manquantes | C18: Distance précise parcourue par type de transport
B19: Limites, pistes d'amélioration | C19: Meilleure estimation de la distance parcourue par les différents services d'urgence
B20: Entités du périmètre concernées | C20: Tout (sauf émissions négligeables: SMUR maritime, …)
B21: Commentaires généraux | C21: Bon ordre de grandeur
B22: Date | C22: 2022-12-14
B24: Partie 0 : Synthèse des résultats
C25: Emissions associés aux services d'urgence | I25: Emission associés au transport interhospitalier et domiciles/établissements
B26: Service d'urgence | C26: Sapeurs-pompiers | D26: SMUR | E26: Ambulances privées | F26: Forces de l'ordre | G26: Hélicoptères | H26: Total urgences | I26: SMUR | J26: Ambulances privées | K26: taxis conventionnés | L26: VSL | M26: Hélicoptères | N26: Total interventions secondaires
B27: Emissions de CO2 (MtCO2e) | C27: =C107 -> 0.02639016685 | D27: =D107 -> 0.004435862 | E27: =E107 -> 0.02474080621 | F27: =F107 -> 0.001222806206 | G27: =C158 -> 0.00884891392 | H27: =SUM(C27:G27) -> 0.06563855519 | I27: =C132 -> 0.0008283457 | J27: =C133 -> 0.07583419912 | K27: =C134 -> 0.05233776258 | L27: =C135 -> 0.07005072551 | M27: =C159 -> 0.01565014528 | N27: =SUM(I27:M27) -> 0.2147011782
B30: Service d'urgence | C30: Emissions associés aux services d'urgence (hors hélicoptères) | D30: Emission associés au transport interhospitalier et domiciles/établissements (hors hélicoptères) | E30: Hélicoptères
B31: Emissions de CO2 (MtCO2e) | C31: =SUM(C27:F27) -> 0.05678964127 | D31: =SUM(I27:L27) -> 0.1990510329 | E31: =G27+M27 -> 0.0244990592
B54: Partie I - Urgences (véhicules terrestres)
B56: Etape de calcul
B57: Dans un premier temps, on dénombre le interventions des différentes structures impliquées dans les urgences
B59: Nombre d'interventions des sapeurs pompiers (SDIS + BSPP + BMPM)
B60: Type d'intervention | C60: Nombre d'intervention | D60: Part de victime en urgence absolue ou relative | E60: Part de décès ou de victimes "impliquées" | F60: (1)
B61: Secours à victime | C61: 2987049 | D61: 90 | E61: 10
B62: Accidents de la circulation | C62: 293700 | D62: 85 | E62: 15
B63: TOTAL | C63: =SUM(C61:C62) -> 3280749
B65: Nombre de sorties terrestres du SMUR | C65: (2)
B66: =553100 -> 553100
B68: Nombre d'arrivée à l'hôpital pour les ambulances privées ou par les forces de l'ordre
B69: Méthodo
B70: On estime ces données à partir des données recueillie pour les Midi-Pyrénées, le PACA, et pour une enquête de la DRESS sur une journée
C72: Propres moyens | D72: Sapeurs-pompiers | E72: Ambulances | F72: SMUR | G72: Forces de l'ordre
B73: Part des arrivées aux urgences, Midi-Pyrénées (2012) | C73: 72 | D73: 16.1 | E73: 9.6 | F73: 1.6 | G73: 0.7 | H73: (3)
B74: Part des arrivées aux urgences, PACA (2012) | C74: 69.9 | D74: 10.36 | E74: 15.03 | F74: 1.79 | G74: 0.19 | H74: (4)
B75: Part des arrivées aux urgences, DRESS, 11 juin 2013 | C75: 72.87168032 | D75: 12.3500455 | E75: 12.20319351 | F75: 1.509886655 | G75: 1.063125672 | H75: (4)
B77: A partir de ces résultats, il est donc cohérent de faire l'hypothèse nombre d'arrivée aux services d'urgences par les ambulances = Nombre d'arrivée par les Sapeurs-pompiers
B78: Pour le nombre d'arrivée par les forces de l'ordre, on réalise une moyenne entre les Midi-Pyrénées et les PACA, et on obtient:
B79: Nombre d'arrivée par les forces de l'ordre = | C79: =(G73+G74)/(F74+F73) -> 0.2625368732 | D79: fois le nombre d'arrivée par le SMUR
B81: Etape de calcul
B82: Dans un second temps, on en déduit un nombre de kilomètres parcourus pour les intevrentions d'urgences terrestres
B83: Méthodo
B84: Pour cela, on part du principe que chaque service d'urgence est à 6 minutes du lieu d'intervention (5)
B85: Si l'on considère que la vitesse des véhicule d'urgence est d'environ 60 km/h, les services d'urgences parcourent 6km jusqu'au lieu d'intervention
B87: Les véhicules transportent alors les victimes jusqu'au service d'urgence le plus proche
B88: Hyp 1 : La distance entre les lieu d'intervention d'urgence et le service d'urgences le plus proche est de 10km, la distance entre le service d'urgence et la base du véhicule est de 5km (compensant le fait que certains véhicules sont basés au même endroit que les services d'urgences).
B90: Nombre de kilomètres entre l'intervention et le service de traitement des urgences | C90: 10
B91: Nombre de kilomètres entre le service de traitement des urgences et la base du véhicule | C91: 5
B92: Nombre de kilomètres entre le lieu d'intervention et la base du véhicule: | C92: 6
B94: Service d'urgence | C94: Sapeurs-pompiers, victimes décédées ou ne nécessitant pas le transport à l'hôpital | D94: Sapeurs-pompiers, victimes nécessitant le transport à l'hôpital | E94: SMUR | F94: Ambulances privées | G94: Forces de l'ordre
B95: Nombre d'interventions | C95: =(C61*E61+C62*E62)/100 -> 342759.9 | D95: =(D61*C61+D62*C62)/100 -> 2937989.1 | E95: =B66 -> 553100 | F95: =D95 -> 2937989.1 | G95: =C79*E95 -> 145209.1445
B96: Nombre de kilomètres engendrés | C96: =C95*(2*C92) -> 4113118.8 | D96: =D95*($C92+$C90+$C91) -> 61697771.1 | E96: =E95*(2*$C90) -> 11062000 | F96: =F95*($C92+$C90+$C91) -> 61697771.1 | G96: =G95*($C92+$C90+$C91) -> 3049392.035
B98: Etape de calcul
B99: Dans un troisième temps, on convertit le nombre de kilomètres en émissions de CO2
B100: Hyp 2 : On considère que les véhicules d'intervention d'urgences sont des PTAC de 3,5T
B102: FE de la Base Carbone | C102: Valeur | D102: Unité | E102: Source
B103: PTAC 3,5t | C103: 0.401 | D103: kgCO2e/km | E103: BC Dieppe (6)
B105: Service d'urgence | C105: Sapeurs-pompiers, | D105: SMUR | E105: Ambulances privées | F105: Forces de l'ordre | G105: Total
B106: Nombre de kilomètres engendrés | C106: =C96+D96 -> 65810889.9 | D106: =E96 -> 11062000 | E106: =F96 -> 61697771.1 | F106: =G96 -> 3049392.035 | G106: =SUM(C106:F106) -> 141620053
B107: Emissions de CO2 (MtCO2e) | C107: =C106*$C$103/10^9 -> 0.02639016685 | D107: =D106*$C$103/10^9 -> 0.004435862 | E107: =E106*$C$103/10^9 -> 0.02474080621 | F107: =F106*$C$103/10^9 -> 0.001222806206 | G107: =G106*$C$103/10^9 -> 0.05678964127
B110: Partie II - Transport sanitaire
B112: Etape de calcul
B113: Dans un premier temps, on dénombre les trajets interhospitaliers et entre les établissements de santé et le domicile des patients par vsl, taxis conventionnés, SMUR ou ambulances privées
B114: Hyp 3 : on supose que la distance moyenne par trajet des SMUR est similaire à la distance pour les ambulances privées
C116: Nombre de trajets | D116: Source | E116: Distance parcourue par trajet | F116: Unité | G116: Source | H116: Distance totale
B117: SMUR terrestre | C117: =139500+19400 -> 158900 | D117: (2) | E117: 13 | F117: km | H117: =C117*E117 -> 2065700
B118: Ambulances privées | C118: 14547132 | D118: (7) | E118: 13 | F118: km | G118: (8) | H118: 189112716
B119: Taxis conventionnés | C119: 20860009 | D119: (7) | E119: 13 | F119: km | G119: (8) | H119: 271180117
B120: Véhicule sanitaires légers | C120: 27919779 | D120: (7) | E120: 13 | F120: km | G120: (8) | H120: 362957127
B122: Etape de calcul
B123: On peut ensuite calculer les émissions de CO2 associées
B124: Hyp 2 : On fait l'hypothèse que les SMUR terrestres et les ambulances sont des PTAC de 3,5T
B125: Les taxis conventionnés et les véhicules sanitaires légers seront associés au facteur d'émission des voitures de motorisaiton moyenne
B127: FE de la Base Carbone | C127: Valeur | D127: Unité | E127: Source
B128: Voiture - Motorisation moyenne - 2018, France continentale | C128: 0.193 | D128: kgCO2e/km | E128: Base Carbone | F128: Le chiffre correspond au facteur d'émission du carburant utilisé par les voiture, les émissions amonts étant potentiellement comptées dans la partie immobilisation
B129: PTAC 3,5t | C129: 0.401 | D129: kgCO2e/km | E129: BC Dieppe (6)
C131: Emissions | D131: Unité
B132: SMUR terrertre | C132: =H117*$C$129/10^9 -> 0.0008283457 | D132: MtCO2e
B133: Ambulances privées | C133: 0.07583419912 | D133: MtCO2e
B134: Taxis conventionnés | C134: =H119*$C$128/10^9 -> 0.05233776258 | D134: MtCO2e
B135: Véhicule sanitaires légers | C135: 0.07005072551 | D135: MtCO2e
B136: Total | C136: =SUM(C132:C135) -> 0.1990510329 | D136: MtCO2e
B138: Partie III - Emissions des déplacements aériens (hélicoptères)
B140: On comptabilise ici les émissions des hélicoptères du SMUR et de la protection civile
B141: Hyp: D'après la source (9) , on estime que 90% de l'activité des HéliSMUR sont des interventions dites "secondaires" (transferts inter-hospitaliers), le reste étant des interventions d'urgence
C143: Hélicoptères publics | D143: HéliSMUR | E143: Sécurité Civile | F143: Source
B144: Nombre d'heures de vol | C144: 53000 | D144: =C144*0.42 -> 22260 | E144: =C144*0.25 -> 13250 | F144: (9)
B145: Part des intevrention d'urgence | D145: 10 | E145: 80 | F145: (9)
B146: Part des interventions "secondaires" | D146: 90 | E146: 20 | F146: (9)
B150: Total nombre d'heures urgences: | C150: =(D144*D145+E144*E145)/100 -> 12826
B151: Total nombre d'heures interventions "secondaires": | C151: =(D144*D146+E144*E146)/100 -> 22684
D153: Unité | E153: Source
B154: Consommation moyenne par heure | C154: 280 | D154: L/h | E154: (10)
B155: Type de Carburant | C155: kérosène | E155: (11)
B156: émissions par kilogramme | C156: 3.08 | D156: KgCO2/Kg | E156: Base carnone, Kérosène - jet A1 ou A, France continentale
B157: Densité à 15° | C157: 800 | D157: kg m−3 | E157: (12)
B158: Total émissions hélicoptères urgences: | C158: =C150*C154*C156*C157/10^12 -> 0.00884891392 | D158: MtCO2
B159: Total émissions hélicoptères interventions "secondaires": | C159: =C151*C154*C156*C157/10^12 -> 0.01565014528 | D159: MtCO2
B160: Total hélicoptères | C160: =C159+C158 -> 0.0244990592 | D160: MtCO2
B163: Partie IV - Emissions des véhicules de l'administration publique
B172: Total Urgences (interventions terrestres et aériennes): | C172: =C158+G107 -> 0.06563855519 | D172: MtCO2
B173: Total Trajets interhospitaliers et domiciles/établissements: | C173: =C159+C136 -> 0.2147011782 | D173: MtCO2
B174: Total poste 2 | C174: =C173+C172 -> 0.2803397334 | D174: MtCO2

Sheet 13
B2: Déplacements professionnels
B5: Tableau de bord du poste | F5: Indications du guide sectoriel
B6: Emissions totales du poste | C6: =C11 -> 0.4231956596 | D6: MtCO2e/an | F6: Sources potentielles
B7: Version | C7: =C10 -> v1.2 | F7: Données spécifiques | H7: Il s’agit de récupérer les distances parcourues par type de transport à partir du PDM ou d’une enquête sur 2 semaines représentatives (en km) (Codes postaux et mode de déplacement selon les moyennes d’agglomérations ou régionales)
B8: Satisfaction | C8: =C12 -> Calcul brouillon, odg
B10: Numéro de version | C10: v1.2
B11: Emissions totales | C11: =C42+C60+C73 -> 0.4231956596 | D11: MtCO2e
B12: Satisfaction vis-à-vis de la version | C12: Calcul brouillon, odg
B14: Carte d'identité de la version
B15: Hypothèses | C15: Hyp 1: Tous les déplacements des infirmiers sont réalisés en voiture Hyp 2: on fait l'hypothèse que la distance moyenne parcourue par des visite à domicile est de 10km (comprenant les aller-retours au cabinet, ou l'enchainement entre deux patients) Hyp 3: La distance moyenne parcourue pour un aller pour la HAD est de 20km. Une journée de HAD entraine un déplacement pour se rendre chez le patient. Une journée de HAD entraine donc un déplacement de 40km
B16: Données et sources | C16: (1) Infirmier (e) libéral (e) en Haute-Normandie : réalité d’un exercice, https://www.urps-infirmiers-normandie.fr/page/URPS_PDF.aspx?OID=301&ID=313 (2) ActuSoins, https://www.actusoins.com/294974/20-patients-jour-jusqua-68-heures-de-travail-semaine-enquete-revele-conditions-de-travail-infirmieres-liberales-region-paca.html (3) Périmètre secteur santé v1.11.xlsx, données issues de la DREES, entre 2016 et 2018 (4) Base Carbone, Ademe, https://www.bilans-ges.ademe.fr/ (5) https://drees.solidarites-sante.gouv.fr/sites/default/files/2022-12/ER1249EMB.pdf (6) https://assurance-maladie.ameli.fr/sites/default/files/2019_activite-des-medecins-liberaux-par-departement_serie-annuelle.xls (7) Les établissements d'hospitalisaiton à domicile, https://drees.solidarites-sante.gouv.fr/sites/default/files/2021-07/Fiche%2016%20-%20Les%20%C3%A9tablissements%20d%E2%80%99hospitalisation%20%C3%A0%20domicile.pdf
B17: Méthodologie | C17: Pour ce poste, nous allons estimer les émissions associées aux déplacements professionnels des infirmiers, des médecins libéraux ainsi qu'aux déplacements en HAD. Pour les infirmiers, nous allons partir d'hypothèses sur le nombre de kilomètres moyens parcourus chaque jour par infirmiers libéraux. En multipliant ce nombre par le nombre de jours travaillés et le nombre de professionnels, nous allons en déduire la distance totale parcourue pour ces déplacements. Nous en déduirons ensuite les émissions à partir du facteur d'émission de l'ADEME Pour la HAD, nous allons partir du nombre total de journées de HAD réalisées. Nous supposerons ensuite que chacune de ces journées implique un aller-retour de la part des professionnels de la HAD. Puis en faisant l'hypothèse que pour chacun de ces déplacements la distance parcourue est de 20km aller, nous en déduirons la distance totale et donc les émissions.
B18: Données manquantes | C18: Données plus précises sur le nombre de kilomètres moyens parcourus par les infirmiers et les médecins livéraux. Des informations sur le fonctionnement de la HAD, données sur les frais de colloques/séminaires
B19: Limites, pistes d'amélioration
B20: Entités du périmètre concernées | C20: Tout. Il faudrait aussi ajouter les déplacements longues distances en avion pour des colloques/conférences/cours
B21: Commentaires généraux | C21: Manques
B22: Date | C22: 2022-12-14
B24: Partie I: Estimation de l'empreinte carbone associée aux déplacements des infirmiers libéraux
B25: Méthodo
B26: On prend le nombre d'infirmiers libéraux et on muliplie ce nombre par une distance anuelle moyenne parcourue
B27: On utilise la distance moyenne parcourue par les infirmiers de Haute Normandie : 25500 km/an/infirmiers | E27: (1)
B28: D'après (2), 50% des déplacements se font à 2, 25% à 1 et 25% à 3 professionnels. | E28: (2)
B30: Médecins et autres professions de santé | C30: Total | D30: Libéraux exclusifs | E30: Mixtes | F30: Libéraux ou mixtes | G30: Salariés hospitaliers | H30: Autres salariés | I30: Source
B31: Infirmiers | C31: 682254 | F31: 117451 | G31: 446580 | H31: 118223 | I31: (3)
B34: nombre d'infirmiers équivalent (pour un infirmier par trajet) | C34: =0.5*F31/2+0.25*F31+0.25*F31/3 -> 68513.08333
B35: Nombre de kilomètres par an | C35: =25500 -> 25500 | D35: (1)
B36: Distance parcourue chaque année (km) | C36: =C35*C34 -> 1747083625
B38: Hyp 1: Tous les déplacements des infirmiers sont réalisés en voiture
B39: FE de la Base Carbone | C39: Valeur | D39: Unité | E39: Source
B40: Voiture - Motorisation moyenne - 2018, France continentale | C40: 0.193 | D40: kgCO2e/km | E40: Base Carbone (4) | F40: Le chiffre correspond au facteur d'émission du carburant utilisé par les voiture, les émissions amonts étant potentiellement comptées dans la partie immobilisation
B42: émissions totales | C42: =C36*C40/10^9 -> 0.3371871396 | D42: MtCO2e
B44: Partie II: Estimation de l'empreinte carbone associée aux déplacements des médecins libéraux
B45: Méthodo
B46: On prend le nombre visites effectuées par des médecins livéraux, et on le multiplie par une estimation de la distance moyenne entre un patient et le médecin
B48: Distance entre les mairies des communes des patients et des médecins | C48: Même commune | D48: 0-5km | E48: 5-10km | F48: 10-30km | G48: Plus de 30km
B49: Part pour les visites à domicile | C49: 52.8 | D49: 13.3 | E49: 15.3 | F49: 12.3 | G49: 6.4 | H49: (5)
B51: Hyp 2 : à partir du tableau précédent, on fait l'hypothèse que la distance moyenne parcourue par des visite à domicile est de 10km (comprenant les aller-retours au cabinet, ou l'enchainement entre deux patients)
B53: Nombre de visites réalisées par des médecins libéraux par an | C53: 20612000 | D53: (6)
B54: Distance moyenne d'un patient | C54: 10
B55: Distance parcourue chaque année (km) | C55: =C53*C54 -> 206120000
B57: FE de la Base Carbone | C57: Valeur | D57: Unité | E57: Source
B58: Voiture - Motorisation moyenne - 2018, France continentale | C58: 0.193 | D58: kgCO2e/km | E58: Base Carbone (4)
B60: émissions totales | C60: =C55*C58/10^9 -> 0.03978116 | D60: MtCO2e
B62: Partie III: Estimation de l'empreinte carbone associée aux déplacements des HAD
B63: Méthodo
B64: On prend le nombre d'HAD réalisé, on le multiplie par la distance moyenne parcourue par journée.
B65: Hyp 3 : La distance moyenne parcourue pour un aller pour la HAD est de 20km. Une journée de HAD entraine un déplacement pour se rendre chez le patient. Une journée de HAD entraine donc un déplacement de 40km
B68: Nombre de journées de HAD réalisées en 2019 (En millions) | C68: 5.988 | D68: (7)
B69: Distance moyenne parcourue par jour de HAD | C69: 40
B70: Distance parcourue chaque année (km) | C70: =C68*C69*10^6 -> 239520000
B73: Emissions totales | C73: =C70*C40/10^9 -> 0.04622736

Sheet 16
B2: Transport des clients et visiteurs
B5: Tableau de bord du poste | F5: Indications du guide sectoriel
B6: Emissions totales du poste | C6: =C15 -> 4.288922091 | D6: MtCO2e/an | F6: Sources potentielles | H6: - Déplacements de patients/ consultants pour accéder et quitter l’établissement - Déplacements de visiteurs
B7: Version | C7: =B15 -> v1.4 | F7: Données spécifiques | H7: - Il s’agit de récupérer les distances effectuées par type de transport à partir du suivi du nombre de patients/ consultants, des distances et type de transport ou d’une enquête sur 2 semaines représentatives (Voir détail ci-après) (en km) (Nombre de patients, distances moyennes de transport) - Il s’agit de récupérer les distances effectuées par type de transport à partir du suivi du nombre de visiteurs, des distances et type de transport ou d’une enquête sur 2 semaines représentatives (Voir détail ci-après) (en km) (Nombre moyen de visiteurs par patient (enquête ou bibliographie), distances moyennes de transport et mode de déplacement selon les moyennes d’agglomérations ou régionales)
B8: Satisfaction | C8: =D15 -> Bon ordre de grandeur
E13: Faire les liens avec les fiches d'identité des versions directement (pas avec le tableau de bord, car celui-ci est mis à jour à chaque nouvelle version).
B14: Version du poste | C14: Emissions (MtCO2e) | D14: Satisf. | E14: Version sous-poste Patients | F14: Emissions (MtCO2e) | G14: Satisf. | H14: Version sous-poste Visiteurs | I14: Emissions (MtCO2e) | J14: Satisf.
B15: v1.4 | C15: =F15+I15 -> 4.288922091 | D15: Bon ordre de grandeur | E15: ='16.patients'!C7 -> v1.4 | F15: ='16.patients'!C6 -> 3.52840016 | H15: ='16.visiteurs'!C7 -> v1.4 | I15: ='16.visiteurs'!C6 -> 0.7605219314

Sheet 16.patients
B2: Transport des clients et visiteurs / Sous-poste Patients
B5: Tableau de bord du poste | F5: Indications du guide sectoriel
B6: Emissions totales du poste | C6: =C12 -> 3.52840016 | D6: MtCO2e/an | F6: Sources potentielles | H6: Déplacements de patients/ consultants pour accéder et quitter l’établissement
B7: Version | C7: =C11 -> v1.4 | F7: Données spécifiques | H7: Il s’agit de récupérer les distances effectuées par type de transport à partir du suivi du nombre de patients/ consultants, des distances et type de transport ou d’une enquête sur 2 semaines représentatives (Voir détail ci-après) (en km) (Nombre de patients, distances moyennes de transport)
B8: Satisfaction | C8: =C13 -> Bon ordre de grandeur
B11: Numéro de version | C11: v1.4
B12: Emissions totales | C12: =C275 -> 3.52840016 | D12: MtCO2e
B13: Satisfaction vis-à-vis de la version | C13: Bon ordre de grandeur
B15: Carte d'identité de la version
B16: Hypothèses | C16: Hyp1 : On suppose qu'il y a un aller-retour patient pour les journées d'hospitalisation partielle et pour les séjours d'hospitalisation complète Hyp2 : On suppose que les séjours longue-durée n'occasionnent qu'un aller patient. Hyp3 : On suppose que les séjours soins longue-durée durent en moyenne un an et demi. Hyp4 : On suppose une distance moyenne pour le trajet à l'hôpital de 20km (chiffre basé sur des exemples de BC d'établissements hospitaliers) Hyp5 : On néglige ici les trajets des patients vers les EHPA. On considère uniquement les trajets des patients Hyp6 : Pour les établissements pour personnes handicapées, les accueils en internat entrainent seulement des visites, les accueils de jour entrainent seulement un aller-retour par jour et par patients, et les accuiels "autres" ne sont pas pris en compte Hyp7 : On suppose une distance moyenne pour le trajet aux établissements pour personnes handicapées de 20km Hyp8 : On suppose une distance moyenne de 10km pour les trajets aux cabinets de médecins, de 3,8km aux pharmacies et de 5km pour les laboratoires d'analyses et les opticien-lunetier
B17: Données et sources | C17: (1) L'activité en hospitalisation, https://drees.solidarites-sante.gouv.fr/sites/default/files/2021-07/Fiche%2003%20-%20L%E2%80%99activit%C3%A9%20en%20hospitalisation%20compl%C3%A8te%20et%20partielle.pdf (2) Le long séjour : les unités de soins de longue durée (USLD), maisons-de-retraite.fr, http://www.maisons-de-retraite.fr/Bien-choisir-sa-maison-de-retraite/Les-differents-types-d-etablissement/Les-services-hospitaliers/Le-long-sejour-les-unites-de-soins-de-longue-duree-USLD (3) Fiche mobilité quotidienne V1 du PTEF, TSP, 2020, https://theshiftproject.org/wp-content/uploads/2021/04/TSP-PTEF-V1-FL-Mobilite-Q.pdf (4) Les établissements et services pour personnes handicapées, DREES, 2018, https://drees.solidarites-sante.gouv.fr/sites/default/files/2021-01/Fiche%2023%20-%20Les%20%C3%A9tablissements%20et%20services%20pour%20personnes%20handicap%C3%A9es.pdf (5) Voiture - Motorisation moyenne - 2018, France continentale, https://bilans-ges.ademe.fr/fr/basecarbone/donnees-consulter/liste-element?recherche=voiture (6) https://www.ordre.pharmacien.fr/content/download/38401/file/2566938_CP_CNOP_Demographie%20pharmaceutique%20au%201er%20janvier%202021.pdf?version=1 (7) http://www.ecosante.fr/ (8) Activité des médecins libéraux, https://view.officeapps.live.com/op/view.aspx?src=https%3A%2F%2Fassurance-maladie.ameli.fr%2Fsites%2Fdefault%2Ffiles%2F2019_activite-des-medecins-liberaux-par-departement_serie-annuelle.xls&wdOrigin=BROWSELINK (9) Chiffres de la PMI, https://drees.solidarites-sante.gouv.fr/sites/default/files/2022-03/er1227_0.pdf (10) Centres de santé, https://view.officeapps.live.com/op/view.aspx?src=https%3A%2F%2Fwww.fncs.org%2Fsites%2Fdefault%2Ffiles%2Fpdf%2Fecds_tdb_2020_NAT.xlsx&wdOrigin=BROWSELINK (11) Démographie des professionnels de santé, https://drees.shinyapps.io/demographie-ps/ (12) Les SSTI, https://www.presanse.fr/wp-content/uploads/2019/11/IM_novembre_2019.pdf (13) L'activité des chirurgiens dentistes, https://view.officeapps.live.com/op/view.aspx?src=https%3A%2F%2Fassurance-maladie.ameli.fr%2Fsites%2Fdefault%2Ffiles%2F2019_activite-prescriptions-des-chirurgiens-dentistes-liberaux-ape-par-region_serie-annuelle.xls&wdOrigin=BROWSELINK (14) L'activité des sages-femmes, https://view.officeapps.live.com/op/view.aspx?src=https%3A%2F%2Fassurance-maladie.ameli.fr%2Fsites%2Fdefault%2Ffiles%2F2019_activite-des-sages-femmes-liberales-par-region_serie-annuelle.xls&wdOrigin=BROWSELINK (15) L'activité des auxilliaires médicaux, https://view.officeapps.live.com/op/view.aspx?src=https%3A%2F%2Fassurance-maladie.ameli.fr%2Fsites%2Fdefault%2Ffiles%2F2019_activite-des-auxiliaires-medicaux-liberaux-par-region_serie-annuelle.xls&wdOrigin=BROWSELINK (16) Panorama statistique de l'Education nationale, https://www.education.gouv.fr/media/118135/download (17) https://www.lemonde.fr/vous/article/2011/12/03/un-premier-pas-vers-la-fin-des-ordonnances-papier_1613092_3238.html (18) https://biogroup.fr/presentation-biogroup/ (19) https://www.gfk.com/fr/insights/optique-un-marche-de-66mds-eur-en-france
B18: Méthodologie | C18: On sépare le calcul par type d'établissements : - Pour les hôpitaux on calcule un kilométrage global à partir du nombre total de journées/séjours et d'une hypothèse de distance moyenne parcourue pour une journée/séjour. On utilise ensuite le facteur d'émission venant du secteur MobQuoti du PTEF. - Pour les consultations des libéraux on fait du cas par cas. Dans l'ensemble, on tente de compter le nombre de professionnels médecins/autres professions de santé, qu'on multiplie avec un nombre de consultations par médecin afin d'avoir le nombre total de consultations, on multiplie par une distance moyenne parcourure pour une consultation pour avoir le kilométrage total. - Pour les EPHA on considère que les émissions patients sont négligeables et qu'il n'y a qu'un sujet visiteurs - Pour les établissements pour personnes handicapées, on distingue l'accueil de jour, pour lequel il y a dans une journée un aller-retour pour amener la personne et un pour la récupérer (on divise en deux ces émissions entre patients et accompagnateurs), et l'internat pour lequel, comme pour les EPHA, on ne va considérer que les émissions des visiteurs (n'ayant pas d'infos sur les déplacements patients) Il faut ajouter à cela qu'on prépare le terrain pour le poste Visiteurs en calculant des émissions accompagnateurs et des durées de séjours, et que les émissions ambulances et VSL partent dans le poste 2.
B19: Données manquantes | C19: Du plus précis pour les transports, plus spécifique santé : pour les distances moyennes, les parts modales/FE. Données sur les distances moyennes Des données plus spécifiques sur le nombre de clients des pharmacies concernés par notre périmètre (donc hors cosmétique)
B20: Limites, pistes d'amélioration | C20: De nombreuses hypothèses, notamment sur les distances moyennes des trajets, sont non vérifiées.
B21: Entités du périmètre concernées | C21: Tout le secteur de la santé
B22: Commentaires généraux
B23: Date | C23: 2023-01-25
B27: Partie I - Estimation des trajets pour les établissements hospitaliers
B29: Méthodo
B30: On cherche à estimer le nombre d'allers-retours effectués par des patients entre leur domicile et les établissements hospitaliers
B31: Pour cela, on regarde les chiffres concernant les nombres de journées/séjours selon certaines caractérisations (types d'établissements, types de soins…).
B32: De même, on utilisera la durée des séjours pour estimer le nombre de trajets visiteurs. ---VISITEURS---
B34: Hyp1 : On suppose qu'il y a un aller-retour patient pour les journées d'hospitalisation partielle et pour les séjours d'hospitalisation complète
B35: Pour les séjours en soins de longue durée, on trouve des durées moyennes pour ensuite estimer le nombre de visiteurs. ---VISITEURS---
B36: Hyp2 : On suppose que les séjours longue-durée n'occasionnent qu'un aller patient.
B38: Nombre de séjours et de journées selon le statut de l'établissement en 2019
C39: Établissements publics | D39: Établissements privés à but non lucratif | E39: Établissements privés à but lucratif | F39: Ensemble des établissements | G39: (1)
B40: Journées en hospitalisation partielle | C40: 7657767 | D40: 3311930 | E40: 6617813 | F40: =SUM(C40:E40) -> 17587510
B41: Soins de court séjour (MCO) | C41: 3396428 | D41: 756629 | E41: 4050530 | F41: 8203587
B42: Psychiatrie* | C42: 3220363 | D42: 912532 | E42: 658440 | F42: 4791335
B43: Soins de suite et de réadaptation | C43: 1040976 | D43: 1642769 | E43: 1908843 | F43: 4592588
B44: Séjours en hospitalisation complète** | C44: 7763832 | D44: 1200222 | E44: 2778716 | F44: 11742770
B45: Soins de court séjour (MCO) | C45: 6949336 | D45: 854703 | E45: 2301748 | F45: 10105787
B46: Psychiatrie | C46: 403065 | D46: 67640 | E46: 128457 | F46: 599162
B47: Soins de suite et de réadaptation*** | C47: 411431 | D47: 277879 | E47: 348511 | F47: 1037821
B48: Journées en hospitalisation complète** | C48: 74226737 | D48: 16007471 | E48: 26622432 | F48: 116856640
B49: Soins de court séjour (MCO) | C49: 41530045 | D49: 4616095 | E49: 9669671 | F49: 55815811
B50: Psychiatrie | C50: 10576459 | D50: 2101977 | E50: 5051725 | F50: 17730161
B51: Soins de suite et de réadaptation*** | C51: 12697850 | D51: 8401668 | E51: 11689847 | F51: 32789365
B52: Journées en soins de longue durée | C52: 9422383 | D52: 887731 | E52: 211189 | F52: 10521303
B53: * Le nombre de journées est exprimé en équivalent-journée où une demi-journée compte pour moitié.
B54: ** Hors soins de longue durée.
B55: *** Y compris les maisons d'enfants à caractère sanitaire (MECS) temporaires.
B57: Etape de calcul
B58: Durées des types de séjours en soins de longue durée
B60: Hyp3 : On suppose que les séjours soins longue-durée durent en moyenne un an et demi.
B62: Durée d'un séjour longue-durée : | C62: =365+182 -> 547 | D62: jours | E62: (2)
B65: Etape de calcul
B66: Récapitulatif sur les nombres de journées/séjours en hôpitaux.
B67: Note : on fait la distinction MCO,SSR / psychiatrie car cela servira dans le poste 16.visiteurs ---VISITEURS---
B69: Statistiques sur les journées et séjours d'hospitalisation | C69: Public | D69: Privé non lucratif | E69: Privé lucratif | F69: Total | G69: Unité
B70: Journées hosp. complète MCO et SSR | C70: =C49+C51 -> 54227895 | D70: =D49+D51 -> 13017763 | E70: =E49+E51 -> 21359518 | F70: =F49+F51 -> 88605176 | G70: journées | H70: ---VISITEURS---
B71: Journées hosp.complète psychiatrie | C71: =C50 -> 10576459 | D71: =D50 -> 2101977 | E71: =E50 -> 5051725 | F71: =F50 -> 17730161 | G71: journées | H71: ---VISITEURS---
B72: Journées soins de longue durée | C72: =C52 -> 9422383 | D72: =D52 -> 887731 | E72: =E52 -> 211189 | F72: =SUM(C72:E72) -> 10521303 | G72: journées | H72: ---VISITEURS---
B73: Séjours hosp. complète MCO et SSR | C73: =C45+C47 -> 7360767 | D73: =D45+D47 -> 1132582 | E73: =E45+E47 -> 2650259 | F73: 11143608 | G73: séjours
B74: Séjours hosp. complète psychiatrie | C74: =C46 -> 403065 | D74: =D46 -> 67640 | E74: =E46 -> 128457 | F74: 599162 | G74: séjours
B75: Séjours soins de longue durée | C75: =C72/$C62 -> 17225.56307 | D75: =D72/$C62 -> 1622.908592 | E75: =E72/$C62 -> 386.0859232 | F75: 19234.55759 | G75: séjours
B76: Total des allers-retours patients (on compte pour 1/2 seulement les SLD car il n'y a que l'aller d'après l'hypothèse Hyp2) | C76: =C40+C73+C74+C75*0.5 -> 15430211.78 | D76: =D40+D73+D74+D75*0.5 -> 4512963.454 | E76: =E40+E73+E74+E75*0.5 -> 9396722.043 | F76: =F40+F73+F74+F75*0.5 -> 29339897.28 | G76: Allers-retours
B78: Etape de calcul
B79: Calcul du kilométrage total associé à ces journées/séjours.
B80: Chaqueséjour entraîne un aller-retour patient
B81: On va convetir le kilométrage total parcouru en émissions grâce au FE du secteur Mobquoti, cependant :
B82: on retranche au préalable à ce total les distances totales parcourues en ambulances, VSL et taxis, qui auront leur FE propre. ---POSTE 2---
B84: Hyp4 : On suppose une distance moyenne pour le trajet à l'hôpital de 20km (chiffre basé sur des exemples de BC d'établissements hospitaliers)
B86: Distance d'un trajet à l'hôpital (aller uniquement) | C86: 20 | D86: km
B87: Distance totale parcourue par les patients (aller et retour) | C87: =F76*C86*2 -> 1173595891 | D87: km
B88: Distance totale parcourue par les patients (aller et retour) | C88: =C87/10^9 -> 1.173595891 | D88: Gkm
B91: Etape de calcul
B92: On retranche les trajets effectués dans le cadre des transports d'urgence calculés dans le Poste 2
B94: Kilométrage des trajets hôpitaux patients par mode de transport (Gkm) | C94: Patient
B95: Tout mode | C95: =C88 -> 1.173595891
B96: Transports d'urgences (SDIS, SMUR, …) | C96: ='2'!G106/10^9 -> 0.141620053
B97: Hors modes spécifiques santé | C97: =C95-SUM(C96:C96) -> 1.031975838
B99: Etape de calcul
B100: On utilise le facteur d'émission de la mobilité quotidienne calculé pour le PTEF
B102: FE de la Base Carbone | C102: Valeur | D102: Unité | E102: Source
B103: FE déplacement mobilité quotidienne | C103: ='22'!C163 -> 0.1143377748 | D103: ='22'!D163 -> kgCO2e/pkm | E103: Secteur MobQuoti PTEF (3)
B106: Emissions des trajets hôpitaux patients (poste 16 et poste 2) | C106: MtCO2e
B107: Modes de transport non spécifiques santé | C107: =C97*10^9*C103/10^9 -> 0.117993821 | D107: =C95*10^9*C103/10^9 -> 0.1341863427
B109: Etape de calcul
B110: On répartit ces émissions au prorata des journées/séjours dans le public, privé lucratif, privé non lucratif.
B111: On n'inclut pas les ambulances et VSL qui vont dans le poste 2. ---POSTE 2---
B113: Répartition par types d'hôpitaux des trajets hôpitaux patients | C113: MtCO2e
B114: Public | C114: =(C107)*C76/F76 -> 0.06205439744
B115: Privé non lucratif | C115: =(C107)*D76/F76 -> 0.01814940921
B116: Privé lucratif | C116: =(C107)*E76/F76 -> 0.03779001433
B117: Total | C117: =SUM(C114:C116) -> 0.117993821
B120: Partie II - Estimation des déplacements des patients du médico-social
B121: Etape de calcul
B122: Patients des EPHA
B123: Hyp5 : On néglige ici les trajets des patients vers les EHPA. On considère uniquement les trajets des patients
B125: Etape de calcul
B126: Patients des établissements pour personnes handicapées
B127: Méthodo
B128: Dans les établissements pour personnes handicapées, environ la moitié des personnes accueillies le sont sur le temps long ("internat"), tandis que l'autre moitié l'est à la journée ("accueil de jour")
B129: Une minorité (un peu moins de 10%) connait une situation un peu plus complexe ("autres" = "hébergement éclaté, accueil familial, accueil temporaire, prestation sur le lieu de vie, etc.")
B130: On suppose que :
B131: Hyp6 : Les accueils de jour entrainent des déplacements de un aller-retour par jour et par patients, et pas de visiteurs
B132: Hyp6 : Les accueils en internat entrainent seulement des visites (Les déplacements patients ne sont pas pris en compte). Ils seront traités dans l'onglet "16.visiteurs"
B133: Hyp6 : Les accueils "Autres", ne sont pas pris en compte
B134: Pour les accueils de jour, on prend la même hypothèse de trajet moyen que pour une consultation en libéral
B136: Hyp7 : On suppose une distance moyenne pour le trajet aux établissements pour personnes handicapées de 20km
B138: Répartition des personnes accueillies en établissements pour personnes handicapées | C138: Total | D138: Accueil de jour | E138: Internat | F138: Autres
B139: Enfants accueillis | C139: 110900 | D139: 0.64 | E139: 0.31 | F139: 0.05 | G139: (4)
B140: Adultes accueillis | C140: 293900 | D140: 0.46 | E140: 0.45 | F140: 0.09 | G140: (4)
B141: Personnes accueillies | C141: =C139+C140 -> 404800 | D141: =$C139*D139+$C140*D140 -> 206170 | E141: =$C139*E139+$C140*E140 -> 166634 | F141: =$C139*F139+$C140*F140 -> 31996
B143: Kilométrage dû aux accueils de jour | C143: Valeur | D143: Unité
B144: Trajet moyen accueil de jour (aller et retour) | C144: =40 -> 40 | D144: km
B145: Trajets patients | C145: =D141*C144*365.25/10^9 -> 3.0121437 | D145: Gkm/an
B147: FE de la Base Carbone | C147: Valeur | D147: Unité | E147: Source
B148: Voiture - Motorisation moyenne - 2018, France continentale | C148: 0.216 | D148: kgCO2e/km | E148: (5)
B150: Emissions transport patients et accompagnateurs pour accueils de jour en établissements pour personnes handicapées (MtCO2e) | C150: Patients
B151: Voiture | C151: =C145*10^9*C148/10^9 -> 0.6506230392
B155: Partie III - Estimation des déplacements des patients pour la médecine de ville
B157: Méthodo
B159: Pour chaque professionnel de santé (y compris médecins libéraux, pharmaciens, techiciens de laboratoires, opticiens, …), on formule des hypothèses spécifiques pour obtenir les distances des patients associés.
B160: On cherchera notamment pour la plupart des cas à trouver le nombre de consultations, puis on y associera une distance parcourues pour chaque consultation
B162: Pour les distances parcourues, on utilisera les hypothèses suivantes :
B163: Hyp8 : On suppose une distance moyenne de 10km pour les trajets aux cabinets de médecins, de 3,8km aux pharmacies et de 5km pour les laboratoires d'analyses et les opticien-lunetier
B164: Les hypothèses sont résumées par le tableau suivant :
C165: Distance entre le domicile du patient et le professionnel (km) | D165: Remarque
B166: Médecin généraliste ou spécialiste | C166: 10 | D166: La distance est probablement sous-estimée pour les médecins spécialistes
B167: Pharmacie | C167: 3.8 | D167: Il s'agit de la distance moyenne de la pharmacie la plus proche (6)
B168: Laboratoire d'analyse | C168: 5
B169: Opticien-lunetier | C169: 5
B171: On utilisera également les chiffres suivants:
C172: valeur | D172: Source
B173: Nombre de consultations moyen annuel par médecin omnipracticien (2009) | C173: 4075 | D173: (7)
B174: Nombre de consultations moyen annuel par médecin spécialiste (2009) | C174: 1843.6 | D174: (7)
B175: Nombre de consultations moyen annuel par médecin libéral (2013) | C175: 3021.5 | D175: (7)
B176: Facteur d'émission mobilité quotidienne (kgCO2e/km) | C176: =C103 -> 0.1143377748 | D176: (3)
B178: Note : On ne compte pas de déplacements de patients pour les médecins scolaires, militaires, les médecins pompiers, du SAMU, la médecine pénitentiaire, les médecins en MDPH ou EHPAD, les spécialistes en anatomie et cytologie pathologiques, en biologie médicale, en gériatrie, en santé publique et médecine sociale, les psychomotriciens, les ergothérapeuthe, les manipulateurs ERM et les infirmiers
C180: Spécialité | D180: Chiffres utilisés | E180: Chiffre spécifique | F180: Valeur | G180: Source | H180: Distance engendrée (Gkm) | I180: Emissions engendrées (MtCO2e)
B181: Médecins généralistes et spécialistes | C181: Médecins généralistes, MEP et spécialistes libéraux | D181: Nombre de consultations ; distance médecin généraliste ou spécialiste | E181: Nombre de consultations | F181: =337165940 -> 337165940 | G181: (8) | H181: =F181*2*C166/10^9 -> 6.7433188 | I181: =H181*C$176 -> 0.7710160664
B182: Médecins généralistes et spécialistes salariés non hospitaliers | C182: Médecin de protection maternelle et infantile (PMI) | D182: Nombre de consultations ; distance médecin généraliste ou spécialiste | E182: Nombre de consultations | F182: 2627600 | G182: (9) | H182: =F182*2*C166/10^9 -> 0.052552 | I182: 0.006008678741
C183: Médecin conseil de la sécurité sociale (on attend Clara) | D183: Nombre de professionnels, nombre de consultations moyen annuel; distance médecin généraliste ou spécialiste | E183: Nombre de professionnels | I183: 0
C184: Médecin généraliste en centre de santé | D184: Nombre de professionnels, nombre de consultations moyen annuel ; distance médecin généraliste ou spécialiste | E184: Nombre de professionnels | F184: 2930 | G184: (10) | H184: =F184*C173*2*C166/10^9 -> 0.238795 | I184: 0.02730328893
C185: Spécialistes en anesthésie-réanimation | D185: Nombre de professionnels, nombre de consultations moyen annuel ; distance médecin généraliste ou spécialiste | E185: Nombre de professionnels | F185: 433 | G185: (11) | H185: =F185*C$174*2*C$166/10^9 -> 0.015965576 | I185: 0.001825468433
C186: Spécialistes en cardiologie et maladies vasculaires | D186: Nombre de professionnels, nombre de consultations moyen annuel ; distance médecin généraliste ou spécialiste | E186: Nombre de professionnels | F186: 200 | G186: (11) | H186: 0.0073744 | I186: 0.0008431724865
C187: Spécialistes en chirurgie générale | D187: Nombre de professionnels, nombre de consultations moyen annuel ; distance médecin généraliste ou spécialiste | E187: Nombre de professionnels | F187: 121 | G187: (11) | H187: 0.004461512 | I187: 0.0005101193543
C188: Spécialistes en chirurgie maxillo-faciale et stomatologie | D188: Nombre de professionnels, nombre de consultations moyen annuel ; distance médecin généraliste ou spécialiste | E188: Nombre de professionnels | F188: 39 | G188: (11) | H188: 0.001438008 | I188: 0.0001644186349
C189: Spécialistes en chirurgie orthopédique et traumatologie | D189: Nombre de professionnels, nombre de consultations moyen annuel ; distance médecin généraliste ou spécialiste | E189: Nombre de professionnels | F189: 61 | G189: (11) | H189: 0.002249192 | I189: 0.0002571676084
C190: Spécialistes en chirurgie infantile | D190: Nombre de professionnels, nombre de consultations moyen annuel ; distance médecin généraliste ou spécialiste | E190: Nombre de professionnels | F190: 12 | G190: (11) | H190: 0.000442464 | I190: 5.059034919e-05
C191: Spécialistes en chirurgie plastique reconstructrice et esthétique | D191: Nombre de professionnels, nombre de consultations moyen annuel ; distance médecin généraliste ou spécialiste | E191: Nombre de professionnels | F191: 6 | G191: (11) | H191: 0.000221232 | I191: 2.52951746e-05
C192: Spécialistes en chirurgie thoracique et cardio-vasculaire | D192: Nombre de professionnels, nombre de consultations moyen annuel ; distance médecin généraliste ou spécialiste | E192: Nombre de professionnels | F192: 6 | G192: (11) | H192: 0.000221232 | I192: 2.52951746e-05
C193: Spécialistes en chirurgie urologique | D193: Nombre de professionnels, nombre de consultations moyen annuel ; distance médecin généraliste ou spécialiste | E193: Nombre de professionnels | F193: 18 | G193: (11) | H193: 0.000663696 | I193: 7.588552379e-05
C194: Spécialistes en chirurgie vasculaire | D194: Nombre de professionnels, nombre de consultations moyen annuel ; distance médecin généraliste ou spécialiste | E194: Nombre de professionnels | F194: 11 | G194: (11) | H194: 0.000405592 | I194: 4.637448676e-05
C195: Spécialistes en chirurgie viscérale et digestive | D195: Nombre de professionnels, nombre de consultations moyen annuel ; distance médecin généraliste ou spécialiste | E195: Nombre de professionnels | F195: 15 | G195: (11) | H195: 0.00055308 | I195: 6.323793649e-05
C196: Spécialistes en dermatologie et vénéréologie | D196: Nombre de professionnels, nombre de consultations moyen annuel ; distance médecin généraliste ou spécialiste | E196: Nombre de professionnels | F196: 153 | G196: (11) | H196: 0.005641416 | I196: 0.0006450269522
C197: Spécialistes en endocrinologie et métabolisme | D197: Nombre de professionnels, nombre de consultations moyen annuel ; distance médecin généraliste ou spécialiste | E197: Nombre de professionnels | F197: 84 | G197: (11) | H197: 0.003097248 | I197: 0.0003541324443
C198: Spécialistes en génétique médicale | D198: Nombre de professionnels, nombre de consultations moyen annuel ; distance médecin généraliste ou spécialiste | E198: Nombre de professionnels | F198: 15 | G198: (11) | H198: 0.00055308 | I198: 6.323793649e-05
C199: Spécialistes en gynécologie médicale | D199: Nombre de professionnels, nombre de consultations moyen annuel ; distance médecin généraliste ou spécialiste | E199: Nombre de professionnels | F199: 181 | G199: (11) | H199: 0.006673832 | I199: 0.0007630711003
C200: Spécialistes en Gynécologie-obstétrique | D200: Nombre de professionnels, nombre de consultations moyen annuel ; distance médecin généraliste ou spécialiste | E200: Nombre de professionnels | F200: 107 | G200: (11) | H200: 0.003945304 | I200: 0.0004510972803
C201: Spécialistes en hématologie | D201: Nombre de professionnels, nombre de consultations moyen annuel ; distance médecin généraliste ou spécialiste | E201: Nombre de professionnels | F201: 35 | G201: (11) | H201: 0.00129052 | I201: 0.0001475551851
C202: Spécialistes en gastro-entérologie et hépatologie | D202: Nombre de professionnels, nombre de consultations moyen annuel ; distance médecin généraliste ou spécialiste | E202: Nombre de professionnels | F202: 115 | G202: (11) | H202: 0.00424028 | I202: 0.0004848241797
C203: Spécialistes en médecine du travail | D203: Nombre de professionnels en service de santé au travail interentreprises, nombre de consultations moyen annuel ; distance médecin généraliste ou spécialiste | E203: Nombre de professionnels en service de santé au travail interentreprises | F203: 4015 | G203: à parti de (11) et (12) | H203: 0.14804108 | I203: 0.01692668767 | K203: D'après (12): | L203: =100*16/(16+2.4) -> 86.95652174 | M203: % des médecins du travail travaillent en SSTI
C204: Spécialistes en médecine interne | D204: Nombre de professionnels, nombre de consultations moyen annuel ; distance médecin généraliste ou spécialiste | E204: Nombre de professionnels | F204: 147 | G204: (11) | H204: 0.005420184 | I204: 0.0006197317776
C205: Spécialistes en médecine nucléaire | D205: Nombre de professionnels, nombre de consultations moyen annuel ; distance médecin généraliste ou spécialiste | E205: Nombre de professionnels | F205: 16 | G205: (11) | H205: 0.000589952 | I205: 6.745379892e-05
C206: Spécialistes en médecine physique et réadaptation | D206: Nombre de professionnels, nombre de consultations moyen annuel ; distance médecin généraliste ou spécialiste | E206: Nombre de professionnels | F206: 295 | G206: (11) | H206: 0.01087724 | I206: 0.001243679418
C207: Spécialistes en néphrologie | D207: Nombre de professionnels, nombre de consultations moyen annuel ; distance médecin généraliste ou spécialiste | E207: Nombre de professionnels | F207: 191 | G207: (11) | H207: 0.007042552 | I207: 0.0008052297246
C208: Spécialistes en neurochirurgie | D208: Nombre de professionnels, nombre de consultations moyen annuel ; distance médecin généraliste ou spécialiste | E208: Nombre de professionnels | F208: 11 | G208: (11) | H208: 0.000405592 | I208: 4.637448676e-05
C209: Spécialistes en neurologie | D209: Nombre de professionnels, nombre de consultations moyen annuel ; distance médecin généraliste ou spécialiste | E209: Nombre de professionnels | F209: 72 | G209: (11) | H209: 0.002654784 | I209: 0.0003035420951
C210: Spécialistes ORL et chirurgie cervico-faciale | D210: Nombre de professionnels, nombre de consultations moyen annuel ; distance médecin généraliste ou spécialiste | E210: Nombre de professionnels | F210: 82 | G210: (11) | H210: 0.003023504 | I210: 0.0003457007195
C211: Spécialistes en oncologie option médicale | D211: Nombre de professionnels, nombre de consultations moyen annuel ; distance médecin généraliste ou spécialiste | E211: Nombre de professionnels | F211: 43 | G211: (11) | H211: 0.001585496 | I211: 0.0001812820846
C212: Spécialistes en ophtalmologie | D212: Nombre de professionnels, nombre de consultations moyen annuel ; distance médecin généraliste ou spécialiste | E212: Nombre de professionnels | F212: 254 | G212: (11) | H212: 0.009365488 | I212: 0.001070829058
C213: Spécialistes en pédiatrie | D213: Nombre de professionnels, nombre de consultations moyen annuel ; distance médecin généraliste ou spécialiste | E213: Nombre de professionnels | F213: 738 | G213: (11) | H213: 0.027211536 | I213: 0.003111306475
C214: Spécialistes en pneumologie | D214: Nombre de professionnels, nombre de consultations moyen annuel ; distance médecin généraliste ou spécialiste | E214: Nombre de professionnels | F214: 135 | G214: (11) | H214: 0.00497772 | I214: 0.0005691414284
C215: Spécialistes en psychiatrie | D215: Nombre de professionnels, nombre de consultations moyen annuel ; distance médecin généraliste ou spécialiste | E215: Nombre de professionnels | F215: 1187 | G215: (11) | H215: 0.043767064 | I215: 0.005004228707
C216: Spécialistes en radiodiagnostic et imagerie médicale | D216: Nombre de professionnels, nombre de consultations moyen annuel ; distance médecin généraliste ou spécialiste | E216: Nombre de professionnels | F216: 232 | G216: (11) | H216: 0.008554304 | I216: 0.0009780800843
C217: Spécialistes en radiothérapie | D217: Nombre de professionnels, nombre de consultations moyen annuel ; distance médecin généraliste ou spécialiste | E217: Nombre de professionnels | F217: 29 | G217: (11) | H217: 0.001069288 | I217: 0.0001222600105
C218: Spécialistes en réanimation médicale | D218: Nombre de professionnels, nombre de consultations moyen annuel ; distance médecin généraliste ou spécialiste | E218: Nombre de professionnels | F218: 5 | G218: (11) | H218: 0.00018436 | I218: 2.107931216e-05
C219: Spécialistes en rhumatologie | D219: Nombre de professionnels, nombre de consultations moyen annuel ; distance médecin généraliste ou spécialiste | E219: Nombre de professionnels | F219: 125 | G219: (11) | H219: 0.004609 | I219: 0.0005269828041
C220: Total médecins salariés non hospitaliers | H220: =SUM(H182:H219) -> 0.630163808 | I220: 0.07205152757
B221: Autres professionnels de santé | C221: Chirurgien-dentiste | D221: Nombre de consultations/visites ; distance médecin généraliste ou spécialiste | E221: Nombre de consultations ou visites | F221: =12307207 -> 12307207 | G221: (13) | H221: =F221*2*C$166/10^9 -> 0.24614414 | I221: 0.02814357325
C222: Sage-femme | D222: Nombre de consultations/visites ; distance médecin généraliste ou spécialiste | E222: Nombre de consultations ou visites | F222: 2710117 | G222: (14) | H222: 0.05420234 | I222: 0.006197374945
C223: Masseur-kinésithérapeute | D223: Nombre d'actes ; distance médecin généraliste ou spécialiste | E223: Nombre d'actes | F223: =75316646+9230580+213595222 -> 298142448 | G223: (15) | H223: 5.96284896 | I223: 0.6817788816
C224: Orthophoniste | D224: Nombre d'actes ; distance médecin généraliste ou spécialiste | E224: Nombre d'actes | F224: 32828215 | G224: (15) | H224: 0.6565643 | I224: 0.07507010108
C225: Orthoptiste | D225: Nombre d'actes ; distance médecin généraliste ou spécialiste | E225: Nombre d'actes | F225: 6546117 | G225: (15) | H225: 0.13092234 | I225: 0.01496936903
C226: Pédicure-podologue | D226: Nombre d'actes ; distance médecin généraliste ou spécialiste | E226: Nombre d'actes | F226: 1563446 | G226: (15) | H226: 0.03126892 | I226: 0.003575218733
C227: Psychomotricien | D227: Nombres de professionnels libéraux ou mixtes ; distance médecin généraliste ou spécialiste ; nombre de consultations par médecins libéral | E227: Nombres de professionnels libéraux ou mixtes | F227: 2767 | G227: (11) | H227: =F227*C$175*C$166*2/10^9 -> 0.16720981 | I227: 0.0191183976
C228: Ergothérapeute | D228: Nombres de professionnels libéraux ou mixtes ; distance médecin généraliste ou spécialiste ; nombre de consultations par médecins libéral | E228: Nombres de professionnels libéraux ou mixtes | F228: 1403 | G228: (11) | H228: 0.08478329 | I228: 0.009693932719
C229: Audioprothésiste | D229: Nombres de professionnels (hors salariés hospitaliers) ; distance médecin généraliste ou spécialiste ; nombre de consultations par médecins libéral | E229: Nombres de professionnels (hors salariés hospitaliers) | F229: =3600-10 -> 3590 | G229: (11) | H229: 0.2169437 | I229: 0.02480485992
C230: Diététicien | D230: Nombres de professionnels (hors salariés hospitaliers) ; distance médecin généraliste ou spécialiste ; nombre de consultations par médecins libéral | E230: Nombres de professionnels (hors salariés hospitaliers) | F230: =12243-5018 -> 7225 | G230: (11) | H230: 0.43660675 | I230: 0.04992064426
C231: Orthoprothésiste | D231: Nombres de professionnels (hors salariés hospitaliers) ; distance médecin généraliste ou spécialiste ; nombre de consultations par médecins libéral | E231: Nombres de professionnels (hors salariés hospitaliers) | F231: =1294-133 -> 1161 | G231: (11) | H231: 0.07015923 | I231: 0.00802185024
C232: Podo-orthésiste | D232: Nombres de professionnels (hors salariés hospitaliers) ; distance médecin généraliste ou spécialiste ; nombre de consultations par médecins libéral | E232: Nombres de professionnels (hors salariés hospitaliers) | F232: =655-3 -> 652 | G232: (11) | H232: 0.03940036 | I232: 0.004504949489
C233: Orthopédiste-orthésiste | D233: Nombres de professionnels (hors salariés hospitaliers) ; distance médecin généraliste ou spécialiste ; nombre de consultations par médecins libéral | E233: Nombres de professionnels (hors salariés hospitaliers) | F233: =1788-22 -> 1766 | G233: (11) | H233: 0.10671938 | I233: 0.01220205644
C234: Oculariste | D234: Nombres de professionnels (hors salariés hospitaliers) ; distance médecin généraliste ou spécialiste ; nombre de consultations par médecins libéral | E234: Nombres de professionnels (hors salariés hospitaliers) | F234: =54 -> 54 | G234: (11) | H234: 0.00326322 | I234: 0.0003731093135
C235: Epithésiste | D235: Nombres de professionnels (hors salariés hospitaliers) ; distance médecin généraliste ou spécialiste ; nombre de consultations par médecins libéral | E235: Nombres de professionnels (hors salariés hospitaliers) | F235: =82-10 -> 72 | G235: (11) | H235: 0.00435096 | I235: 0.0004974790847
C236: Psychologues | D236: Nombres de professionnels (hors salariés hospitaliers) ; distance médecin généraliste ou spécialiste ; nombre de consultations par médecins libéral | E236: Nombres de professionnels (hors salariés hospitaliers et psychologues scolaires) | F236: =64482-14137-7465 -> 42880 | G236: à partir de (11) et (16) | H236: 2.5912384 | I236: 0.2962764326
C237: Pharmacien | D237: Nombre de prescriptions par an ; distance pharmacies | E237: Nombre de prescriptions | F237: 550000000 | G237: (17) | H237: =F237*C167*2/10^9 -> 4.18 | I237: 0.4779318987
C238: Techniciens de laboratoires | D238: Nombre de clients quotidiens des laboratoires d'analyses ; distance laboratoires d'analyses | E238: Nombre de clients quotidiens | F238: =400000 -> 400000 | G238: à partir de (18) | H238: =365.25*F238*C168*2/10^9 -> 1.461 | I238: 0.167047489
C239: Opticien-lunetier | D239: Nombre de clients (Hyp : deux par lunettes vendues) ; distance opticien-lunetier | E239: Nombre de lunettes vendues | F239: =16*10^6 -> 16000000 | G239: (19) | H239: =2*F239*C169*2/10^9 -> 0.32 | I239: 0.03658808794
C240: Total autres professions de santé | H240: =SUM(H221:H239) -> 16.7636261 | I240: 1.916715706
B241: Total | H241: =H240+H220+H181 -> 24.13710871 | I241: 2.7597833
B244: IV - Bilan
C246: Distance parcourue (Gkm)
B247: Etablissements hospitaliers | C247: =C248+C249 -> 5.071070138
B248: - Dont patients | C248: =C97 -> 1.031975838
B249: - Dont visiteurs | C249: ='16.visiteurs'!F73 -> 4.0390943
B250: Médecine de ville | C250: =H241 -> 24.13710871
... 22 more rows

Sheet 16.visiteurs
B2: Transport des clients et visiteurs / Sous-poste Visiteurs
B5: Tableau de bord du poste | F5: Indications du guide sectoriel
B6: Emissions totales du poste | C6: =C11 -> 0.7605219314 | D6: MtCO2e/an | F6: Sources potentielles | H6: Déplacements de visiteurs
B7: Version | C7: =C10 -> v1.4 | F7: Données spécifiques | H7: Il s’agit de récupérer les distances effectuées par type de transport à partir du suivi du nombre de visiteurs, des distances et type de transport ou d’une enquête sur 2 semaines représentatives (Voir détail ci-après) (en km) (Nombre moyen de visiteurs par patient (enquête ou bibliographie), distances moyennes de transport et mode de déplacement selon les moyennes d’agglomérations ou régionales)
B8: Satisfaction | C8: =C12 -> Bon ordre de grandeur
B10: Numéro de version | C10: v1.4
B11: Emissions totales | C11: =C143 -> 0.7605219314 | D11: MtCO2e
B12: Satisfaction vis-à-vis de la version | C12: Bon ordre de grandeur
B14: Carte d'identité de la version
B15: Hypothèses | C15: Hyp 1 : On reprend les données du BC de Dieppe pour le nombre de visites par patient Hyp2 : On suppose une distance moyenne des trajets des visiteurs est de 20km pour les établissements hospitaliers, pour personnes âgées et handicapées
B16: Données et sources | C16: (1) Bilan Carbone – Anonyme (2) Fiche mobilité quotidienne V1 du PTEF, TSP, 2020, https://theshiftproject.org/wp-content/uploads/2021/04/TSP-PTEF-V1-FL-Mobilite-Q.pdf (3) L'enquête auprès des établissements d'hébergement pour personnes âgées (EHPA) / EHPA2015 : Caractéristiques des résidents.xlsx, DREES, 2015, https://data.drees.solidarites-sante.gouv.fr/explore/dataset/587_l-enquete-aupres-des-etablissements-d-hebergement-pour-personnes-agees-ehpa/information/ (4) L'enquête auprès des établissements et services pour enfants et adultes handicapés (ES "handicap") / ES-Handicap 2014 - adultes accueillis.xlsx, DREES, 2014, https://data.drees.solidarites-sante.gouv.fr/explore/dataset/434_l-enquete-aupres-des-etablissements-et-services-pour-enfants-et-adultes-hand/information/
B17: Méthodologie | C17: On reprend les journées hospitalisation patients dans le calculs Patients, on attribue un nombre de visiteurs par journée.patient. Pour les EPHA et les établissements pour personnes handicapées, on considère un certain nombre de visites par jour en fonction du nombre de patients, suite à des appels effectués avec des EPHA.
B18: Données manquantes | C18: Des données plus précises et spécifiques santé, notamment pour les distances moyennes de trajet.
B19: Limites, pistes d'amélioration | C19: Certaines hypothèses restent à vérifier. De plus, on considère ici qu'une visite = 1 visiteur, or les visites peuvent se faire à plusieurs ; ceci n'est pour l'instant pas pris en compte
B20: Entités du périmètre concernées | C20: Tout le secteur de la santé
B21: Commentaires généraux | C21: Ce n'est pas assez spécifique santé en termes de données et il y a trop d'hypothèses non vérifiées.
B22: Date | C22: 2023-01-24
B26: Partie I - Estimation du nombre de visiteurs des établissements hospitaliers
B28: Méthodo
B29: On utilise la source (1) pour obtenir le nombre de visiteurs par jour et par patients, et on multiplie ces chiffres par le nombre de patients trouvé dans 16.patients
B31: Etape de calcul : Estimation du nombre de visiteurs par jour et par patient
B33: On utilise les données de la source (1) :
B34: "Afin d’estimer les déplacements des visiteurs, plusieurs hypothèses ont été émises. Tout d’abord, le nombre de visiteurs a été estimé à partir des données inscrites dans la réglementation lié à la sécurité incendie : • 1 visiteur par lit et par jour pour les services Médecine, Chirurgie, Obstétrique et Soins de Suite de Réadaptation • 1 visiteur pour 2 lits par jour pour le service Psychiatrie • 1 visiteur pour 3 lits par jour pour l'Unité de Soins Longue Durée et l’Etablissement d'Hébergement pour Personnes Agées Dépendantes"
B36: Hyp1 : On va utiliser les nombres de visites par journée donnés par (1) pour calculer les nombres de visites.
B37: Lim2 : Il faut vérifier cette réglementation, et voir si ça colle à la réalité ou si on surestime.
B40: Nombres de visites par journée | C40: Visiteurs/ jour
B41: MCO et SSR | C41: 1
B42: Psychiatrie | C42: 0.5
B43: Soins longue durée | C43: =1/3 -> 0.3333333333
B45: Etape de calcul : Estimation du nombre de visiteurs total
B47: On reprends alors les chiffres des journées d'hospitalisation calculés précédemment:
B48: Nombre de journées d'hospitalisation par classe de soins et par type d'établissement | C48: Public | D48: Privé non lucratif | E48: Privé lucratif | F48: total
B49: MCO et SSR | C49: ='16.patients'!C70 -> 54227895 | D49: ='16.patients'!D70 -> 13017763 | E49: ='16.patients'!E70 -> 21359518 | F49: ='16.patients'!F70 -> 88605176
B50: Psychiatrie | C50: ='16.patients'!C71 -> 10576459 | D50: ='16.patients'!D71 -> 2101977 | E50: ='16.patients'!E71 -> 5051725 | F50: ='16.patients'!F71 -> 17730161
B51: Soins longue durée | C51: ='16.patients'!C72 -> 9422383 | D51: ='16.patients'!D72 -> 887731 | E51: ='16.patients'!E72 -> 211189 | F51: ='16.patients'!F72 -> 10521303
B53: Et donc :
B55: Nombre de visites par classe de soins et par type d'établissement | C55: Public | D55: Privé non lucratif | E55: Privé lucratif | F55: total
B56: MCO et SSR | C56: =C49*$C41 -> 54227895 | D56: 13017763 | E56: 21359518 | F56: 88605176
B57: Psychiatrie | C57: 5288229.5 | D57: 1050988.5 | E57: 2525862.5 | F57: 8865080.5
B58: Soins longue durée | C58: 3140794.333 | D58: 295910.3333 | E58: 70396.33333 | F58: 3507101
B59: Total | C59: =SUM(C56:C58) -> 62656918.83 | D59: =SUM(D56:D58) -> 14364661.83 | E59: =SUM(E56:E58) -> 23955776.83 | F59: =SUM(F56:F58) -> 100977357.5
B63: Etape de calcul
B64: Calcul des kilométrages associés aux visites
B66: Hyp2 : On suppose une distance moyenne des trajets des visiteurs est de 20km
B68: Distance d'un trajet à l'hôpital d'un visiteur (aller uniquement) | C68: ='16.patients'!C86 -> 20 | D68: km
B70: Donc :
B72: Kilométrage visites par type d'établissement | C72: Public | D72: Privé non lucratif | E72: Privé lucratif | F72: total
B73: Gkm | C73: =C59*$C68*2/10^9 -> 2.506276753 | D73: =D59*$C68*2/10^9 -> 0.5745864733 | E73: =E59*$C68*2/10^9 -> 0.9582310733 | F73: =F59*$C68*2/10^9 -> 4.0390943
B75: Etape de calcul
B76: On traduit en émissions comme on fait avec les patients.
B78: Facteur d'émissions | C78: Valeur | D78: Unité | E78: Source
B79: ='16.patients'!B103 -> FE déplacement mobilité quotidienne | C79: ='16.patients'!C103 -> 0.1143377748 | D79: ='16.patients'!D103 -> kgCO2e/pkm | E79: Secteur MobQuoti PTEF (2)
B82: Emissions transport visiteurs par classes d'établissements de santé | C82: Public | D82: Privé non lucratif | E82: Privé lucratif | F82: Total
B83: Emissions (MtCO2e) | C83: =C73*10^9*$C79/10^9 -> 0.286562107 | D83: =D73*10^9*$C79/10^9 -> 0.06569693879 | E83: =E73*10^9*$C79/10^9 -> 0.1095620087 | F83: =SUM(C83:E83) -> 0.4618210545
B86: Partie II - Estimation du nombre de visiteurs des établissements pour personnes âgées
B88: Méthodo
B89: Il n'existe pas de statistiques générales sur le nombre et la fréquence des visites en EPHA : Nous avons donc appelé des EPHA pour se faire une idée du nombre de visites par jour moyen
B90: Nous en avons appelé une vingtaine au hasard, dans cinq régions : en région parisienne, au Sud d'Orléans, en région lyonnaise, autour d'Agen, entre Vannes et Saint-Nazaire
B91: Nous demandionst d'estimer en moyenne le nombre de visites par jour que reçoit leur établissement, et à combien s'élève le nombre de patients. Nous prenions alors le ratio : par exemple, s'il y a 50 patients et 5 visites par jour, cela fait un ratio de 10%
B93: Nous avons obtenu 12 réponses : la moyenne des ratios pondérée par le nombre de patients nous donne donc 21,5 visiteurs par jour pour 100 patients
B94: Selon notre échantillon d'EPHA, on considérera donc par jour, environ 20 visites pour 100 patients en moyenne
B96: On considère qu'une visite = un visiteur ; en pratique, il peut y avoir plusieurs visiteurs par visite, mais on n'a pas ce niveau de détails, le calcul est donc conservateur
B97: On prend le nombre total de patients en EPHA, qu'on multiplie par notre taux moyen de 20%, afin d'avoir le nombre total journalier de visites en EPHA
B98: Enfin, on prend la même hypothèse de trajet moyen que pour les visites en hôpital, ainsi que les mêmes parts modales
B100: Hyp2 : On suppose une distance moyenne des trajets des visiteurs est de 20km
B102: Kilométrage des visites en EPHA
B103: Nombre moyen de visites journalières par patient | C103: 0.2 | D103: %
B104: Nombre de patients en EPHA (3) | C104: 727924 | D104: patients
B105: Nombre total de visites | C105: =C104*C103 -> 145584.8 | D105: visites/jour
B106: Nombre total de visites | C106: =C105*365 -> 53138452 | D106: visites/an
B107: Distance moyenne d'un trajet (aller et retour) | C107: =C68*2 -> 40 | D107: km
B108: Kilométrage des visites en EPHA | C108: =C106*C107/10^9 -> 2.12553808 | D108: Gkm/an
B111: Emissions transport visiteurs en EPHA | C111: MtCO2e
B112: Emissions | C112: =C108*10^9*C79/10^9 -> 0.2430292943
B115: Partie III - Estimation du nombre de visiteurs des établissements pour personnes handicapées
B117: Méthodo
B118: Nous n'avons pas de données à ce jour sur les visites dans ces établissements
B119: Nous faisons donc l'hypothèse qu'il y en a autant qu'en EPHA pour les personnes accueillies en "internat" (le calcul est similaire à celui des EPHA)
B120: Pour les "accueils de jour", le calcul pour les accompagnateurs et déjà fait dans l'onglet "16.patients" à partir des données de (4)
B122: Hyp2 : On suppose une distance moyenne des trajets des visiteurs est de 20km
B124: Kilométrage des visites en établissements pour personnes handicapées
B125: Nombre moyen de visites journalières par patient | C125: =C103 -> 0.2 | D125: %
B126: Personnes accueillies en internat | C126: ='16.patients'!E141 -> 166634 | D126: places
B127: Nombre total de visites | C127: =C126*C125 -> 33326.8 | D127: visites/jour
B128: Nombre total de visites | C128: =C127*365.25 -> 12172613.7 | D128: visites/an
B129: Distance moyenne d'un trajet (aller et retour) | C129: =C107 -> 40 | D129: km
B130: Kilométrage des visites en établissements pour personnes handicapées | C130: =C128*C129/10^9 -> 0.486904548 | D130: Gkm/an
B133: Emissions transport visiteurs en établissements pour personnes handicapées (MtCO2e) | C133: MtCO2e
B134: Emissions | C134: =C130*10^9*C79/10^9 -> 0.05567158256
B137: Partie IV - Bilan
B139: Emissions totales | C139: Valeur (MtCO2e)
B140: Visiteurs hôpitaux | C140: =F83 -> 0.4618210545
B141: Visiteurs EPHA | C141: =C112 -> 0.2430292943
B142: Visiteurs établissements pour personnes handicapées | C142: =C134 -> 0.05567158256
B143: Total | C143: =SUM(C140:C142) -> 0.7605219314

Sheet 22
B2: Trajets domicile-travail des employés
B5: Tableau de bord du poste | F5: Indications du guide sectoriel
B6: Emissions totales du poste | C6: =C13 -> 1.766880816 | D6: MtCO2e/an | F6: Sources potentielles | H6: Des déplacements domicile-travail sont effectués par les salariés en transports non doux.
B7: Version | C7: =C12 -> v1.3 | F7: Données spécifiques | H7: Il s’agit de récupérer les distances parcourues par type de transport à partir du PDM ou d’une enquête sur 2 semaines représentatives (en km) (Codes postaux et mode de déplacement selon les moyennes d’agglomérations ou régionales)
B8: Satisfaction | C8: =C14 -> Bon ordre de grandeur
B12: Numéro de version | C12: v1.3
B13: Emissions totales | C13: =C174 -> 1.766880816 | D13: MtCO2e
B14: Satisfaction vis-à-vis de la version | C14: Bon ordre de grandeur
B16: Carte d'identité de la version
B17: Hypothèses | C17: Hyp 1: Les déplacements domicile-travail des professionnels de santé supposés identiques à ceux de la population moyenne Hyp2 : Les Médecins et autres professions de santé "Mixtes" sont répartis moitié-moitié dans les hôpitaux ou en cabinets privés. Hyp3 : Les Médecins et autres professions de santé "Libéraux ou mixtes" sont répartis moitié-moitié en libéraux ou en mixtes. Hyp4 :Une partie des "Autres salariés" vient du médico-social, et le reste de la médecine de ville. Ceux du médico-social sont comptés à partir des tableaux médico-social, et le reste avec la différence entre le total "Autres salariés" et ceux du médico-social.
B18: Données et sources | C18: (1) Périmètre secteur santé v1.11.xlsx, données issues de la DREES, entre 2016 et 2018 (2) Effectif secteur de la santé v1.0.xlsx, données rassemblées de diverses sources listées dans le document sur le personnel médical et non médical (3) Fiche mobilité quotidienne V1 du PTEF, TSP, 2020, https://theshiftproject.org/wp-content/uploads/2021/04/TSP-PTEF-V1-FL-Mobilite-Q.pdf (4) Nombre d’emplois et population active en France métropolitaine, en millions, Alternatives économiques, 01/10/16, https://www.alternatives-economiques.fr/nombre-demplois-population-active-france-metropolitaine-millions-0110201650598.html (5) Base Carbone, Ademe, https://www.bilans-ges.ademe.fr/ (6) Données du secteur Mobilité quotidienne du PTEF (7) France, portrait socialÉdition 2019 / Chômage, Insee, 2019, https://www.insee.fr/fr/statistiques/4238387?sommaire=4238781
B19: Méthodologie | C19: On multiplie le nombre de personnes actives du secteur de la santé par un kilométrage annuel (qu'on reconstitue à partir de moyennes nationales) et l'on répartit ça selon divers moyens de transport (ici aussi selon des moyennes nationales), d'où découlent ensuite des émissions par mode.
B20: Données manquantes | C20: Données plus précises sur les déplacements : spécifiques à la santé plutôt que moyennes toutes professions confondues.
B21: Limites, pistes d'amélioration | C21: Après discussion avec Nico : il faudrait prendre en compte un taux de remplissage potentiellement, à l'EI et à l'EF (quoiqu'en fait non avec notre méthode ?) Il serait bon d'avoir des données transport plus spécifiques au secteur. On procède avec des moyennes générales de la Mob quoti. Voir si dans des BC existants on ne peut pas avoir des pistes. Par ailleurs, il est possible de distinguer plus en détails les émissions par entité-type, il suffit pour cela de distinguer les nombres de personnes actives dans chaque entité-type. D’ailleurs, où doit on compter normalement l’amont de l’énergie pour les transports (cela vaut pour les autres onglets transports) ?
B22: Entités du périmètre concernées | C22: Tout le secteur de la santé
B23: Commentaires généraux
B24: Date | C24: 2021-11-04
B27: Méthodo
B28: On compte le nombre de professionnels du secteur, en distinguant si possible par entité.
B29: Hyp1 : On suppose que leurs "habitudes" de déplacements domicile-travail sont les mêmes que pour la moyenne des Français (en distance et en parts modales).
B31: On multiplie le nombre de personnes par la distance moyenne parcourue pour les déplacements domicile-travail
B32: Pour traduire en émissions, on utilise un FE calculé par le secteur Mobilité quotidienne du PTEF qui exprime (en kgCO2e/pkm) les émissions engendrées en moyenne par un pkm de mobilité quotidienne (les parts modales sont donc "toute mobilité quotidienne" et non "spécifique domicile-travail", faute de mieux)
B34: Etape de calcul
B35: On répertorie les effectifs pris en compte. On utilise les sources (1) et (2).
B38: Médecins et autres professions de santé | C38: Total | D38: Libéraux exclusifs | E38: Mixtes | F38: Libéraux ou mixtes | G38: Salariés hospitaliers | H38: Autres salariés | I38: Année | J38: Source
B39: Médecins spécialistes | C39: =SUM(D39:H39) -> 123753 | D39: 43121 | E39: 18567 | G39: 50345 | H39: 11720 | I39: 2018 | J39: (2)
B40: Généralistes | C40: 102466 | D40: 60214 | E40: 7856 | G40: 18961 | H40: 15435 | I40: 2018 | J40: (2)
B41: Autres professions de santé | C41: 1170618 | D41: 67921 | E41: 4910 | F41: 264368 | G41: 562642 | H41: 270777 | I41: 2017 ou 2018 | J41: (1)
B42: Total | C42: =SUM(C39:C41) -> 1396837 | D42: 171256 | E42: 31333 | F42: 264368 | G42: 631948 | H42: 297932
B45: Personnel non médical des établissements de santé | C45: Total | D45: Année | E45: Source
B46: Personnels administratifs | C46: 147908 | D46: 2017 | E46: (2)
B47: Personnels éducatifs sociaux | C47: 19176 | D47: 2017 | E47: (2)
B48: Personnels médico-techniques | C48: 57103 | D48: 2017 | E48: (2)
B49: Personnels techniques | C49: 117279 | D49: 2017 | E49: (2)
B50: Total | C50: =SUM(C46:C49) -> 341466 | D50: 2017 | E50: (2)
B53: Personnel non médical des cabinets médicaux | C53: Total | D53: Année | E53: Source
B54: Cadres | C54: 4428 | D54: 2012 | E54: (2)
B55: Agents administratifs | C55: 7970 | D55: 2012 | E55: (2)
B56: Agents de service | C56: 5313 | D56: 2012 | E56: (2)
B57: Secrétaires médicaux | C57: 43394 | D57: 2012 | E57: (2)
B58: Total | C58: =SUM(C54:C57) -> 61105 | D58: 2012 | E58: (2)
B61: Personnel des EPHA | C61: Total | D61: Année | E61: Source
B62: Personnel de direction | C62: 34221 | D62: 2015 | E62: (2)
B63: Personnel des services généraux | C63: 63910 | D63: 2015 | E63: (2)
B64: Personnel d'encadrement | C64: 7923 | D64: 2015 | E64: (2)
B65: Personnel éducatif, pédagogique, social et d'animation | C65: 45281 | D65: 2015 | E65: (2)
B66: Personnel médical | C66: 8663 | D66: 2015 | E66: (2)
B67: Psychologues, personnel paramédical ou soignant | C67: 221490 | D67: 2015 | E67: (2)
B68: dont aides-soignants | C68: =130387+23950 -> 154337 | D68: 2015 | E68: (2)
B69: Agents de service hospitalier (public) ou agent de service (privé) | C69: 117292 | D69: 2015 | E69: (2)
B70: Non renseigné | C70: 1268 | D70: 2015 | E70: (2)
B71: Total | C71: =SUM(C62:C67,C69:C70) -> 500048 | D71: 2015 | E71: (2)
B73: Pour les lignes dans la source (4) où le chiffre n'est pas bien précisé, telles que "<100", j'arrondis au chiffre indiqué, donc dans cet exemple j'arrondis à 100.
B75: Personnel des établissements pour adultes handicapés | C75: Total | D75: Année | E75: Numéro de la source
B76: Personnel de direction, de gestion et d'administration | C76: =5400+100+3500+10000+6100 -> 25100 | D76: 2014 | E76: (2)
B77: Personnel des services généraux | C77: =14200+7000+10200 -> 31400 | D77: 2014 | E77: (2)
B78: Personnel d'encadrement sanitaire et social | C78: 10000 | D78: 2014 | E78: (2)
B79: Personnel éducatif, pédagogique et social | C79: 84010 | D79: 2014 | E79: (2)
B80: Personnel médical | C80: 3400 | D80: 2014 | E80: (2)
B81: Psychologues et personnel paramédical | C81: 35400 | D81: 2014 | E81: (2)
B82: dont aides-soignants | C82: 18100 | D82: 2014 | E82: (2)
B83: Candidat-élève sélectionné aux emplois éducatifs | C83: 3700 | D83: 2014 | E83: (2)
B84: Non renseigné | C84: =193300-SUM(C76:C81,C83) -> 290 | D84: 2014 | E84: (2)
B85: Total | C85: =SUM(C76:C81,C83:C84) -> 193300 | D85: 2014 | E85: (2)
B88: Personnel des établissements pour enfants handicapés | C88: Total | D88: Année | E88: Numéro de la source
B89: Personnel de direction, de gestion et d'administration | C89: 15300 | D89: 2014 | E89: (2)
B90: Personnel des services généraux | C90: 18900 | D90: 2014 | E90: (2)
B91: Personnel d'encadrement sanitaire et social | C91: 6100 | D91: 2014 | E91: (2)
B92: Personnel éducatif, pédagogique et social | C92: 54200 | D92: 2014 | E92: (2)
B93: Personnel médical | C93: 4500 | D93: 2014 | E93: (2)
B94: Psychologues et personnel paramédical | C94: 23000 | D94: 2014 | E94: (2)
B95: dont aides-soignants | C95: 1900 | D95: 2014 | E95: (2)
B96: Candidat-élève sélectionné aux emplois éducatifs | C96: 1600 | D96: 2014 | E96: (2)
B97: Non renseigné | C97: =124500-SUM(C89:C94,C96) -> 900 | D97: 2014 | E97: (2)
B98: Total | C98: =SUM(C89:C94,C96:C97) -> 124500 | D98: 2014 | E98: (2)
B101: Le tableau suivant provient de la feuille de calcul annexe intitulée "Effectif admin & comp santé"
C102: Effectifs
B103: Administration de la santé | C103: ='Annexe 2'!C5 -> 98433.71
B104: Complémentaire santé | C104: ='Annexe 2'!C6 -> 50086.25171
B106: Etape de calcul
B107: On distribue les personnels par entité type.
B109: Hyp2 : Les Médecins et autres professions de santé "Mixtes" sont répartis moitié-moitié dans les hôpitaux ou en cabinets privés.
B110: Hyp3 : Les Médecins et autres professions de santé "Libéraux ou mixtes" sont répartis moitié-moitié en libéraux ou en mixtes.
B112: Hyp4 :Une partie des "Autres salariés" vient du médico-social, et le reste de la médecine de ville. Ceux du médico-social sont comptés à partir des tableaux médico-social, et le reste avec la différence entre le total "Autres salariés" et ceux du médico-social.
B113: On ajoute donc à la médecine de vile la catégorie "autres professions de santé", qui compte notamment la pharmaciens, les infirmiers, les masseurs-kinésithérapeuthes, les psychologues, …
B114: On retranche néanmoins le personnel médical (hors aides-soigants) déjà compté pour le médico-social
B116: Répartition par entité | C116: Personnel
B117: Hôpitaux | C117: =G42+E42*0.5+F42*0.5*0.5+C50 -> 1055172.5
B118: EPHA | C118: =C71 -> 500048
B119: Etablissements pour adultes handicapés | C119: =C85 -> 193300
B120: Etablissements pour enfants handicapés | C120: =C98 -> 124500
B121: Médecine de ville | C121: =D42+E42*0.5+F42*(0.5+0.5*0.5)+(((H39+H40)-(C66+C80+C93))+(H41-((C67-C68)+(C81-C82)+(C94-C95))))+C58 -> 622119.5
B122: Administration et complémentaire santé | C122: =SUM(C103:C104) -> 148519.9617
B123: Total | C123: =SUM(C117:C122) -> 2643659.962
B126: Etape de calcul
B127: On calcule la distance domicile-travail parcourue sur un an par une personne active.
B129: La source (3), nous donne que 22% des passagers.kilomètres effectués de la mobilité quotidienne a pour motif le trajet domicile travail
B131: Motif | C131: Part des passagers.kilomètres effectués
B132: Aller au travail | C132: 0.22
B134: Donc :
C136: Valeur | D136: Unité | E136: Année | F136: Source
B137: Toute la mobilité quotidienne | C137: 677 | D137: Gpkm/an | F137: (6)
B138: Part de la mobilité quotidienne qui est du trajet domicile-travail | C138: =C132 -> 0.22
B139: Mobilité quotidienne domicile-travail | C139: =C137*C138 -> 148.94 | D139: Gpkm/an
B140: Population active France métropolitaine | C140: 28 | D140: millions | E140: 2015 | F140: (4)
B141: Taux de chômage (approximatif) | C141: 0.09 | D141: % | F141: (7)
B142: Population à prendre en compte dans les déplacements domicile-travail France métropolitaine | C142: =C140*(1-C141) -> 25.48 | D142: millions
B143: Mob quotidienne domicile-travail moyenne pour une personne active sur un an | C143: =C139*10^9/(C142*10^6) -> 5845.368917 | D143: km/pers/an | G143: Lim : En réalité, toute la population active ne travaille pas, donc il ne faudrait prendre en compte que celle qui travaille dans la partie domicile-travail de la mob quoti.
B146: Etape de calcul
B147: On calcule les km parcourus au total par entité
B149: Répartition par entité | C149: Gpkm
B150: Hôpitaux | C150: =C117*$C$143/10^9 -> 6.167872533
B151: EPHA | C151: 2.922965036
B152: Etablissements pour adultes handicapés | C152: 1.129909812
B153: Etablissements pour enfants handicapés | C153: 0.7277484301
B154: Médecine de ville | C154: 3.636517988
B155: Administration et complémentaire santé | C155: 0.8681539677
B156: Total | C156: =SUM(C150:C155) -> 15.45316777
B159: Etape de calcul
B160: On calcule les émissions totales, en répartissant par entité du secteur de la santé.
B162: FE déplacement mobilité quotidienne | C162: Valeur | D162: Unité
B163: 2020 | C163: 0.1143377748 | D163: kgCO2e/pkm
B164: 2050 | C164: 0.001162604316 | D164: kgCO2e/pkm
B167: Emissions domicile-travail totales 2020 | C167: Valeur | D167: Unité
B168: Hôpitaux | C168: =C150*10^9*$C$163/10^9 -> 0.7052208207 | D168: MtCO2e
B169: EPHA | C169: 0.3342053181 | D169: MtCO2e
B170: Etablissements pour adultes handicapés | C170: 0.1291913736 | D170: MtCO2e
B171: Etablissements pour enfants handicapés | C171: 0.08320913612 | D171: MtCO2e
B172: Médecine de ville | C172: 0.4157913748 | D172: MtCO2e
B173: Administration et complémentaire santé | C173: 0.09926279286 | D173: MtCO2e
B174: Total | C174: =SUM(C168:C173) -> 1.766880816 | D174: MtCO2e

Sheet 4
B2: Émissions directes fugitives
B5: Tableau de bord du poste | F5: Indications du guide sectoriel
B6: Emissions totales du poste | C6: =C13 -> 1.042020053 | D6: MtCO2e/an | F6: Sources potentielles | H6: Émissions directes fugitives
B7: Version | C7: v1.1 | F7: Données spécifiques | H7: Fuites de fluides frigorigènes, utilisation de gaz anes- thésiques, utilisation de gaz d’analyse, etc.
B8: Satisfaction | C8: Bon ordre de grandeur
B12: Numéro de version | C12: v1.1
B13: Emissions totales | C13: =C34 -> 1.042020053 | D13: MtCO2e
B14: Satisfaction vis-à-vis de la version | C14: Bon ordre de grandeur
B16: Carte d'identité de la version
B17: Hypothèses | C17: Hyp 1 : On suppose que les données récupérées concernent tous les établissements de santé privés et publics. Donc que tous les établissements ont bien indiqué la quantité des gaz médicaux achetés et que les données utilisées sont complètes pour cette partie du périmètre Hyp 2 : Nous n'avons pas la composition quantitative et qualitative des bouteilles de 2l, 20l et 50l. Nous pouvons les déduire à partir d'un produit en croix avec les compositions des bouteilles de respective 5l, 15l et 47l. Hyp 3: Pour simplifier les calculs, on va supposer que 50% du volume des MEOPA correspond à du protxyde d'azote Hyp 4: La consommation de gaz médicaux par établissement est similaire dans les établissements hospitaliers ayant fourni des données exploitables à l'equête de l'ATIH, et dans les autres centres hospitaliers Hyp 5: Nous considérerons que les émissions sont uniquement dues aux fuites de HFC. Cette hypothèse est confirmée par l'étude source (9) figure I-2. Hyp 6 : On considère que les émissions surfaciques de HFC sont identiques dans la santé et dans le tertiaire. Hyp 7 : 70% des surfaces du tertaire sont chauffées. Cette hypothèse est confirmée par la source (11), table 1 Hyp 8 : Le ratio des surfaces chauffées et des surfaces climatisées est identique dans la santé et dans le tertiaire. Cette hypothèse est confirmée par l'étude (12), figure 47.
B18: Données et sources | C18: (1) ATIH, https://www.atih.sante.fr/sites/default/files/public/content/3982/analyseenquetemedicament2019_vf.pdf (2) Masse volumique du desflurane, https://fr.wikipedia.org/wiki/Desflurane (3) Masse volumique du sevoflurane, https://fr.wikipedia.org/wiki/S%C3%A9voflurane (4) Masse volumique du Isoflurane, https://fr.wikipedia.org/wiki/Isoflurane (5) Données sur le protoxyde d'azote, http://agence-prd.ansm.sante.fr/php/ecodex/rcp/R0302882.htm (6) Données sur le protoxyde d'azote 50%/ Oxygène 50%, http://agence-prd.ansm.sante.fr/php/ecodex/rcp/R0199134.htm (7) PRG du Desflurane, Isoflurane, Sevoflurane "https://journals.lww.com/anesthesia-analgesia/Fulltext/2012/05000/Assessing_the_Impact_on_Global_Climate_from.24.aspx https://pubs.acs.org/doi/pdf/10.1021/jp2077598" (8) PRG du Protoxyde d'Azote, https://www.bilans-ges.ademe.fr/documentation/UPLOAD_DOC_FR/index.htm?prg.htm (9) Répartition des fuites de fluides frigorigènes, https://www.ces.minesparis.psl.eu/Donnees/data12/1218-Inventaires-2015-final2.pdf (10) Emissions de HFC par le tertiaire, https://www.citepa.org/fr/secten/#download (11) Part des surfaces chauffées, https://archive-ouverte.unige.ch/unige:98199/ATTACHMENT01 (12) Surface totale du tertiaire (13) Réduire l’impact environnemental des inhalateurs dispensés en ville et à l’hôpital, respirez c’est possible ! Du diagnostic à l’action durable, https://www.sciencedirect.com/science/article/abs/pii/S2772953222006505
B19: Méthodologie | C19: Pour évaluer les émissions liées aux gaz médicaux, et pour ce caclul en particulier, nous avons uniquement estimé l'empreinte carbone associée à l'utilisation des gaz médicaux par les établissements de santé. Pour cela nous sommes partis des achats de Desflurane, Sevoflurane, Isoflurane et Protoxyde d'Azote par les établissements de santé. Nous avons converti le nombre de flacons achetés en masse de gaz achetés. Puis en utilisant les PRG de chacun des gaz nous en avons dédui l'empreinte carbone associée. En parallèle de cela, nous menons la même étude en partant cette fois ci des volumes et en déduisant les masses à partir des masses volumiques. L'objectif de cette deuxième étude est de s'assurer de la cohérence de nos résultats. ¨Pour évaluer les émissions liées aux fuites de gaz frigorigènes, nous adoptons une approche top-down: à partir des émissions de HFC du secteur tertaire, et en supposons que les fuites de HFC sont identiques pour toutes le surfaces, nous estimons les fuites de HFC de la santé (à l'aide de la surface de la santé et de la surface totale du tertiaire).
B20: Données manquantes | C20: La quantité des établissements concernés par l'étude de l'ATIH. La consommation des Gaz médicaux pour les établissements médicaux sociaux et la médecine de ville (cabinets de dentitste par exemple). Il manque également la consommation des gaz d'analyse.
B21: Limites, pistes d'amélioration | C21: Complèter ce modèle en complètant le périmè tre, et en intégrant les gaz d'analyse
B22: Entités du périmètre concernées | C22: Les établissements de santé publics et privés. Il manque la médecine de ville et le médico-sociale. En outre il manque les gaz d'analyse. Et pour les gaz médicaux il manque le monoxyde d'azote et le CO2.
B23: Commentaires généraux | C23: Penser à intégrer les déchets des laboratoires de biologie médiale. D'après un mail qui nous a été envoyé, cela représenterait une grande quantité de déchets.
B24: Date | C24: 2021-12-02
B28: Partie 0: Synthèse des résultats
C30: Émission (MtC02)
B31: Emissions dues aux gaz médicaux | C31: =C258 -> 0.2720397737
B32: Emissions dues aux inhalateurs | C32: =C264 -> 0.31
B33: Emissions dues aux fuites de fluides frigorifiques | C33: =E277 -> 0.4599802798
B34: Emissions directes fugitives totales | C34: =SUM(C31:C33) -> 1.042020053
C42: Masse totale délivrée (kg) | D42: PRG | E42: Émission (MtC02)
B43: DESFLURANE | C43: =D246*2931/1791 -> 59953.82593 | D43: =E246 -> 2540 | E43: =G246/10^9 -> 0.0930530016
B44: ISOFLURANE | C44: 730.2952261 | D44: 510 | E44: 0.0002275875
B45: Protoxyde d'azote | C45: 140196.3866 | D45: 265 | E45: 0.02270191334
B46: MEOPA | C46: 141796.9006 | D46: 265 | E46: 0.02296108359
B47: SEVOFLURANE | C47: 343510.647 | D47: 130 | E47: 0.0272874732
B74: Partie I: Estimation de l'empreinte carbone associée à l'utilisation des gaz médicaux par les établissements de santé publics et privé
B75: Méthodo
B76: Pour ce poste et pour ce caclul en particulier, nous avons uniquement estimé l'empreinte carbone associée à l'utilisation des gaz médicaux par les établissements de santé. Pour cela nous sommes partis des achats de Desflurane, Sevoflurane, Isoflurane et Protoxyde d'Azote par ces établissements. Nous avons converti le nombre de flacons achetés en masse de gaz achetés. Puis en utilisant les PRG de chacun des gaz nous en avons dédui l'empreinte carbone associée. En parallèle de cela, nous menons la même étude en partant cette fois ci des volumes et en déduisant les masses à partir des masses volumiques. L'objectif de cette deuxième étude est de s'assurer de la cohérence de nos résultats.
B77: Hyp 1 : On suppose que les données récupérées concernent tous les établissements de santé privés et publics. Donc que tous les établissements ont bien indiqué la quantité des gaz médicaux achetés et que les données utilisées sont complètes pour cette partie du périmètre
B78: : Pour simplifier les calculs, on va supposer que 50% du volume des MEOPA correspond à du protxyde d'azote
B79: Hyp 3: : Pour simplifier les calculs, on va supposer que 50% du volume des MEOPA correspond à du protxyde d'azote
B81: Etape de calcul
B82: On commence par récapituler les données de l'ATIH qui nous intéressent (1)
B84: Code7 (CIP ou UCD) | C84: Libelle | D84: Pression en bar | E84: Volume en L | F84: DCI | G84: Libelle ATC2 | H84: Somme_qtedeliv
B85: 9162141 | C85: AERRANE LIQUIDE INHAL FL 100ML | D85: 1 | E85: 0.1 | F85: ISOFLURANE | G85: ANESTHESIQUES | H85: 648
B86: 9194715 | C86: AERRANE LIQUIDE INHAL FL 250ML | D86: 1 | E86: 0.25 | F86: ISOFLURANE | G86: ANESTHESIQUES | H86: 50
B87: 9105261 | C87: FORENE LIQUIDE INHALATION FL 100ML | D87: 1 | E87: 0.1 | F87: ISOFLURANE | G87: ANESTHESIQUES | H87: 1241
B88: 9154348 | C88: FORENE LIQUIDE INHALATION FL 250ML | D88: 1 | E88: 0.25 | F88: ISOFLURANE | G88: ANESTHESIQUES | H88: 56
B89: 9156778 | C89: ISOFLURANE BELAMONT LIQUIDE INHAL | D89: 1 | E89: 0.1 | F89: ISOFLURANE | G89: ANESTHESIQUES | H89: 821
B90: 9437342 | C90: SEVOFLURANE BAX LIQUIDE INHAL 6FP | D90: 1 | E90: 1.5 | F90: SEVOFLURANE | G90: ANESTHESIQUES | H90: 56113
B91: 9282477 | C91: SEVOFLURANE BAX LIQUIDE INHAL FP | D91: 1 | E91: 0.25 | F91: SEVOFLURANE | G91: ANESTHESIQUES | H91: 49364
B92: 9237092 | C92: SEVORANE LIQUIDE INHAL FP +SYST | D92: 1 | E92: 0.25 | F92: SEVOFLURANE | G92: ANESTHESIQUES | H92: 157325
B93: 9237086 | C93: SEVORANE LIQUIDE INHAL FP NSFP | D93: 1 | E93: 0.25 | F93: SEVOFLURANE | G93: ANESTHESIQUES | H93: 9011
B94: 5756263 | C94: SUPRANE INHAL VAP | D94: 1 | E94: 0.24 | F94: DESFLURANE | G94: ANESTHESIQUES | H94: 83
B95: 9350204 | C95: SUPRANE INHAL VAP | D95: 1 | E95: 0.24 | F95: DESFLURANE | G95: ANESTHESIQUES | H95: 76634
B96: 9165530 | C96: SUPRANE LIQUIDE INHAL | D96: 1 | E96: 0.24 | F96: DESFLURANE | G96: ANESTHESIQUES | H96: 25047
B97: 9234076 | C97: PROTOXYDE AZOTE ALS GAZ 15L | D97: 44 | E97: 15 | F97: Protoxyde d'azote gaz | G97: ANESTHESIQUES | H97: 69
B98: 9234082 | C98: PROTOXYDE AZOTE ALS GAZ 47L C1 | D98: 44 | E98: 47 | F98: Protoxyde d'azote gaz | G98: ANESTHESIQUES | H98: 1464
B99: 9237666 | C99: PROTOXYDE AZOTE ALS GAZ 5L | D99: 44 | E99: 5 | F99: Protoxyde d'azote gaz | G99: ANESTHESIQUES | H99: 32
B100: 9239234 | C100: PROTOXYDE AZOTE APM GAZ 20L | D100: 44 | E100: 20 | F100: Protoxyde d'azote gaz | G100: ANESTHESIQUES | H100: 2
B101: 9239731 | C101: PROTOXYDE AZOTE APM GAZ 50L | D101: 44 | E101: 50 | F101: Protoxyde d'azote gaz | G101: ANESTHESIQUES | H101: 165
B102: 9239263 | C102: PROTOXYDE AZOTE APM GAZ 50L + TP | D102: 44 | E102: 50 | F102: Protoxyde d'azote gaz | G102: ANESTHESIQUES | H102: 1
B103: 9239257 | C103: PROTOXYDE AZOTE APM GAZ 5L | D103: 44 | E103: 5 | F103: Protoxyde d'azote gaz | G103: ANESTHESIQUES | H103: 5
B104: 9237637 | C104: PROTOXYDE AZOTE LDH GAZ 47L | D104: 44 | E104: 47 | F104: Protoxyde d'azote gaz | G104: ANESTHESIQUES | H104: 101
B105: 9356141 | C105: PROTOXYDE AZOTE LDH GAZ 47L C8 | D105: 44 | E105: 47 | F105: Protoxyde d'azote gaz | G105: ANESTHESIQUES | H105: 22
B106: 9278990 | C106: PROTOXYDE AZOTE LDH GAZ 50L | D106: 44 | E106: 50 | F106: Protoxyde d'azote gaz | G106: ANESTHESIQUES | H106: 135
B107: 9237643 | C107: PROTOXYDE AZOTE LDH GAZ 5L | D107: 44 | E107: 5 | F107: Protoxyde d'azote gaz | G107: ANESTHESIQUES | H107: 4
B108: 9239292 | C108: PROTOXYDE AZOTE SOL FRANCE GAZ 15L | D108: 44 | E108: 15 | F108: Protoxyde d'azote gaz | G108: ANESTHESIQUES | H108: 26
B109: 9239323 | C109: PROTOXYDE AZOTE SOL FRANCE GAZ 50L | D109: 44 | E109: 50 | F109: Protoxyde d'azote gaz | G109: ANESTHESIQUES | H109: 471
B110: 9239317 | C110: PROTOXYDE AZOTE SOL FRANCE GAZ 5L | D110: 44 | E110: 5 | F110: Protoxyde d'azote gaz | G110: ANESTHESIQUES | H110: 66
B111: 9249913 | C111: ANTASOL 135 GAZ 15L + MANO | D111: 135 | E111: 15 | F111: Protoxyde d'azote 50 % + Oxygène 50 % gaz | G111: ANESTHESIQUES | H111: 47
B112: 9285665 | C112: ANTASOL 135 GAZ 15L + MANO ET DEBIT | D112: 135 | E112: 15 | F112: Protoxyde d'azote 50 % + Oxygène 50 % gaz | G112: ANESTHESIQUES | H112: 100
B113: 9239369 | C113: ANTASOL 135 GAZ 5L | D113: 135 | E113: 5 | F113: Protoxyde d'azote 50 % + Oxygène 50 % gaz | G113: ANESTHESIQUES | H113: 21
B114: 9249936 | C114: ANTASOL 135 GAZ 5L + MANO | D114: 135 | E114: 5 | F114: Protoxyde d'azote 50 % + Oxygène 50 % gaz | G114: ANESTHESIQUES | H114: 159
B115: 9285671 | C115: ANTASOL 135 GAZ 5L + MANO ET DEBIT | D115: 135 | E115: 5 | F115: Protoxyde d'azote 50 % + Oxygène 50 % gaz | G115: ANESTHESIQUES | H115: 469
B116: 9237672 | C116: ENTONOX 135BAR GAZ 15L | D116: 135 | E116: 15 | F116: Protoxyde d'azote 50 % + Oxygène 50 % gaz | G116: ANESTHESIQUES | H116: 31
B117: 9264918 | C117: ENTONOX 135BAR GAZ 15L + MANO | D117: 135 | E117: 15 | F117: Protoxyde d'azote 50 % + Oxygène 50 % gaz | G117: ANESTHESIQUES | H117: 141
B118: 9237689 | C118: ENTONOX 135BAR GAZ 5L | D118: 135 | E118: 5 | F118: Protoxyde d'azote 50 % + Oxygène 50 % gaz | G118: ANESTHESIQUES | H118: 501
B119: 9264924 | C119: ENTONOX 135BAR GAZ 5L + MANO | D119: 135 | E119: 5 | F119: Protoxyde d'azote 50 % + Oxygène 50 % gaz | G119: ANESTHESIQUES | H119: 364
B120: 9280136 | C120: OXYNOX 135 GAZ 15L + MANO DEBIT | D120: 135 | E120: 15 | F120: Protoxyde d'azote 50 % + Oxygène 50 % gaz | G120: ANESTHESIQUES | H120: 1313
B121: 9280165 | C121: OXYNOX 135 GAZ 5L | D121: 135 | E121: 5 | F121: Protoxyde d'azote 50 % + Oxygène 50 % gaz | G121: ANESTHESIQUES | H121: 104
B122: 9280142 | C122: OXYNOX 135 GAZ 5L + MANO DEBIT | D122: 135 | E122: 5 | F122: Protoxyde d'azote 50 % + Oxygène 50 % gaz | G122: ANESTHESIQUES | H122: 1460
B123: 9389229 | C123: ENTONOX 170BAR GAZ 15L + MANO | D123: 170 | E123: 15 | F123: Protoxyde d'azote 50 % + Oxygène 50 % gaz | G123: ANESTHESIQUES | H123: 1697
B124: 9389235 | C124: ENTONOX 170BAR GAZ 2L + MANO | D124: 170 | E124: 2 | F124: Protoxyde d'azote 50 % + Oxygène 50 % gaz | G124: ANESTHESIQUES | H124: 191
B125: 9389241 | C125: ENTONOX 170BAR GAZ 5L + MANO | D125: 170 | E125: 5 | F125: Protoxyde d'azote 50 % + Oxygène 50 % gaz | G125: ANESTHESIQUES | H125: 17168
B126: 5645256 | C126: KALINOX 50%/50% GAZ 15L + MANO | D126: 170 | E126: 15 | F126: Protoxyde d'azote 50 % + Oxygène 50 % gaz | G126: ANESTHESIQUES | H126: 268
B127: 9256474 | C127: KALINOX 50%/50% GAZ 15L + MANO | D127: 170 | E127: 15 | F127: Protoxyde d'azote 50 % + Oxygène 50 % gaz | G127: ANESTHESIQUES | H127: 3935
B128: 9236626 | C128: KALINOX 50%/50% GAZ 20L | D128: 170 | E128: 20 | F128: Protoxyde d'azote 50 % + Oxygène 50 % gaz | G128: ANESTHESIQUES | H128: 1049
B129: 9265763 | C129: KALINOX 50%/50% GAZ 2L + MANO NSFP | D129: 170 | E129: 2 | F129: Protoxyde d'azote 50 % + Oxygène 50 % gaz | G129: ANESTHESIQUES | H129: 122
B130: 5621623 | C130: KALINOX 50%/50% GAZ 5L | D130: 170 | E130: 5 | F130: Protoxyde d'azote 50 % + Oxygène 50 % gaz | G130: ANESTHESIQUES | H130: 29
B131: 9236632 | C131: KALINOX 50%/50% GAZ 5L | D131: 170 | E131: 5 | F131: Protoxyde d'azote 50 % + Oxygène 50 % gaz | G131: ANESTHESIQUES | H131: 4424
B132: 3964230 | C132: KALINOX 50%/50% GAZ 5L + MANO | D132: 170 | E132: 5 | F132: Protoxyde d'azote 50 % + Oxygène 50 % gaz | G132: ANESTHESIQUES | H132: 3
B133: 9396413 | C133: KALINOX 50%/50% GAZ 5L + MANO | D133: 170 | E133: 5 | F133: Protoxyde d'azote 50 % + Oxygène 50 % gaz | G133: ANESTHESIQUES | H133: 14445
B134: 9256480 | C134: KALINOX 50%/50% GAZ 5L + MANO NSFP | D134: 170 | E134: 5 | F134: Protoxyde d'azote 50 % + Oxygène 50 % gaz | G134: ANESTHESIQUES | H134: 6392
B135: 9377692 | C135: ANTASOL 180 GAZ 5L + MANO ET DEBIT | D135: 180 | E135: 5 | F135: Protoxyde d'azote 50 % + Oxygène 50 % gaz | G135: ANESTHESIQUES | H135: 1374
B136: 9432008 | C136: ACTYNOX 50%/50% GAZ 15L + MANO | D136: 185 | E136: 15 | F136: Protoxyde d'azote 50 % + Oxygène 50 % gaz | G136: ANESTHESIQUES | H136: 65
B137: 9432014 | C137: ACTYNOX 50%/50% GAZ 5L + MANO | D137: 185 | E137: 5 | F137: Protoxyde d'azote 50 % + Oxygène 50 % gaz | G137: ANESTHESIQUES | H137: 362
B140: D'après les sources (5) et (6) et les différentes données sur les masses volumiques
B142: Gaz | C142: Masse volumique (kg/m3 à température et pression ambiante)
B143: Desflurane | C143: 1500
B144: Isoflurane | C144: 1500
B145: Sevoflurane | C145: 1,52 (g/ml)
B146: Protoxyde d'azote | C146: 1.847
B151: pour le protoxyde d'azote
B153: Une bouteille de protoxyde d'azote de | C153: 5 | D153: l | E153: contient | F153: 2 | G153: m3 | H153: d'azote à 1 bar et 15 degrès | I153: ce qui correspond à | J153: 3.75 | K153: kg
B154: Une bouteille de protoxyde d'azote de | C154: 15 | D154: l | E154: contient | F154: 5.4 | G154: m3 | H154: d'azote à 1 bar et 15 degrès | I154: ce qui correspond à | J154: 10 | K154: kg
B155: Une bouteille de protoxyde d'azote de | C155: 47 | D155: l | E155: contient | F155: 18.8 | G155: m3 | H155: d'azote à 1 bar et 15 degrès | I155: ce qui correspond à | J155: 35 | K155: kg
B156: Une bouteille de protoxyde d'azote de | C156: 50 | D156: l | E156: contient | F156: =C156*F155/C155 -> 20 | G156: m3 | H156: d'azote à 1 bar et 15 degrès | I156: ce qui correspond à | J156: =C156*J155/C155 -> 37.23404255 | K156: kg | L156: (produit en croix) | M156: Hyp 2
B157: Une bouteille de protoxyde d'azote de | C157: 20 | D157: l | E157: contient | F157: =C157*F154/C154 -> 7.2 | G157: m3 | H157: d'azote à 1 bar et 15 degrès | I157: ce qui correspond à | J157: =C157*J154/C154 -> 13.33333333 | K157: kg | L157: (produit en croix) | M157: Hyp 2
B158: Une bouteille de protoxyde d'azote de | C158: 2 | D158: l | E158: contient | F158: =C158*F153/C153 -> 0.8 | G158: m3 | H158: d'azote à 1 bar et 15 degrès | I158: ce qui correspond à | J158: =C158*J153/C153 -> 1.5 | K158: kg | L158: (produit en croix) | M158: Hyp 2
B160: Pour le MEOPA (50%N20, 50%02)
B162: Une bouteille de MEOPA 170 bar de | C162: 2 | D162: l | E162: contient | F162: 0.59 | G162: m3 | H162: d'azote à 1 bar et 15 degrès | I162: ce qui correspond à | J162: 0.943 | K162: kg
B163: Une bouteille de MEOPA 170 bar de | C163: 5 | D163: l | E163: contient | F163: 1.47 | G163: m3 | H163: d'azote à 1 bar et 15 degrès | I163: ce qui correspond à | J163: 2.358 | K163: kg
B164: Une bouteille de MEOPA 170 bar de | C164: 11 | D164: l | E164: contient | F164: 3.23 | G164: m3 | H164: d'azote à 1 bar et 15 degrès | I164: ce qui correspond à | J164: 5.187 | K164: kg
B165: Une bouteille de MEOPA 170 bar de | C165: 15 | D165: l | E165: contient | F165: 4.4 | G165: m3 | H165: d'azote à 1 bar et 15 degrès | I165: ce qui correspond à | J165: 7.073 | K165: kg
B166: Une bouteille de MEOPA 170 bar de | C166: 20 | D166: l | E166: contient | F166: 5.9 | G166: m3 | H166: d'azote à 1 bar et 15 degrès | I166: ce qui correspond à | J166: 9.431 | K166: kg
B168: Une bouteille de MEOPA 135 bar de | C168: 5 | D168: l | E168: contient | F168: 1.1 | G168: m3 | H168: d'azote à 1 bar et 15 degrès | I168: ce qui correspond à | J168: x | K168: kg
B169: Une bouteille de MEOPA 135 bar de | C169: 15 | D169: l | E169: contient | F169: 3.2 | G169: m3 | H169: d'azote à 1 bar et 15 degrès | I169: ce qui correspond à | J169: x | K169: kg
B171: Une bouteille de MEOPA 180 bar de | C171: 2 | D171: l | E171: contient | F171: 0.6 | G171: m3 | H171: d'azote à 1 bar et 15 degrès | I171: ce qui correspond à | J171: x | K171: kg
B172: Une bouteille de MEOPA 180 bar de | C172: 5 | D172: l | E172: contient | F172: 1.5 | G172: m3 | H172: d'azote à 1 bar et 15 degrès | I172: ce qui correspond à | J172: x | K172: kg
B173: Une bouteille de MEOPA 180 bar de | C173: 15 | D173: l | E173: contient | F173: 4.5 | G173: m3 | H173: d'azote à 1 bar et 15 degrès | I173: ce qui correspond à | J173: x | K173: kg
B175: Une bouteille de MEOPA 185 bar de | C175: 2 | D175: l | E175: contient | F175: 0.6 | G175: m3 | H175: d'azote à 1 bar et 15 degrès | I175: ce qui correspond à | J175: x | K175: kg
B176: Une bouteille de MEOPA 185 bar de | C176: 5 | D176: l | E176: contient | F176: 1.5 | G176: m3 | H176: d'azote à 1 bar et 15 degrès | I176: ce qui correspond à | J176: x | K176: kg
B177: Une bouteille de MEOPA 185 bar de | C177: 10 | D177: l | E177: contient | F177: 3 | G177: m3 | H177: d'azote à 1 bar et 15 degrès | I177: ce qui correspond à | J177: x | K177: kg
B178: Une bouteille de MEOPA 185 bar de | C178: 15 | D178: l | E178: contient | F178: 4.5 | G178: m3 | H178: d'azote à 1 bar et 15 degrès | I178: ce qui correspond à | J178: x | K178: kg
B179: Une bouteille de MEOPA 185 bar de | C179: 50 | D179: l | E179: contient | F179: 15 | G179: m3 | H179: d'azote à 1 bar et 15 degrès | I179: ce qui correspond à | J179: x | K179: kg
B181: Etape de calcul
B183: L'ensemble de ces tableaux nous permettent d'avancer dans les calculs. Dans un premier temps pour le Desflurane, le Sevoflurane et l'Isoflurane
B186: Étiquettes de lignes | C186: Somme de Volume délivré L | D186: Masse totale délivrée (kg) | E186: Masse totale délivrée (kg) | F186: Masse totale délivrée (kg) | G186: Masse totale délivrée (kg)
B187: DESFLURANE | C187: =E94*H94+E95*H95+E96*H96 -> 24423.36 | D187: =C143*C187/1000 -> 36635.04 | E187: 2540 | G187: =D187*E187 -> 93053001.6
B188: ISOFLURANE | C188: =E85*H85+E86*H86+E87*H87+E88*H88+E89*H89 -> 297.5 | D188: =C188*C144/1000 -> 446.25 | E188: 510 | G188: 227587.5
B189: SEVOFLURANE | C189: =E90*H90+E91*H91+E92*H92+E93*H93 -> 138094.5 | D189: =C189*1.52 -> 209903.64 | E189: 130 | G189: 27287473.2
F190: Total: | G190: =SUM(G187:G189) -> 120568062.3
B193: Etape de calcul
B194: Avec les résultats présentés, on peut aussi avancer concernant les meopa et le protoxyde d'azote seul.
B197: Code7 (CIP ou UCD) | C197: Libelle | D197: Pression en bar | E197: Volume en L | F197: Volume en m3 et à température et pression ambainte | G197: Masse en kg | H197: Somme_qtedeliv | I197: Volume total délivré (m3) | J197: Masse totale délivrée (kg) | K197: Masse totale délivrée en passant par les volumes et la masse volumique | L197: PRG | M197: Émissions associées en passant par la masse (kgCO2e) | N197: Émissions associées en passant par les volumes (kgC02eà)
B198: 9234076 | C198: PROTOXYDE AZOTE ALS GAZ 15L | D198: 44 | E198: 15 | F198: =$F$154 -> 5.4 | G198: =J154 -> 10 | H198: 69 | I198: =H198*F198 -> 372.6 | J198: =H198*G198 -> 690 | K198: =F198*$C$146*H198 -> 688.1922 | L198: 265 | M198: =J198*L198 -> 182850
B199: 9234082 | C199: PROTOXYDE AZOTE ALS GAZ 47L C1 | D199: 44 | E199: 47 | F199: =$F$155 -> 18.8 | G199: 35 | H199: 1464 | I199: 27523.2 | J199: 51240 | K199: 50835.3504 | L199: 265 | M199: 13578600
B200: 9237666 | C200: PROTOXYDE AZOTE ALS GAZ 5L | D200: 44 | E200: 5 | F200: =$F$153 -> 2 | G200: =J153 -> 3.75 | H200: 32 | I200: 64 | J200: 120 | K200: 118.208 | L200: 265 | M200: 31800
B201: 9239234 | C201: PROTOXYDE AZOTE APM GAZ 20L | D201: 44 | E201: 20 | F201: =$F$157 -> 7.2 | G201: =J157 -> 13.33333333 | H201: 2 | I201: 14.4 | J201: 26.66666667 | K201: 26.5968 | L201: 265 | M201: 7066.666667
B202: 9239731 | C202: PROTOXYDE AZOTE APM GAZ 50L | D202: 44 | E202: 50 | F202: =$F$156 -> 20 | G202: =J156 -> 37.23404255 | H202: 165 | I202: 3300 | J202: 6143.617021 | K202: 6095.1 | L202: 265 | M202: 1628058.511
B203: 9239263 | C203: PROTOXYDE AZOTE APM GAZ 50L + TP | D203: 44 | E203: 50 | F203: 20 | G203: =J156 -> 37.23404255 | H203: 1 | I203: 20 | J203: 37.23404255 | K203: 36.94 | L203: 265 | M203: 9867.021277
B204: 9239257 | C204: PROTOXYDE AZOTE APM GAZ 5L | D204: 44 | E204: 5 | F204: =$F$153 -> 2 | G204: =J153 -> 3.75 | H204: 5 | I204: 10 | J204: 18.75 | K204: 18.47 | L204: 265 | M204: 4968.75
B205: 9237637 | C205: PROTOXYDE AZOTE LDH GAZ 47L | D205: 44 | E205: 47 | F205: =$F$155 -> 18.8 | G205: =J155 -> 35 | H205: 101 | I205: 1898.8 | J205: 3535 | K205: 3507.0836 | L205: 265 | M205: 936775
B206: 9356141 | C206: PROTOXYDE AZOTE LDH GAZ 47L C8 | D206: 44 | E206: 47 | F206: 18.8 | G206: =J155 -> 35 | H206: 22 | I206: 413.6 | J206: 770 | K206: 763.9192 | L206: 265 | M206: 204050
B207: 9278990 | C207: PROTOXYDE AZOTE LDH GAZ 50L | D207: 44 | E207: 50 | F207: =$F$156 -> 20 | G207: 37.23404255 | H207: 135 | I207: 2700 | J207: 5026.595745 | K207: 4986.9 | L207: 265 | M207: 1332047.872
B208: 9237643 | C208: PROTOXYDE AZOTE LDH GAZ 5L | D208: 44 | E208: 5 | F208: =$F$153 -> 2 | G208: =J153 -> 3.75 | H208: 4 | I208: 8 | J208: 15 | K208: 14.776 | L208: 265 | M208: 3975
B209: 9239292 | C209: PROTOXYDE AZOTE SOL FRANCE GAZ 15L | D209: 44 | E209: 15 | F209: =$F$154 -> 5.4 | G209: 10 | H209: 26 | I209: 140.4 | J209: 260 | K209: 259.3188 | L209: 265 | M209: 68900
B210: 9239323 | C210: PROTOXYDE AZOTE SOL FRANCE GAZ 50L | D210: 44 | E210: 50 | F210: =$F$156 -> 20 | G210: =J156 -> 37.23404255 | H210: 471 | I210: 9420 | J210: 17537.23404 | K210: 17398.74 | L210: 265 | M210: 4647367.021
B211: 9239317 | C211: PROTOXYDE AZOTE SOL FRANCE GAZ 5L | D211: 44 | E211: 5 | F211: =$F$153 -> 2 | G211: =J153 -> 3.75 | H211: 66 | I211: 132 | J211: 247.5 | K211: 243.804 | L211: 265 | M211: 65587.5
B212: 9249913 | C212: ANTASOL 135 GAZ 15L + MANO | D212: 135 | E212: 15 | F212: =F169 -> 3.2 | G212: =F212*$C$146/2 -> 2.9552 | H212: 47 | I212: 150.4 | J212: 138.8944 | L212: 265 | M212: 36807.016
B213: 9285665 | C213: ANTASOL 135 GAZ 15L + MANO ET DEBIT | D213: 135 | E213: 15 | F213: =$F$169 -> 3.2 | G213: 2.9552 | H213: 100 | I213: 320 | J213: 295.52 | L213: 265 | M213: 78312.8
B214: 9239369 | C214: ANTASOL 135 GAZ 5L | D214: 135 | E214: 5 | F214: =$F$168 -> 1.1 | G214: 1.01585 | H214: 21 | I214: 23.1 | J214: 21.33285 | L214: 265 | M214: 5653.20525
B215: 9249936 | C215: ANTASOL 135 GAZ 5L + MANO | D215: 135 | E215: 5 | F215: 1.1 | G215: 1.01585 | H215: 159 | I215: 174.9 | J215: 161.52015 | L215: 265 | M215: 42802.83975
B216: 9285671 | C216: ANTASOL 135 GAZ 5L + MANO ET DEBIT | D216: 135 | E216: 5 | F216: 1.1 | G216: 1.01585 | H216: 469 | I216: 515.9 | J216: 476.43365 | L216: 265 | M216: 126254.9173
B217: 9237672 | C217: ENTONOX 135BAR GAZ 15L | D217: 135 | E217: 15 | F217: =$F$169 -> 3.2 | G217: 2.9552 | H217: 31 | I217: 99.2 | J217: 91.6112 | L217: 265 | M217: 24276.968
B218: 9264918 | C218: ENTONOX 135BAR GAZ 15L + MANO | D218: 135 | E218: 15 | F218: 3.2 | G218: 2.9552 | H218: 141 | I218: 451.2 | J218: 416.6832 | L218: 265 | M218: 110421.048
B219: 9237689 | C219: ENTONOX 135BAR GAZ 5L | D219: 135 | E219: 5 | F219: =$F$168 -> 1.1 | G219: 1.01585 | H219: 501 | I219: 551.1 | J219: 508.94085 | L219: 265 | M219: 134869.3253
B220: 9264924 | C220: ENTONOX 135BAR GAZ 5L + MANO | D220: 135 | E220: 5 | F220: 1.1 | G220: 1.01585 | H220: 364 | I220: 400.4 | J220: 369.7694 | L220: 265 | M220: 97988.891
B221: 9280136 | C221: OXYNOX 135 GAZ 15L + MANO DEBIT | D221: 135 | E221: 15 | F221: =$F$169 -> 3.2 | G221: 2.9552 | H221: 1313 | I221: 4201.6 | J221: 3880.1776 | L221: 265 | M221: 1028247.064
B222: 9280165 | C222: OXYNOX 135 GAZ 5L | D222: 135 | E222: 5 | F222: =$F$168 -> 1.1 | G222: 1.01585 | H222: 104 | I222: 114.4 | J222: 105.6484 | L222: 265 | M222: 27996.826
B223: 9280142 | C223: OXYNOX 135 GAZ 5L + MANO DEBIT | D223: 135 | E223: 5 | F223: 1.1 | G223: 1.01585 | H223: 1460 | I223: 1606 | J223: 1483.141 | L223: 265 | M223: 393032.365
B224: 9389229 | C224: ENTONOX 170BAR GAZ 15L + MANO | D224: 170 | E224: 15 | F224: =$F$165 -> 4.4 | G224: =$J$165/2 -> 3.5365 | H224: 1697 | I224: 7466.8 | J224: 6001.4405 | L224: 265 | M224: 1590381.733
B225: 9389235 | C225: ENTONOX 170BAR GAZ 2L + MANO | D225: 170 | E225: 2 | F225: =$F$162 -> 0.59 | G225: =$J$162/2 -> 0.4715 | H225: 191 | I225: 112.69 | J225: 90.0565 | L225: 265 | M225: 23864.9725
B226: 9389241 | C226: ENTONOX 170BAR GAZ 5L + MANO | D226: 170 | E226: 5 | F226: =$F$163 -> 1.47 | G226: =$J$163/2 -> 1.179 | H226: 17168 | I226: 25236.96 | J226: 20241.072 | L226: 265 | M226: 5363884.08
B227: 5645256 | C227: KALINOX 50%/50% GAZ 15L + MANO | D227: 170 | E227: 15 | F227: =$F$165 -> 4.4 | G227: =$J$165/2 -> 3.5365 | H227: 268 | I227: 1179.2 | J227: 947.782 | L227: 265 | M227: 251162.23
B228: 9256474 | C228: KALINOX 50%/50% GAZ 15L + MANO | D228: 170 | E228: 15 | F228: 4.4 | G228: 3.5365 | H228: 3935 | I228: 17314 | J228: 13916.1275 | L228: 265 | M228: 3687773.788
B229: 9236626 | C229: KALINOX 50%/50% GAZ 20L | D229: 170 | E229: 20 | F229: =F166 -> 5.9 | G229: =J166/2 -> 4.7155 | H229: 1049 | I229: 6189.1 | J229: 4946.5595 | L229: 265 | M229: 1310838.267
B230: 9265763 | C230: KALINOX 50%/50% GAZ 2L + MANO NSFP | D230: 170 | E230: 2 | F230: =$F$162 -> 0.59 | G230: =$J$162/2 -> 0.4715 | H230: 122 | I230: 71.98 | J230: 57.523 | L230: 265 | M230: 15243.595
B231: 5621623 | C231: KALINOX 50%/50% GAZ 5L | D231: 170 | E231: 5 | F231: =$F$163 -> 1.47 | G231: =$J$163/2 -> 1.179 | H231: 29 | I231: 42.63 | J231: 34.191 | L231: 265 | M231: 9060.615
B232: 9236632 | C232: KALINOX 50%/50% GAZ 5L | D232: 170 | E232: 5 | F232: 1.47 | G232: 1.179 | H232: 4424 | I232: 6503.28 | J232: 5215.896 | L232: 265 | M232: 1382212.44
B233: 3964230 | C233: KALINOX 50%/50% GAZ 5L + MANO | D233: 170 | E233: 5 | F233: 1.47 | G233: 1.179 | H233: 3 | I233: 4.41 | J233: 3.537 | L233: 265 | M233: 937.305
B234: 9396413 | C234: KALINOX 50%/50% GAZ 5L + MANO | D234: 170 | E234: 5 | F234: 1.47 | G234: 1.179 | H234: 14445 | I234: 21234.15 | J234: 17030.655 | L234: 265 | M234: 4513123.575
B235: 9256480 | C235: KALINOX 50%/50% GAZ 5L + MANO NSFP | D235: 170 | E235: 5 | F235: 1.47 | G235: 1.179 | H235: 6392 | I235: 9396.24 | J235: 7536.168 | L235: 265 | M235: 1997084.52
B236: 9377692 | C236: ANTASOL 180 GAZ 5L + MANO ET DEBIT | D236: 180 | E236: 5 | F236: =F172 -> 1.5 | G236: =F236*$C$146/2 -> 1.38525 | H236: 1374 | I236: 2061 | J236: 1903.3335 | L236: 265 | M236: 504383.3775
B237: 9432008 | C237: ACTYNOX 50%/50% GAZ 15L + MANO | D237: 185 | E237: 15 | F237: =F178 -> 4.5 | G237: 4.15575 | H237: 65 | I237: 292.5 | J237: 270.12375 | L237: 265 | M237: 71582.79375
B238: 9432014 | C238: ACTYNOX 50%/50% GAZ 5L + MANO | D238: 185 | E238: 5 | F238: =F176 -> 1.5 | G238: 1.38525 | H238: 362 | I238: 543 | J238: 501.4605 | L238: 265 | M238: 132887.0325
B241: Etape de calcul
B242: On peut dorénavant complèter notre calcul en y ajoutant les émissions associées à l'utilisation de protoxyde d'azote
B245: Étiquettes de lignes | C245: Somme de Volume délivré L | D245: Masse totale délivrée (kg) | E245: PRG | G245: KgCO2e | H245: Pourcentage
B246: DESFLURANE | C246: =C187 -> 24423.36 | D246: 36635.04 | E246: 2540 | F246: 0 | G246: 93053001.6 | H246: =G246/$G$251 -> 0.5597810784
B247: ISOFLURANE | C247: 297.5 | D247: 446.25 | E247: 510 | F247: 0 | G247: 227587.5 | H247: 0.00136910335
B248: Protoxyde d'azote | D248: =SUM(J198:J211) -> 85667.59752 | E248: 265 | G248: =SUM(M198:M211) -> 22701913.34 | H248: 0.1365684214
B249: MEOPA | D249: =SUM(J212:J238) -> 86645.59845 | E249: 265 | G249: =SUM(M212:M238) -> 22961083.59 | H249: 0.1381275178
B250: SEVOFLURANE | C250: =C189 -> 138094.5 | D250: =D189 -> 209903.64 | E250: =E189 -> 130 | F250: =F189 -> 0 | G250: =G189 -> 27287473.2 | H250: 0.1641538791
F251: Total | G251: =SUM(G246:G250) -> 166231059.2
B252: Etape de calcul et sytnhèse
B254: Enfin, les données de l'ATIH (1) ne recouvrent que 1791 établissements sur 2931 entrant dans le périmètre cible
B255: On fait donc l'hypothèse que la consommation de gaz
B256: Hyp 4: La consommation de gaz médicaux par établissement est similaire dans les établissements hospitaliers ayant fourni des données exploitables à l'equête de l'ATIH, et dans les autres centres hospitaliers
B258: On obtient donc les émissions globales liées aux gaz médicaux: | C258: =G251*10^-9*2931/1791 -> 0.2720397737 | D258: MtCO2e
B261: Partie II - Empreinte carbone des inhalateurs
B263: D'après la source (13), le salbutamol (principale composante des inhalateurs) est responsable des émisisons de plus de 310 millions de kg de CO2 équivaments
B264: Empreinte carbone du salbutamol: | C264: =310*10^-3 -> 0.31 | D264: MtCO2e
B266: Partie III: Estimation de l'empreinte carbone associée aux fuites de fluides frigorigènes
B268: Hyp 5: Nous considérerons que les émissions sont uniquement dues aux fuites de HFC. Cette hypothèse est confirmée par l'étude source (9) figure I-2.
B269: Hyp 6 : On considère que les émissions surfaciques de HFC sont identiques dans la santé et dans le tertiaire.
B270: Hyp 7 : 70% des surfaces du tertaire sont chauffées. Cette hypothèse est confirmée par la source (11), table 1
B271: Hyp 8 : Le ratio des surfaces chauffées et des surfaces climatisées est identique dans la santé et dans le tertiaire. Cette hypothèse est confirmée par l'étude (12), figure 47.
B273: Nous adoptons ici une approche top-down: à partir des émissions de HFC du secteur tertaire, et en supposons que les fuites de HFC sont identiques pour toutes le surfaces, nous estimons les fuites de HFC de la santé (à l'aide de la surface de la santé et de la surface totale du tertiaire).
B275: Type d'établissement | C275: Surface chauffée totale des bâtiments (m2) | D275: Source | E275: Emissions de CO2 due aux fuites de HFC (2019) | F275: Unité | G275: Source
B276: secteur tertiaire | C276: 973000000 | D276: (12) | E276: =5319/1000 -> 5.319 | F276: MtCO2e | G276: (10)
B277: secteur de la Santé | C277: ='10.bâtiments'!C252*0.7 -> 84143788.72 | D277: (11) | E277: =E276*C277/C276 -> 0.4599802798 | F277: MtCO2e | G277: (10)

Sheet 11
B2: déchets
A3: <
B5: Tableau de bord du poste | F5: Indications du guide sectoriel
B6: Emissions totales du poste | C6: =C13 -> 0.4221236481 | D6: MtCO2e/an | F6: Sources potentielles | H6: déchets
B7: Version | C7: v1.1 | F7: Données spécifiques | H7: Il s’agit de collecter par type de déchets, les données de quantité de déchets et de traitement en fin de vie associé à partir du suivi des déchetsv(en tonnes)
B8: Satisfaction | C8: Bon ordre de grandeur
B12: Numéro de version | C12: v1.1
B13: Emissions totales | C13: =C134 -> 0.4221236481 | D13: MtCO2e
B14: Satisfaction vis-à-vis de la version | C14: Bon ordre de grandeur
B16: Carte d'identité de la version
B17: Hypothèses | C17: Hyp 1 : Sur les 700 000 tonnes de déchets, 170 000 sont des DASRI et les 530 000 tonnes restantes sont des déchets ménagers (DAOM). Hyp2 : Les 700 000 tonnes de déchets correspondent aux déchets des établissements médico-sociaux. On suppose qu'elles correspondent aux établissments de notre périmètre (même si dans ce cas, sons aussi inclus les déchets du secteur social). Cette hypothèse est possible d'autant plus que ces données sont de 2012 et ce chiffre a sûrement augmenté aujourd'hui. Hyp 3 : Le ratio DASRI/DAOM est identique pour la médecine de ville et pour les établissements hospitaliers Hyp 4 : Les établissents médico-sociaux ne produisent pas de DASRI, et produise la même quantité de DAOM par lit que les établissements hospitaliers. | D17: Hyp 1 : Sur les 700 000 tonnes de déchets, 170 000 sont des DASRI et les 530 000 tonnes restantes sont des déchets ménagers (DAOM). Hyp2 : Les 700 000 tonnes de déchets correspondent aux déchets des établissements médico-sociaux. On suppose qu'elles correspondent aux établissments de notre périmètre (même si dans ce cas, sons aussi inclus les déchets du secteur social). Cette hypothèse est possible d'autant plus que ces données sont de 2012 et ce chiffre a sûrement augmenté aujourd'hui. | E17: Hyp 1 : Sur les 700 000 tonnes de déchets, 170 000 sont des DASRI et les 530 000 tonnes restantes sont des déchets ménagers (DAOM). Hyp2 : Les 700 000 tonnes de déchets correspondent aux déchets des établissements médico-sociaux. On suppose qu'elles correspondent aux établissments de notre périmètre (même si dans ce cas, sons aussi inclus les déchets du secteur social). Cette hypothèse est possible d'autant plus que ces données sont de 2012 et ce chiffre a sûrement augmenté aujourd'hui. | F17: Hyp 1 : Sur les 700 000 tonnes de déchets, 170 000 sont des DASRI et les 530 000 tonnes restantes sont des déchets ménagers (DAOM). Hyp2 : Les 700 000 tonnes de déchets correspondent aux déchets des établissements médico-sociaux. On suppose qu'elles correspondent aux établissments de notre périmètre (même si dans ce cas, sons aussi inclus les déchets du secteur social). Cette hypothèse est possible d'autant plus que ces données sont de 2012 et ce chiffre a sûrement augmenté aujourd'hui. | G17: Hyp 1 : Sur les 700 000 tonnes de déchets, 170 000 sont des DASRI et les 530 000 tonnes restantes sont des déchets ménagers (DAOM). Hyp2 : Les 700 000 tonnes de déchets correspondent aux déchets des établissements médico-sociaux. On suppose qu'elles correspondent aux établissments de notre périmètre (même si dans ce cas, sons aussi inclus les déchets du secteur social). Cette hypothèse est possible d'autant plus que ces données sont de 2012 et ce chiffre a sûrement augmenté aujourd'hui. | H17: Hyp 1 : Sur les 700 000 tonnes de déchets, 170 000 sont des DASRI et les 530 000 tonnes restantes sont des déchets ménagers (DAOM). Hyp2 : Les 700 000 tonnes de déchets correspondent aux déchets des établissements médico-sociaux. On suppose qu'elles correspondent aux établissments de notre périmètre (même si dans ce cas, sons aussi inclus les déchets du secteur social). Cette hypothèse est possible d'autant plus que ces données sont de 2012 et ce chiffre a sûrement augmenté aujourd'hui. | I17: Hyp 1 : Sur les 700 000 tonnes de déchets, 170 000 sont des DASRI et les 530 000 tonnes restantes sont des déchets ménagers (DAOM). Hyp2 : Les 700 000 tonnes de déchets correspondent aux déchets des établissements médico-sociaux. On suppose qu'elles correspondent aux établissments de notre périmètre (même si dans ce cas, sons aussi inclus les déchets du secteur social). Cette hypothèse est possible d'autant plus que ces données sont de 2012 et ce chiffre a sûrement augmenté aujourd'hui. | J17: Hyp 1 : Sur les 700 000 tonnes de déchets, 170 000 sont des DASRI et les 530 000 tonnes restantes sont des déchets ménagers (DAOM). Hyp2 : Les 700 000 tonnes de déchets correspondent aux déchets des établissements médico-sociaux. On suppose qu'elles correspondent aux établissments de notre périmètre (même si dans ce cas, sons aussi inclus les déchets du secteur social). Cette hypothèse est possible d'autant plus que ces données sont de 2012 et ce chiffre a sûrement augmenté aujourd'hui. | K17: Hyp 1 : Sur les 700 000 tonnes de déchets, 170 000 sont des DASRI et les 530 000 tonnes restantes sont des déchets ménagers (DAOM). Hyp2 : Les 700 000 tonnes de déchets correspondent aux déchets des établissements médico-sociaux. On suppose qu'elles correspondent aux établissments de notre périmètre (même si dans ce cas, sons aussi inclus les déchets du secteur social). Cette hypothèse est possible d'autant plus que ces données sont de 2012 et ce chiffre a sûrement augmenté aujourd'hui. | L17: Hyp 1 : Sur les 700 000 tonnes de déchets, 170 000 sont des DASRI et les 530 000 tonnes restantes sont des déchets ménagers (DAOM). Hyp2 : Les 700 000 tonnes de déchets correspondent aux déchets des établissements médico-sociaux. On suppose qu'elles correspondent aux établissments de notre périmètre (même si dans ce cas, sons aussi inclus les déchets du secteur social). Cette hypothèse est possible d'autant plus que ces données sont de 2012 et ce chiffre a sûrement augmenté aujourd'hui. | M17: Hyp 1 : Sur les 700 000 tonnes de déchets, 170 000 sont des DASRI et les 530 000 tonnes restantes sont des déchets ménagers (DAOM). Hyp2 : Les 700 000 tonnes de déchets correspondent aux déchets des établissements médico-sociaux. On suppose qu'elles correspondent aux établissments de notre périmètre (même si dans ce cas, sons aussi inclus les déchets du secteur social). Cette hypothèse est possible d'autant plus que ces données sont de 2012 et ce chiffre a sûrement augmenté aujourd'hui. | N17: Hyp 1 : Sur les 700 000 tonnes de déchets, 170 000 sont des DASRI et les 530 000 tonnes restantes sont des déchets ménagers (DAOM). Hyp2 : Les 700 000 tonnes de déchets correspondent aux déchets des établissements médico-sociaux. On suppose qu'elles correspondent aux établissments de notre périmètre (même si dans ce cas, sons aussi inclus les déchets du secteur social). Cette hypothèse est possible d'autant plus que ces données sont de 2012 et ce chiffre a sûrement augmenté aujourd'hui. | O17: Hyp 1 : Sur les 700 000 tonnes de déchets, 170 000 sont des DASRI et les 530 000 tonnes restantes sont des déchets ménagers (DAOM). Hyp2 : Les 700 000 tonnes de déchets correspondent aux déchets des établissements médico-sociaux. On suppose qu'elles correspondent aux établissments de notre périmètre (même si dans ce cas, sons aussi inclus les déchets du secteur social). Cette hypothèse est possible d'autant plus que ces données sont de 2012 et ce chiffre a sûrement augmenté aujourd'hui. | P17: Hyp 1 : Sur les 700 000 tonnes de déchets, 170 000 sont des DASRI et les 530 000 tonnes restantes sont des déchets ménagers (DAOM). Hyp2 : Les 700 000 tonnes de déchets correspondent aux déchets des établissements médico-sociaux. On suppose qu'elles correspondent aux établissments de notre périmètre (même si dans ce cas, sons aussi inclus les déchets du secteur social). Cette hypothèse est possible d'autant plus que ces données sont de 2012 et ce chiffre a sûrement augmenté aujourd'hui. | Q17: Hyp 1 : Sur les 700 000 tonnes de déchets, 170 000 sont des DASRI et les 530 000 tonnes restantes sont des déchets ménagers (DAOM). Hyp2 : Les 700 000 tonnes de déchets correspondent aux déchets des établissements médico-sociaux. On suppose qu'elles correspondent aux établissments de notre périmètre (même si dans ce cas, sons aussi inclus les déchets du secteur social). Cette hypothèse est possible d'autant plus que ces données sont de 2012 et ce chiffre a sûrement augmenté aujourd'hui.
B18: Données et sources | C18: (1) Pour une bonne gestion des déchets produits par les établissements de santé et médico-sociaux, https://solidarites-sante.gouv.fr/IMG/pdf/pour_une_bonne_gestion_des_dechets_produits_par_les_etablissements_de_sante_et_medico-sociaux.pdf (2) Facteurs d'émissions d'un CH - Anonyme (3) DASTRI rapport d'activité 2019, docuement pour les données sur les DASRI des pharmacies, https://www.dastri.fr/wp-content/uploads/2020/04/DASTRI_RA_2019.pdf (4) Déchets d’activités de soins produits par les libéraux de santé, Données sur la quantité de décehts produits par la médecine de ville, https://www.iledefrance.ars.sante.fr/dechets-dactivites-de-soins-produits-par-les-liberaux-de-sante (5) Propre périmètre secteur santé (6) Quantité d'eau utilisée selon usages, SMEGREG, https://www.gesteau.fr/sites/default/files/doc_SAGE05003-1207141291.pdf
B19: Méthodologie | C19: Pour ce poste nous allons appliquer 3 méthodes différentes : - Pour les établissements hospitaliers : Nous allons répartir les 700 000 tonnes de déchets en DAOM et en DASRI. Puis à partir des FE du CH de Dieppe nous allons en déduire les émissions - Pour la médecine de ville : nous allons utiliser des données moyennes de kfDasri par praticiens. Puis avec les FE nous allons évaluer les émissions. Nous utilisons ensuite le même ratio DASRI/DAOM que les établissements hospitaliers - Pour les établissements médico-sociaux, nous supposons que ces derniers produise uniquement des DAOM, dans des proportions par lit identiques aux établissements hospitaliers. - Pour le traitements des eaux usées, nous calculons la quantité d'eau consommée dans les établissement hospitaliers et médico-sociaux. Puis avec le FE nous pouvons évaluer les émissions asociées.
B20: Données manquantes | C20: La répartition des DAOM en type de déchets. Pour les DAOM nous utilisons un FE moyen qui n'est pas forcément précis et adapté aux déchets du secteur de la santé. Des données sur les autres type sde déchets (cartons, papier, métal...). Des données sur les laboratoires et les officines. Des données sur la consommation d'eau de la médecine de ville, et des pharmarcies, officcines et laboratoires d'analyse. Des données sur les déchets radioactifs, chimiques et biologiques.
B21: Limites, pistes d'amélioration | C21: Ce modèle est encore partiellement incomplet.
B22: Entités du périmètre concernées | C22: Les établissements de santé publics et privés, la médecine de ville et le médico-social.
B23: Commentaires généraux
B24: Date | C24: 2021-12-02
B26: Partie 0: Résumé des résultats
C28: Quantité (t) | D28: Unité | E28: Émission (MtC02) | F28: Unité
B29: DAOM | C29: =C62+(SUM(G111:G115)/10^3) -> 575904.437 | D29: Tonnes | E29: =E62*C29/10^9 -> 0.2153882594 | F29: MtCO2
B30: DASRI | C30: =C63+(SUM(F111:F115)/10^3) -> 172717.858 | D30: Tonnes | E30: 0.1628729401 | F30: MtCO2
B50: Partie I: Estimation de l'empreinte carbone des déchets des établissements de santé et du médico social
B51: Méthodo
B52: On utilise la quantité de décehts qu'on répartir entre DAOM et DASRI produits et le FE approprié
B54: Selon (1), les DASRI représenent en France un gisement de 170000 produits à 95% par les hopitaux et les établissements médico-sociaux avec hébergement (soit 161 500 tonnes)
B55: De plus, toujours selon (1), les établissement shospitaliers et médico-sociaux avec hébergement produisent chaque année 700 000 tonnes de déchets
B56: Hyp 1 : Sur les 700 000 tonnes de déchets, 161 500 sont des DASRI et les 538 500 tonnes restantes sont des déchets ménagers (DAOM).
B57: Hyp2 : Les 700 000 tonnes de déchets correspondent en partie aux déchets des établissements médico-sociaux. On suppose qu'elles correspondent aux établissments de notre périmètre (même si dans ce cas, sont aussi inclus les déchets du secteur social). Cette hypothèse est possible d'autant plus que ces données sont de 2012 et ce chiffre a sûrement augmenté aujourd'hui. donc les 700 000 tonnes sous estiment sans doute les décehts réellement produits par cette partie du périmètre.
B60: Etape de calcul
C61: Quantité | D61: Unité | E61: Facteur d'émission | F61: Unité
B62: DAOM | C62: 538500 | D62: Tonnes | E62: 374 | F62: kgCO2e/Tonnes | G62: (1) | H62: (2)
B63: DASRI | C63: 161500 | D63: Tonnes | E63: 943 | F63: kgCO2e/Tonnes | G63: (1) | H63: (2)
B66: Etape de calcul
C68: Emissions | D68: Unité
B69: DAOM | C69: =C62*E62 -> 201399000 | D69: kgCO2e
B70: DASRI | C70: 152294500 | D70: kgCO2e
B73: Partie II: Estimation de l'empreinte carbone des déchets de la médecine de ville (Hors Officines)
B75: Méthodo
B76: On utilise des ratios de kg de DASRI produits par mois et par profession libérale pour estimer la quantité de déceht produits par la médecine de ville
B77: Hyp 1 : Les professions libérales masseur-kiné, orthophoniste, orthoptiste, psychomotricien, pédicure-podologue, ergothérapeute, audioprothésiste, opticien-lunetier, Manipulateur ERM, Diététicien, Technicien de laboratoire, profession d'appreillage, psychologues ne produisent pas de DASRI.
B78: Hyp 2 : Les Médecins et autres professions de santé "Mixtes" sont répartis moitié-moitié dans les hôpitaux ou en cabinets libéraux
B79: Hyp 3 : Les Médecins et autres professions de santé "Libéraux ou mixtes" sont répartis moitié-moitié en libéraux ou en mixtes. Et donc ceux rajoutés en mixte sont répartis en moitié-moitié libéraux et hopitaux.
B80: Hyp 4 : Les sage-femmes produisent autant de déchets que les infirmiers
B81: Hyp 5 : Le ratio DASRI/(DASRI+DAOM) est le même que celui des hôpitaux
B83: Etape de calcul
B84: Dans un premier on fait la liste des professionnels de santé
B86: Médecins et autres professions de santé | C86: Total | D86: Libéraux exclusifs | E86: Mixtes | F86: Libéraux ou mixtes | G86: Salariés hospitaliers | H86: Autres salariés | I86: Année | J86: Numéro de la source
B87: Médecins spécialistes | C87: =SUM(D87:H87) -> 123753 | D87: 43121 | E87: 18567 | G87: 50345 | H87: 11720 | I87: 2018 | J87: (5)
B88: Généralistes | C88: 102466 | D88: 60214 | E88: 7856 | G88: 18961 | H88: 15435 | I88: 2018 | J88: (5)
B89: Chirurgien-dentiste | C89: 41376 | D89: 33831 | E89: 2541 | G89: 688 | H89: 4316 | I89: 2018 | J89: (5)
B90: Sage-femme | C90: 21674 | D90: 4446 | E90: 2218 | G90: 13656 | H90: 1354 | I90: 2018 | J90: (5)
B91: Infirmier | C91: 682254 | F91: 117451 | G91: 446580 | H91: 118223 | I91: 2018 | J91: (5)
B94: Etape de calcul
B95: On répartit ces professionnels de santé de telle sorte a isoler ceux qui sont des "libéraux"
B98: Médecins et autres professions de santé | C98: Total libéraux
B99: Médecins spécialistes | C99: =D87+0.5*E87 -> 52404.5
B100: Généralistes | C100: 64142
B101: Chirurgien-dentiste | C101: 35101.5
B102: Sage-femme | C102: 5555
B103: Infirmier | C103: =F91*0.5+F91*0.25 -> 88088.25
B105: Etape de calcul
B107: On en déduit les déchets produits par profession
B110: Médecins et autres professions de santé | C110: Total libéraux | D110: Moyenne de déchets DASRI produits (kg/praticiens.mois) | E110: source | F110: DASRI produits (kg) | G110: DAOM produits (kg) | H110: Empreinte carbone | I110: Unité
B111: Médecins spécialistes | C111: =C99 -> 52404.5 | D111: 3 | E111: (4) | F111: =D111*12*C111 -> 1886562 | G111: =ROUND(F111*$C$62/$C$63,0) -> 6290487 | H111: =(F111*$E$63+G111*$E$62)/1000 -> 4131670.104 | I111: kgCO2e
B112: Généralistes | C112: 64142 | D112: 3 | E112: (4) | F112: 2309112 | G112: 7699423 | H112: 5057076.818 | I112: kgCO2e
B113: Chirurgien-dentiste | C113: 35101.5 | D113: 6 | E113: (4) | F113: 2527308 | G113: 8426968 | H113: 5534937.476 | I113: kgCO2e
B114: Sage-femme | C114: 5555 | D114: 4 | E114: (4) | F114: 266640 | G114: 889075 | H114: 583955.57 | I114: kgCO2e
B115: Infirmier | C115: 88088.25 | D115: 4 | E115: (4) | F115: 4228236 | G115: 14098484 | H115: 9260059.564 | I115: kgCO2e
E116: Total: | F116: =SUM(F111:F115) -> 11217858 | G116: =SUM(G111:G115) -> 37404437 | H116: =SUM(H111:H115)/10^9 -> 0.02456769953 | I116: MtCO2e
B119: Partie III: Estimation des déchets DASRI produits par les pharmaciens.
B120: Sûrement négigeable d'après (1) !
B123: Partie IV: Estimation des émission produites par le traitement des eaux usées
B125: On estimme ici la quantité d'eau consommée, en utilisant le nombre de lits et de places dans les établissemetns de santé et médico-sociaux ainsi que la consommation par lits. On utilise le facteur d'émission du Ch de Dieppe.
B127: Type d'établissement | C127: Nombre de lits et places | D127: Consommation d'eau par an et par lit (m3) | E127: source | F127: Total consommation d'eau (m3) | G127: Facteur d'émission (kgCO2e/m3) | H127: Empreinte carbone | I127: Unité
B128: établissements de santé | C128: 481034 | D128: 150 | E128: (6) | F128: 72155100 | G128: 0.262 | H128: =F128*G128/10^9 -> 0.0189046362 | I128: MtCO2e | J128: (2)
B129: EHPA | C129: 651073 | D129: 82 | E129: (6) | F129: 53387986 | G129: 0.262 | H129: 0.01398765233 | I129: MtCO2e | J129: (2)
B130: ES "Handicap" | C130: 510620 | D130: 82 | E130: (6) | F130: 41870840 | G130: 0.262 | H130: 0.01097016008 | I130: MtCO2e | J130: (2)
E131: TOTAL : | F131: 167413926 | G131: 0.262 | H131: 0.04386244861 | I131: MtCO2e
B132: Partie V: Synthèse des résultats
B134: total des émissions | C134: =SUM(C69:C70)/10^9+H116+H131 -> 0.4221236481 | D134: MtCO2e

Sheet Annexe 1
B5: Pas ok
B6: Calcul brouillon, odg
B7: Bon ordre de grandeur
B8: Calcul validé

Sheet Annexe 2
B1: Effectif de l'administration de la santé et de la complémentaire santé
B3: Partie 0: Bilan
C4: Effectifs
B5: Administration de la santé | C5: =D67 -> 98433.71
B6: Complémentaire santé | C6: =F105 -> 50086.25171
B8: Partie I: Effectifs de l'administration de la santé
B10: Le diagramme suivant décrit les entités travaillant pour le secteur de la santé :
B39: Les EPIC (l'IRSN et l'INERIS), et les GIP enfance en danger et l'agence française de l'adoption, ne sont pas comptés dans le périmètre "santé"
B40: N.B. : On cherche les ETP ou ETPT. Le cas échéant, on prendra les effectifs réels, ou les emplois autorisés
D41: Effectif ETP | E41: Source
B42: Ministère (hors EPA) | D42: 9662 | E42: Jaune2021_fonction_publique-web.pdf
B43: EPA (hors sécurité sociale) | C43: Agence de la Biomédecine | D43: 248.6 | E43: PLFSS 2021 - Annexe 8 (securite-sociale.fr)
C44: Agence Nationale de sécurité du médicament et des produits de santé | D44: 948 | E44: PLFSS 2021 - Annexe 8 (securite-sociale.fr)
C45: Agence Technique de l’Information et de l’Hospitalisation | D45: 122 | E45: PLFSS 2021 - Annexe 8 (securite-sociale.fr)
C46: Etablissement Français du Sang | D46: 8534.6 | E46: https://www.securite-sociale.fr/files/live/sites/SSFR/files/medias/PLFSS/2021/PLFSS-2021-ANNEXE%208.pdf
C47: Santé public France | D47: 586 | E47: PLFSS 2021 - Annexe 8 (securite-sociale.fr)
C48: Centre national de gestion des praticiens hospitaliers et des personnels de direction de la fonction publique hospitalière (dit Centre national de gestion) | D48: 112 | E48: PLFSS 2021 - Annexe 8 (securite-sociale.fr)
C49: Office national d’indemnisation des accidents médicaux, des affections iatrogènes et des infections nosocomiales | D49: 115 | E49: rapport_conjoint_rapprochement_fiva_oniam.pdf (igas.gouv.fr)
C50: Institut des jeunes aveugles | D50: 780 | E50: https://www.igas.gouv.fr/IMG/pdf/2017-069R.pdf
C51: Institut Nationale des jeunes sourds
C52: Agences régionales de santé | D52: 8277.77 | E52: https://www.assemblee-nationale.fr/dyn/15/rapports/cion-soc/l15b4267_rapport-information#_Toc256000084
C53: Agence Nationale de Sécurité sanitaire de l’alimentation, de l’environnement et du travail | D53: 1298 | E53: https://questions.assemblee-nationale.fr/q13/13-88182QE.htm
B54: Assurance maladie | C54: Assurance maladie | D54: 61150 | E54: Dossier de presse COG 2018-2022 Vdef (ameli.fr)
C55: Dont CNAM | D55: 9350 | E55: comptes_cnam_2019.pdf (ameli.fr)
B56: Autorités administratives indépendantes | C56: HAS | D56: 425 | E56: PLFSS 2021 - Annexe 8 (securite-sociale.fr)
B57: Groupement d'intérêt public | C57: Agence nationale d'appui à la performance | D57: 95 | E57: PLFSS 2021 - Annexe 8 (securite-sociale.fr)
C58: Agence Nationale de Recherche sur le Sida et les hépatites virales | D58: 47 | E58: Microsoft Word - MOASF révision décembre 2018 v6.docx (anrs.fr)
C59: Institut national du cancer | D59: 37 | E59: L'organigramme de l'Institut national du cancer - Qui sommes nous ? (e-cancer.fr)
C60: Institut national de la transfusion sanguine | D60: 144 | E60: Quel est le devenir de l'INTS dans les prochaines année en France ? (toutsurlatransfusion.com)
C61: Agence nationale du numérique en santé | D61: 135 | E61: PLFSS 2021 - Annexe 8 (securite-sociale.fr)
C62: Centre national de gestion des essais des produits de santé | D62: 0
C63: Maisons départementales des personnes handicapées | D63: 5240 | E63: CNSA Rapport annuel 2020
C64: Plateforme des données de santé | D64: 8 | E64: http://www.institut-des-donnees-de-sante.fr/telechargements/RA-IDS-2013bdf.pdf
B65: Grandes écoles | C65: École des hautes études en santé publique | D65: 420.3 | E65: PLFSS 2021 - Annexe 8 (securite-sociale.fr)
C66: École nationale supérieure de sécurité sociale | D66: 48.44 | E66: Calculé à partir des dépenses en personnels de l'EN3S et de l'EHESP : https://www.ehesp.fr/wp-content/uploads/2020/07/Rapport-activite-2019_EHESP.pdf https://fr.calameo.com/read/004310504dc570c384777
B67: TOTAL | D67: =SUM(D42:D66)-D55 -> 98433.71
B70: Partie II: Effectifs de la complémentaire santé
B72: Etape de calcul
B73: On commence par estimer les parts du marché des activités de notre périmètre des différents organismes
C75: Mutuelles | D75: Institutions de prévoyances | E75: Sociétés d'assurances | F75: Source
B76: Part de marché du champ des risques sociaux | C76: 51 | D76: 18 | E76: 31 | F76: https://drees.solidarites-sante.gouv.fr/sites/default/files/2021-03/6-12.pdf
B77: Part de l'activité "santé" les cotisations collectés en 2016 | C77: 0.85 | D77: 0.5 | E77: 0.31 | F77: https://drees.solidarites-sante.gouv.fr/sites/default/files/2021-03/3-11.pdf
B78: Part de l'activité "incapacité, invalidité, dépendance, accidents" dans les cotisations collectées en 2016 | C78: 0.04 | D78: 0.28 | E78: 0.22 | F78: https://drees.solidarites-sante.gouv.fr/sites/default/files/2021-03/3-11.pdf
B79: Part des activités "santé" ou "incapacité, invalidité, dépendance, accidents" sur le marché total des risques sociaux | C79: =C76*(C77+C78) -> 45.39 | D79: =D76*(D77+D78) -> 14.04 | E79: 16.43
B80: Part de marché des activités "santé" ou "incapacité, invalidité, dépendance, accidents" | C80: =C79/SUM($C79:$E79) -> 0.5983390456 | D80: =D79/SUM($C79:$E79) -> 0.1850777748 | E80: 0.2165831795
B81: Lecture : | C81: - Les mutuelles possèdent 51% du marché des risques sociaux
C82: - 89% de l'activité des mutuelles concernée par notre périmètre, le reste est les activités "Retraite, préretraite et indemnités de fin de carrière" et "décès"
C83: - Les activités "santé" et "incapacité, invalidité, dépendance, accidents" des mutuelles représentent 45,39% du marché des risques sociaux
C84: - Les mutuelles possèdent 59,93% des part du marché de ces activités
B86: Etape de calcul
B87: On estime ensuite les effectifs des mutuelles liées aux activités de notre périmètre
C89: Mutuelles | D89: Source
B90: Effectifs en France (2017) | C90: 55000 | D90: Chiffres clés 2019 de la branche Mutualité | ANEM (anem-mutualite.fr)
B91: Part des effectifs dédiés à des activités sanitaires, sociéles ou médico-sociales | C91: 0.27 | D91: Chiffres clés 2019 de la branche Mutualité | ANEM (anem-mutualite.fr)
B92: Effectifs (hors activiés sanitaires, sociales ou médico-sociales) | C92: =C90*(1-C91) -> 40150
B95: Hypothèse: On suppose que les effectifs des mutuelles sont répartis selon le chiffre d'affaires des différents domaines d'activité
B97: Effectifs liée aux activités de santé, ou d'incapacité, invalidité, dépendance et accidents | C97: =C92*(C77+C78) -> 35733.5
B100: Etape de calcul
B101: On estime ensuite les effectifs des assurances et des instituts de prévoyance
B102: Hypothèse: On suppose que les effectifs des mutuelles, des sociétés d'assurances et des institus de prévoyance pour les activités concernés par notre périmètresont proportionnels au part du marché de ces activités
C104: Mutuelles | D104: Institutions de prévoyances | E104: Sociétés d'assurances | F104: Total
B105: Effectifs liée aux activités de santé, ou d'incapacité, invalidité, dépendance et accidents | C105: =C97 -> 35733.5 | D105: =C105*D80 -> 6613.476668 | E105: =$C105*E80 -> 7739.275046 | F105: =SUM(C105:E105) -> 50086.25171

Sheet 1+6+7_mesure
B2: Sources fixes de combustion
B5: Tableau de bord du poste avant transformation | F5: Tableau de bord du poste après transformation
B6: Emissions totales du poste | C6: ='1'!C6+'6'!C6+'7'!C6 -> 5.274207829 | D6: MtCO2e/an | F6: Emissions totales du poste | G6: =D37 -> 0.7713571839 | H6: MtCO2e/an
B7: Version | C7: ='1'!C7 -> v1.0.f | F7: Pourcentage de réduction | G7: =D39 -> -0.8537491868
B8: Satisfaction | C8: Bon ordre de grandeur | F8: Satisfaction | G8: Bon ordre de grandeur
C13: Emissions dues à l'énergie (postes 1 et 6)
C14: 2020
C15: Consommation d'énergie totale (GWh PCI) | D15: =SUM(D16:D19) -> 31031.03017
C16: Consommation d'électricité (GWh PCI) | D16: =SUM(F45:F46) -> 12683.81534 | G16: 2020
C17: Consommation de fioul (GWh PCI) | D17: =D47 -> 5227.609268 | G17: Mix énergétique
C18: Consommation de gaz (GWh PCI) | D18: =E47 -> 10560.05733 | G18: Mix estimé | H18: Consommation 2019 (GWh) | I18: Part (%)
C19: Consommation autres combustibles (GWh PCI) | D19: =G47 -> 2559.548234 | E19: Correspond en théorie à "chaleur", "énergie renouvelable" et "GPL". | G19: Gaz | H19: =D18 -> 10560.05733 | I19: =H19/$H$23 -> 0.340306373
C20: Facteur d'émission electricité-Mix moyen consommation (kgCO2e/kWh) | D20: ='6'!B133 -> 0.0607 | E20: Source ADEME | G20: Fioul | H20: =D17 -> 5227.609268 | I20: =H20/H23 -> 0.1684639291
C21: Facteur d'émission fuel (kgCO2e/kWh) | D21: 0.324 | E21: Source ADEME | G21: Autres combustibles | H21: =D19 -> 2559.548234 | I21: =H21/H23 -> 0.08248350828
C22: Facteur d'émission gaz (kgCO2e/kWh) | D22: 0.227 | E22: Source ADEME | G22: Électricité | H22: =D16 -> 12683.81534 | I22: =H22/H23 -> 0.4087461896
C23: Facteur d'émission autres combustibles (kgCO2e/kWh) | D23: 0.0304 | E23: Source ADEME | G23: Total | H23: =SUM(H19:H22) -> 31031.03017 | I23: =SUM(I19:I22) -> 1
C24: Emissions totales (MtCO2eq) | D24: =C6 -> 5.274207829
C25: Mesures de décarbonation
C26: -Massifier la rénovation thermique globale et performante des bâtiments hospitaliers et médico-sociaux | G26: Source : Chiffrage projet "Administration publique" du PTEF.
C27: -Passage systématique des systèmes de chauffage et/ou de production d’eau chaude au gaz et au fioul à des sources d’énergie bas carbone | G27: https://view.officeapps.live.com/op/view.aspx?src=https%3A%2F%2Ftheshiftproject.org%2Fwp-content%2Fuploads%2F2021%2F10%2F211021-chiffrages-PTEF-administration-publique_final.xlsx&wdOrigin=BROWSELINK
C28: -Recruter, former ou faire appel à un référent énergie. Former les professionnels de santé afin de réduire les usages / consommations. | G28: 2050
C29: -Favoriser la bio-climatisation des bâtiments et l’usage de matériaux bio-sourcés dans les constructions neuves et rénovations d’envergure | G29: Mix énergétique
C30: 2050 | G30: Mix PTEF TOUT TERTIAIRE | H30: Consommation 2050 (GWh) | I30: Part (%)
C31: Hypothèse d'évolution de la consommation d'énergie finale (état final/état initial) | D31: 0.4 | E31: On prend l'hyptohèse que le secteur santé diminue sa consommation de 60% en moyenne. Ceci va un peu plus loin que le décret tertiaire qui prévoit -60% OU pour les bâtiments déjà efficaces du point de vue énergétique, le respect d'un niveau absolu de consommaiton énergétique. C'est-à-dire que certains bâtiments publics ne devront pas réduire leur consommation d'énergie de 60% mais atteindre un seuil exprimé en unité énergétique : ils réduisent donc leur consommaiton de moins de 60%. Cela étant, certains travaux sur de vieux bâtiments permettront d'aller au-delà de 60% compte tenu du potentiel de réduction de la consommation existant. Aussi on retient un objectif moyen de -60%, faute de disposer d'une typologie précise des bâtiments. | G31: Gaz | I31: 0.0513
C32: Consommation d'énergie (GWh PCI) | D32: =D15*D31 -> 12412.41207 | E32: La nouvelle consommation d'énergie. | G32: Fioul | I32: 0
C33: Consommation d'électricité (GWh PCI) | D33: =D32*I34 -> 8872.392147 | G33: Autres combustibles | I33: 0.2339
C34: Consommation de fioul (GWh PCI) | D34: =D32*I32 -> 0 | G34: Électricité | I34: =19.76%+51.72% -> 0.7148
C35: Consommation de gaz (GWh PCI) | D35: =D32*I31 -> 636.7567391 | G35: Total | I35: =SUM(I31:I34) -> 1
C36: Consommation autres combustibles (GWh PCI) | D36: =D32*I33 -> 2903.263183
C37: Emissions totales (MtCO2eq) | D37: =(D33*D20+D34*D21+D35*D22+D36*D23)*10^6/10^9 -> 0.7713571839
C38: Ratio état final/état initial | D38: =D37/D24 -> 0.1462508132
C39: Réduction des émissions | D39: =(D37-D24)/D24 -> -0.8537491868
C40: N.B. On ne prend pas en compte ici l'administration et la complémentaire santé pour calculer le ratio des émissions 2050/2020 ; on supposera que le ratio est similaire pour ces structures
C43: Détail des résultats avant transformation
D44: Consommation de fioul avant transformation (GWh PCI) | E44: Consommation de gaz avant transformation (GWh PCI) | F44: Consommation électricité avant transformation (GWh PCI) | G44: Consommation autres combustibles avant transformation (GWh PCI) | H44: Emissions avant transformation (MtCO2)
